Workbook

Sheet 1 年次別，乳児死亡数・新生児死亡数・率・死亡性比・割合
A1: 第4章 乳 児 死 亡
A2: 1 年次別にみた乳児死亡数・乳児死亡率(出生千対)・乳児死亡性比・総死亡中乳児死亡の占め る割合・新生児死亡数・新生児死亡率（出生千対）・新生児死亡性比及び乳児 死亡中新生児死亡の占める割合
A4: 年次 | B4: 出生数 | C4: 乳児死亡数 | F4: 乳児死亡率 (出生千対) | G4: 乳児死亡 性 比 | H4: 総死亡中乳児 死亡の占める 割合 （％） | I4: 新生児死亡数 | L4: 新生児死亡率 (出生千対) | M4: 新生児死亡 性 比 | N4: 乳児死亡中新 生児死亡の占 める割合(％)
C5: 総数 | D5: 男 | E5: 女 | I5: 総 数 | J5: 男 | K5: 女
A6: 1950 昭和25年 | B6: 8178 | C6: 342 | D6: … | E6: … | F6: 41.81951577 | G6: ・ | H6: 13.31775701 | I6: … | J6: … | K6: … | L6: ・ | M6: ・ | N6: ・ | P6: 2568
A7: 55 30 | B7: 7551 | C7: 178 | D7: 100 | E7: 78 | F7: 23.57303668 | G7: 128.2051282 | H7: 6.93957115 | I7: 78 | J7: 46 | K7: 32 | L7: 10.32975765 | M7: 143.75 | N7: 43.82022472 | P7: 2565
A8: 60 35 | B8: 9392 | C8: 194 | D8: 102 | E8: 92 | F8: 20.7 | G8: 110.8695652 | H8: 6.627946703 | I8: 92 | J8: … | K8: … | L8: 9.8 | M8: ・ | N8: 47.42268041 | P8: 2927
A9: 65 40 | B9: 16370 | C9: 222 | D9: … | E9: … | F9: 13.56139279 | G9: ・ | H9: 5.702543026 | I9: 159 | J9: … | K9: … | L9: 9.712889432 | M9: ・ | N9: 71.62162162 | P9: 3893
A10: 70 45 | B10: 20411 | C10: 195 | D10: 113 | E10: 82 | F10: 9.55367204 | G10: 137.804878 | H10: 4.184549356 | I10: 128 | J10: 81 | K10: 47 | L10: 6.271128313 | M10: 172.3404255 | N10: 65.64102564 | P10: 4660
A11: 72 47 | B11: 22017 | C11: 207 | D11: 131 | E11: 76 | F11: 9.401825862 | G11: 172.3684211 | H11: 4.335078534 | I11: 149 | J11: 91 | K11: 58 | L11: 6.767497843 | M11: 156.8965517 | N11: 71.98067633 | P11: 4775
A12: 73 48 | B12: 23759 | C12: 237 | D12: 139 | E12: 98 | F12: 9.975167305 | G12: 141.8367347 | H12: 4.581480766 | I12: 136 | J12: 81 | K12: 55 | L12: 5.724146639 | M12: 147.2727273 | N12: 57.38396624 | P12: 5173
A13: 74 49 | B13: 24525 | C13: 246 | D13: 144 | E13: 102 | F13: 10.03058104 | G13: 141.1764706 | H13: 4.771140419 | I13: 155 | J13: 93 | K13: 62 | L13: 6.320081549 | M13: 150 | N13: 63.00813008 | P13: 5156
A14: 75 50 | B14: 23404 | C14: 214 | D14: 116 | E14: 98 | F14: 9.143736113 | G14: 118.3673469 | H14: 3.959296947 | I14: 150 | J14: 86 | K14: 64 | L14: 6.409160827 | M14: 134.375 | N14: 70.09345794 | P14: 5405
A15: 76 51 | B15: 22910 | C15: 191 | D15: 105 | E15: 86 | F15: 8.336970755 | G15: 122.0930233 | H15: 3.498168498 | I15: 132 | J15: 76 | K15: 56 | L15: 5.761676124 | M15: 135.7142857 | N15: 69.10994764 | P15: 5460
A16: 77 52 | B16: 22286 | C16: 170 | D16: 91 | E16: 79 | F16: 7.628107332 | G16: 115.1898734 | H16: 3.023297172 | I16: 119 | J16: 64 | K16: 55 | L16: 5.339675132 | M16: 116.3636364 | N16: 70 | P16: 5623
A17: 78 53 | B17: 22251 | C17: 163 | D17: 89 | E17: 74 | F17: 7.32551346 | G17: 120.2702703 | H17: 2.851145706 | I17: 116 | J17: 62 | K17: 54 | L17: 5.213248843 | M17: 114.8148148 | N17: 71.16564417 | P17: 5717
A18: 79 54 | B18: 21577 | C18: 142 | D18: 83 | E18: 59 | F18: 6.581081707 | G18: 140.6779661 | H18: 2.433590403 | I18: 92 | J18: 56 | K18: 36 | L18: 4.263799416 | M18: 155.5555556 | N18: 64.78873239 | P18: 5835
A19: 80 55 | B19: 20931 | C19: 156 | D19: 77 | E19: 79 | F19: 7.453060054 | G19: 97.46835443 | H19: 2.459791864 | I19: 97 | J19: 48 | K19: 49 | L19: 4.634274521 | M19: 97.95918367 | N19: 62.17948718 | P19: 6342
A20: 81 56 | B20: 19944 | C20: 129 | D20: 70 | E20: 59 | F20: 6.46811071 | G20: 118.6440678 | H20: 2.004039149 | I20: 79 | J20: 46 | K20: 33 | L20: 3.961091055 | M20: 139.3939394 | N20: 61.24031008 | P20: 6437
A21: 82 57 | B21: 20727 | C21: 120 | D21: 63 | E21: 57 | F21: 5.789549862 | G21: 110.5263158 | H21: 1.797483523 | I21: 71 | J21: 39 | K21: 32 | L21: 3.425483669 | M21: 121.875 | N21: 59.16666667 | P21: 6676
A22: 83 58 | B22: 20608 | C22: 107 | D22: 61 | E22: 46 | F22: 5.192158385 | G22: 132.6086957 | H22: 1.554780587 | I22: 62 | J22: 39 | K22: 23 | L22: 3.008540373 | M22: 169.5652174 | N22: 57.94392523 | P22: 6882
A23: 84 59 | B23: 20274 | C23: 111 | D23: 66 | E23: 45 | F23: 5.474992601 | G23: 146.6666667 | H23: 1.619019837 | I23: 72 | J23: 44 | K23: 28 | L23: 3.551346552 | M23: 157.1428571 | N23: 64.86486486 | P23: 6856
A24: 85 60 | B24: 19314 | C24: 101 | D24: 48 | E24: 53 | F24: 5.229367298 | G24: 90.56603774 | H24: 1.397730418 | I24: 63 | J24: 29 | K24: 34 | L24: 3.261882572 | M24: 85.29411765 | N24: 62.37623762 | P24: 7226
A25: 1986 昭和61年 | B25: 19130 | C25: 86 | D25: 49 | E25: 37 | F25: 4.495556717 | G25: 132.4324324 | H25: 1.206678827 | I25: 48 | J25: 28 | K25: 20 | L25: 2.509147935 | M25: 140 | N25: 55.81395349 | P25: 7127
A26: 87 62 | B26: 18533 | C26: 88 | D26: 42 | E26: 46 | F26: 4.74828684 | G26: 91.30434783 | H26: 1.243992084 | I26: 52 | J26: 21 | K26: 31 | L26: 2.80580586 | M26: 67.74193548 | N26: 59.09090909 | P26: 7074
A27: 88 63 | B27: 18216 | C27: 80 | D27: 41 | E27: 39 | F27: 4.391743522 | G27: 105.1282051 | H27: 1.030795001 | I27: 44 | J27: 20 | K27: 24 | L27: 2.415458937 | M27: 83.33333333 | N27: 55 | P27: 7761
A28: 89 平成元年 | B28: 17479 | C28: 75 | D28: 50 | E28: 25 | F28: 4.290863322 | G28: 200 | H28: 0.9255831174 | I28: 40 | J28: 28 | K28: 12 | L28: 2.288460438 | M28: 233.3333333 | N28: 53.33333333 | P28: 8103
A29: 90 2 | B29: 17425 | C29: 85 | D29: 45 | E29: 40 | F29: 4.87804878 | G29: 112.5 | H29: 1.026818072 | I29: 47 | J29: 23 | K29: 24 | L29: 2.697274032 | M29: 95.83333333 | N29: 55.29411765 | P29: 8278
A30: 91 3 | B30: 17458 | C30: 63 | D30: 36 | E30: 27 | F30: 3.608660786 | G30: 133.3333333 | H30: 0.7552145768 | I30: 36 | J30: 20 | K30: 16 | L30: 2.062091878 | M30: 125 | N30: 57.14285714 | P30: 8342
A31: 92 4 | B31: 17325 | C31: 57 | D31: 33 | E31: 24 | F31: 3.29004329 | G31: 137.5 | H31: 0.6471389646 | I31: 29 | J31: 17 | K31: 12 | L31: 1.673881674 | M31: 141.6666667 | N31: 50.87719298 | P31: 8808
A32: 93 5 | B32: 16371 | C32: 51 | D32: 29 | E32: 22 | F32: 3.115264798 | G32: 131.8181818 | H32: 0.5409418753 | I32: 20 | J32: 10 | K32: 10 | L32: 1.22167247 | M32: 100 | N32: 39.21568627 | P32: 9428
A33: 94 6 | B33: 17057 | C33: 65 | D33: 40 | E33: 25 | F33: 3.810752184 | G33: 160 | H33: 0.727557645 | I33: 33 | J33: 21 | K33: 12 | L33: 1.93468957 | M33: 175 | N33: 50.76923077 | P33: 8934
A34: 95 7 | B34: 16227 | C34: 53 | D34: 26 | E34: 27 | F34: 3.266161336 | G34: 96.2962963 | H34: 0.5639497765 | I34: 25 | J34: 14 | K34: 11 | L34: 1.54064214 | M34: 127.2727273 | N34: 47.16981132 | P34: 9398
A35: 96 8 | B35: 16339 | C35: 55 | D35: 35 | E35: 20 | F35: 3.366179081 | G35: 175 | H35: 0.5782169891 | I35: 31 | J35: 22 | K35: 9 | L35: 1.897300936 | M35: 244.4444444 | N35: 56.36363636 | P35: 9512
A36: 97 9 | B36: 15873 | C36: 52 | D36: 29 | E36: 23 | F36: 3.276003276 | G36: 126.0869565 | H36: 0.5284552846 | I36: 30 | J36: 14 | K36: 16 | L36: 1.89000189 | M36: 87.5 | N36: 57.69230769 | P36: 9840
A37: 98 10 | B37: 16165 | C37: 45 | D37: 25 | E37: 20 | F37: 2.783792144 | G37: 125 | H37: 0.4502251126 | I37: 24 | J37: 12 | K37: 12 | L37: 1.484689143 | M37: 100 | N37: 53.33333333 | P37: 9995
A38: 99 11 | B38: 15358 | C38: 32 | D38: 18 | E38: 14 | F38: 2.083604636 | G38: 128.5714286 | H38: 0.2961317786 | I38: 20 | J38: 11 | K38: 9 | L38: 1.302252898 | M38: 122.2222222 | N38: 62.5 | P38: 10806
A39: 2000 12 | B39: 15332 | C39: 34 | D39: 23 | E39: 11 | F39: 2.217584138 | G39: 209.0909091 | H39: 0.3148148148 | I39: 13 | J39: 7 | K39: 6 | L39: 0.8478998174 | M39: 116.6666667 | N39: 38.23529412 | P39: 10800
A40: 01 13 | B40: 15312 | C40: 33 | D40: 15 | E40: 18 | F40: 2.155172414 | G40: 83.33333333 | H40: 0.3054707026 | I40: 19 | J40: 7 | K40: 12 | L40: 1.240856844 | M40: 58.33333333 | N40: 57.57575758 | P40: 10803
A41: 02 14 | B41: 15577 | C41: 31 | D41: 18 | E41: 13 | F41: 1.990113629 | G41: 138.4615385 | H41: 0.2780019729 | I41: 15 | J41: 6 | K41: 9 | L41: 0.9629582076 | M41: 66.66666667 | N41: 48.38709677 | P41: 11151
A42: 03 15 | B42: 14999 | C42: 40 | D42: 20 | E42: 20 | F42: 2.666844456 | G42: 100 | H42: 0.3398759453 | I42: 20 | J42: 10 | K42: 10 | L42: 1.333422228 | M42: 100 | N42: 50 | P42: 11769
A43: 04 16 | B43: 14749 | C43: 45 | D43: 26 | E43: 19 | F43: 3.051054309 | G43: 136.8421053 | H43: 0.3644314869 | I43: 23 | J43: 14 | K43: 9 | L43: 1.559427758 | M43: 155.5555556 | N43: 51.11111111 | P43: 12348
A44: 05 17 | B44: 14184 | C44: 38 | D44: 21 | E44: 17 | F44: 2.679075014 | G44: 123.5294118 | H44: 0.289965662 | I44: 25 | J44: 15 | K44: 10 | L44: 1.762549351 | M44: 150 | N44: 65.78947368 | P44: 13105
A45: 06 18 | B45: 14730 | C45: 34 | D45: 13 | E45: 21 | F45: 2.308214528 | G45: 61.9047619 | H45: 0.2562556527 | I45: 16 | J45: 8 | K45: 8 | L45: 1.086218601 | M45: 100 | N45: 47.05882353 | P45: 13268
A46: 07 19 | B46: 14498 | C46: 34 | D46: 19 | E46: 15 | F46: 2.345151055 | G46: 126.6666667 | H46: 0.2420962689 | I46: 17 | J46: 9 | K46: 8 | L46: 1.172575528 | M46: 112.5 | N46: 50 | P46: 14044
A47: 08 20 | B47: 14845 | C47: 34 | D47: 16 | E47: 18 | F47: 2.290333446 | G47: 88.88888889 | H47: 0.2366699151 | I47: 18 | J47: 7 | K47: 11 | L47: 1.212529471 | M47: 63.63636364 | N47: 52.94117647 | P47: 14366
A48: 09 21 | B48: 14506 | C48: 33 | D48: 19 | E48: 14 | F48: 2.274920722 | G48: 135.7142857 | H48: 0.2274920722 | I48: 14 | J48: 7 | K48: 7 | L48: 0.9651178823 | M48: 100 | N48: 42.42424242 | P48: 14506
A49: 10 22 | B49: 14739 | C49: 26 | D49: 16 | E49: 10 | F49: 1.76402741 | G49: 160 | H49: 0.167936959 | I49: 15 | J49: 10 | K49: 5 | L49: 1.017708121 | M49: 200 | N49: 57.69230769 | P49: 15482
A50: 11 23 | B50: 14491 | C50: 40 | D50: 20 | E50: 20 | F50: 2.760334 | G50: 100 | H50: 0.2511616225 | I50: 20 | J50: 11 | K50: 9 | L50: 1.380167 | M50: 122.2222222 | N50: 50 | P50: 15926
A51: 12 24 | B51: 14487 | C51: 34 | D51: 18 | E51: 16 | F51: 2.346931732 | G51: 112.5 | H51: 0.2095144195 | I51: 13 | J51: 5 | K51: 8 | L51: 0.8973562504 | M51: 62.5 | N51: 38.23529412 | P51: 16228
A52: 13 25 | B52: 14591 | C52: 35 | D52: 17 | E52: 18 | F52: 2.398738949 | G52: 94.44444444 | H52: 0.2077891237 | I52: 17 | J52: 9 | K52: 8 | L52: 1.165101775 | M52: 112.5 | N52: 48.57142857 | P52: 16844
A53: 14 26 | B53: 14568 | C53: 26 | D53: 12 | E53: 14 | F53: 1.784733663 | G53: 85.71428571 | H53: 0.147158705 | I53: 15 | J53: 7 | K53: 8 | L53: 1.029654036 | M53: 87.5 | N53: 57.69230769 | P53: 17668
A54: 15 27 | B54: 14589 | C54: 27 | D54: 19 | E54: 8 | F54: 1.850709439 | G54: 237.5 | H54: 0.1540832049 | I54: 10 | J54: 9 | K54: 1 | L54: 0.6854479402 | M54: 900 | N54: 37.03703704 | P54: 17523
A55: 16 28 | B55: 14021 | C55: 29 | D55: 14 | E55: 15 | F55: 2.068326082 | G55: 93.33333333 | H55: 0.1567228707 | I55: 12 | J55: 6 | K55: 6 | L55: 0.8558590685 | M55: 100 | N55: 41.37931034 | P55: 18504
A56: 17 29 | B56: 13821 | C56: 25 | D56: 9 | E56: 16 | F56: 1.808841618 | G56: 56.25 | H56: 0.1339190058 | I56: 14 | J56: 7 | K56: 7 | L56: 1.012951306 | M56: 100 | N56: 56 | P56: 18668
A57: 18 30 | B57: =[1]出生数!$G$4 -> 13248 | C57: =SUM(D57:E57) -> 34 | D57: ='3 乳児死亡数，月・性・区別'!$C$5 -> 16 | E57: ='3 乳児死亡数，月・性・区別'!$C$6 -> 18 | F57: =C57/B57*1000 -> 2.566425121 | G57: =D57/E57*100 -> 88.88888889 | H57: =C57/P57*100 -> 0.1757741819 | I57: =SUM(J57:K57) -> 20 | J57: ='6 生存期間・性別，区別乳児死亡数'!$O$7 -> 11 | K57: ='6 生存期間・性別，区別乳児死亡数'!$O$8 -> 9 | L57: =I57/B57*1000 -> 1.509661836 | M57: =J57/K57*100 -> 122.2222222 | N57: =I57/C57*100 -> 58.82352941 | P57: ='[2]1 年次別，死亡数・粗死亡率・年齢調整死亡率・死亡性比'!B57 -> 19343
A58: 1) 本市の集計による。

Sheet 2 区別，年次別乳児死亡数・率
A1: 2 区別にみた年次別乳児死亡数及び乳児死亡率（出生千対）
A3: 年次 | B3: 総数 | C3: 中央区 | D3: 北区 | E3: 東区 | F3: 白石区 | G3: 厚別区 | H3: 豊平区 | I3: 清田区 | J3: 南区 | K3: 西区 | L3: 手稲区
B4: 乳児死亡数
A5: 85 60 | B5: =SUM(C5:L5) -> 101 | C5: 12 | D5: 11 | E5: 20 | F5: 17 | G5: … | H5: 13 | I5: … | J5: 7 | K5: 21 | L5: …
A6: 1986 昭和61年 | B6: =SUM(C6:L6) -> 86 | C6: 12 | D6: 15 | E6: 19 | F6: 11 | G6: … | H6: 14 | I6: … | J6: 5 | K6: 10 | L6: …
A7: 1987 昭和62年 | B7: =SUM(C7:L7) -> 88 | C7: 6 | D7: 7 | E7: 19 | F7: 14 | G7: … | H7: 22 | I7: … | J7: 8 | K7: 12 | L7: …
A8: 1988 昭和63年 | B8: 80 | C8: 7 | D8: 12 | E8: 16 | F8: 20 | G8: … | H8: 11 | I8: … | J8: 2 | K8: 12 | L8: …
A9: 89 平成元年 | B9: 75 | C9: 4 | D9: 10 | E9: 7 | F9: 14 | G9: … | H9: 15 | I9: … | J9: 11 | K9: 14 | L9: …
A10: 90 2 | B10: 85 | C10: 10 | D10: 8 | E10: 10 | F10: 15 | G10: 5 | H10: 13 | I10: … | J10: 7 | K10: 14 | L10: 3
A11: 91 3 | B11: 63 | C11: 5 | D11: 8 | E11: 9 | F11: 12 | G11: 3 | H11: 11 | I11: … | J11: 4 | K11: 7 | L11: 4
A12: 93 4 | B12: 57 | C12: 5 | D12: 7 | E12: 10 | F12: 11 | G12: 4 | H12: 9 | I12: … | J12: 2 | K12: 5 | L12: 4
A13: 1993 平成5年 | B13: 51 | C13: 10 | D13: 7 | E13: 10 | F13: 6 | G13: 1 | H13: 6 | I13: … | J13: 4 | K13: 6 | L13: 1
A14: 94 6 | B14: 65 | C14: 6 | D14: 11 | E14: 14 | F14: 6 | G14: 1 | H14: 11 | I14: … | J14: 6 | K14: 9 | L14: 1
A15: 95 7 | B15: 53 | C15: 5 | D15: 3 | E15: 9 | F15: 6 | G15: 7 | H15: 11 | I15: … | J15: 4 | K15: 6 | L15: 2
A16: 96 8 | B16: 55 | C16: 3 | D16: 7 | E16: 5 | F16: 4 | G16: 2 | H16: 15 | I16: … | J16: 6 | K16: 5 | L16: 8
A17: 97 9 | B17: 52 | C17: 3 | D17: 4 | E17: 8 | F17: 6 | G17: 2 | H17: 12 | I17: … | J17: 5 | K17: 8 | L17: 4
A18: 1998 平成10年 | B18: 45 | C18: 5 | D18: 5 | E18: 3 | F18: 4 | G18: 4 | H18: 12 | I18: 1 | J18: 3 | K18: 7 | L18: 1
A19: 99 11 | B19: 32 | C19: 1 | D19: 7 | E19: 4 | F19: 4 | G19: 2 | H19: 3 | I19: 3 | J19: 1 | K19: 5 | L19: 2
A20: 2000 12 | B20: 34 | C20: 4 | D20: 3 | E20: 10 | F20: 0 | G20: 3 | H20: 1 | I20: 4 | J20: 6 | K20: 3 | L20: 0
A21: 01 13 | B21: 33 | C21: 5 | D21: 5 | E21: 7 | F21: 4 | G21: 0 | H21: 5 | I21: 0 | J21: 0 | K21: 6 | L21: 1
A22: 02 14 | B22: 31 | C22: 3 | D22: 4 | E22: 5 | F22: 6 | G22: 1 | H22: 3 | I22: 1 | J22: 1 | K22: 6 | L22: 1
A23: 03 15 | B23: 40 | C23: 3 | D23: 4 | E23: 3 | F23: 10 | G23: 5 | H23: 6 | I23: 1 | J23: 2 | K23: 4 | L23: 2
A24: 04 16 | B24: 45 | C24: 6 | D24: 9 | E24: 10 | F24: 5 | G24: 2 | H24: 6 | I24: 1 | J24: 3 | K24: 1 | L24: 2
A25: 05 17 | B25: 38 | C25: 2 | D25: 4 | E25: 8 | F25: 3 | G25: 6 | H25: 6 | I25: 2 | J25: 1 | K25: 5 | L25: 1
A26: 06 18 | B26: 34 | C26: 1 | D26: 8 | E26: 4 | F26: 7 | G26: 1 | H26: 1 | I26: 2 | J26: 1 | K26: 6 | L26: 3
A27: 07 19 | B27: 34 | C27: 6 | D27: 4 | E27: 4 | F27: 3 | G27: 2 | H27: 7 | I27: 2 | J27: 0 | K27: 4 | L27: 2
A28: 08 20 | B28: 34 | C28: 4 | D28: 6 | E28: 3 | F28: 4 | G28: 1 | H28: 4 | I28: 3 | J28: 2 | K28: 6 | L28: 1
A29: 09 21 | B29: 33 | C29: 2 | D29: 3 | E29: 6 | F29: 8 | G29: 2 | H29: 1 | I29: 2 | J29: 4 | K29: 3 | L29: 2
A30: 10 22 | B30: 26 | C30: 2 | D30: 2 | E30: 8 | F30: 5 | G30: 1 | H30: 1 | I30: 3 | J30: 0 | K30: 2 | L30: 2
A31: 11 23 | B31: 40 | C31: 5 | D31: 6 | E31: 6 | F31: 3 | G31: 2 | H31: 5 | I31: 3 | J31: 3 | K31: 6 | L31: 1
A32: 12 24 | B32: 34 | C32: 3 | D32: 4 | E32: 5 | F32: 6 | G32: 3 | H32: 7 | I32: 1 | J32: 2 | K32: 1 | L32: 2
A33: 13 25 | B33: 35 | C33: 3 | D33: 4 | E33: 6 | F33: 7 | G33: 2 | H33: 2 | I33: 3 | J33: 1 | K33: 4 | L33: 3
A34: 14 26 | B34: 26 | C34: 4 | D34: 4 | E34: 7 | F34: 0 | G34: 2 | H34: 2 | I34: 2 | J34: 0 | K34: 3 | L34: 2
A35: 15 27 | B35: 27 | C35: 6 | D35: 3 | E35: 4 | F35: 5 | G35: 2 | H35: 1 | I35: 0 | J35: 1 | K35: 3 | L35: 2
A36: 16 28 | B36: 29 | C36: 3 | D36: 4 | E36: 3 | F36: 3 | G36: 2 | H36: 9 | I36: 0 | J36: 2 | K36: 1 | L36: 2
A37: 17 29 | B37: 25 | C37: 1 | D37: 1 | E37: 6 | F37: 4 | G37: 0 | H37: 4 | I37: 2 | J37: 2 | K37: 4 | L37: 1
A38: 18 30 | B38: =SUM(C38:L38) -> 34 | C38: ='3 乳児死亡数，月・性・区別'!$C$7 -> 6 | D38: ='3 乳児死亡数，月・性・区別'!$C$10 -> 3 | E38: ='3 乳児死亡数，月・性・区別'!$C$13 -> 5 | F38: ='3 乳児死亡数，月・性・区別'!$C$16 -> 4 | G38: ='3 乳児死亡数，月・性・区別'!$C$19 -> 3 | H38: ='3 乳児死亡数，月・性・区別'!$C$22 -> 4 | I38: ='3 乳児死亡数，月・性・区別'!$C$25 -> 2 | J38: ='3 乳児死亡数，月・性・区別'!$C$28 -> 2 | K38: ='3 乳児死亡数，月・性・区別'!$C$31 -> 3 | L38: ='3 乳児死亡数，月・性・区別'!$C$34 -> 2
B39: 乳児死亡率
A40: 85 60 | B40: 5.229367298 | C40: 6.253256905 | D40: 4.534212696 | E40: 6.359300477 | F40: 4.638472033 | G40: ・ | H40: 4.157339303 | I40: ・ | J40: 4.098360656 | K40: 6.317689531 | L40: ・
A41: 1986 昭和61年 | B41: 4.495556717 | C41: 6.211180124 | D41: 6.382978723 | E41: 6.283068783 | F41: 2.853437095 | G41: ・ | H41: 4.462862608 | I41: ・ | J41: 3.015681544 | K41: 3.150598614 | L41: ・
A42: 1987 昭和62年 | B42: 4.74828684 | C42: 3.241491086 | D42: 3.171726325 | E42: 6.728045326 | F42: 3.768506057 | G42: ・ | H42: 7.115135834 | I42: ・ | J42: 5.144694534 | K42: 3.648525388 | L42: ・
A43: 1988 昭和63年 | B43: 4.391743522 | C43: 3.921568627 | D43: 5.586592179 | E43: 5.776173285 | F43: 5.346164127 | G43: ・ | H43: 3.625576796 | I43: ・ | J43: 1.238390093 | K43: 3.842459174 | L43: ・
A44: 89 平成元年 | B44: 4.290863322 | C44: 2.526847757 | D44: 5.002501251 | E44: 2.624671916 | F44: 3.784806705 | G44: ・ | H44: 5.121201775 | I44: ・ | J44: 7.255936675 | K44: 4.53661698 | L44: ・
A45: 90 2 | B45: 4.87804878 | C45: 6.277463905 | D45: 4.014049172 | E45: 3.699593045 | F45: 6.555944056 | G45: 3.591954023 | H45: 4.41426146 | I45: ・ | J45: 4.602235371 | K45: 7.303077726 | L45: 2.795899348
A46: 91 3 | B46: 3.608660786 | C46: 3.342245989 | D46: 3.872216844 | E46: 3.157894737 | F46: 5.126014524 | G46: 2.283105023 | H46: 3.902092941 | I46: ・ | J46: 2.737850787 | K46: 3.514056225 | L46: 3.574620197
A47: 93 4 | B47: 3.29004329 | C47: 3.436426117 | D47: 3.330161751 | E47: 3.711952487 | F47: 4.662992794 | G47: 3.007518797 | H47: 3.126085446 | I47: ・ | J47: 1.449275362 | K47: 2.565418163 | L47: 3.398470688
A48: 1993 平成5年 | B48: 3.115264798 | C48: 7.639419404 | D48: 3.493013972 | E48: 3.831417625 | F48: 2.886002886 | G48: 0.7961783439 | H48: 2.184200946 | I48: ・ | J48: 2.892263196 | K48: 3.285870756 | L48: 0.8643042351
A49: 94 6 | B49: 3.810752184 | C49: 4.273504274 | D49: 5.009107468 | E49: 5.335365854 | F49: 2.748511223 | G49: 0.7501875469 | H49: 3.884180791 | I49: ・ | J49: 4.288777698 | K49: 4.756871036 | L49: 0.837520938
A50: 95 7 | B50: 3.266161336 | C50: 3.776435045 | D50: 1.46484375 | E50: 3.504672897 | F50: 2.938295788 | G50: 5.907172996 | H50: 3.972553268 | I50: ・ | J50: 2.900652647 | K50: 3.285870756 | L50: 1.841620626
A51: 96 8 | B51: 3.366179081 | C51: 2.222222222 | D51: 3.237742831 | E51: 1.919385797 | F51: 1.918465228 | G51: 1.579778831 | H51: 5.460502366 | I51: ・ | J51: 4.528301887 | K51: 2.858776444 | L51: 7.619047619
A52: 1998 平成10年 | B52: 3.276003276 | C52: 2.19138057 | D52: 1.946472019 | E52: 3.128666406 | F52: 3.015075377 | G52: 1.779359431 | H52: 4.068047337 | I52: ・ | J52: 3.955696203 | K52: 4.694835681 | L52: 3.616636528
A53: 98 10 | B53: 2.783792144 | C53: 3.617945007 | D53: 2.442598925 | E53: 1.134215501 | F53: 1.912960306 | G53: 3.518029903 | H53: 6.352567496 | I53: 1.237623762 | J53: 2.461033634 | K53: 3.765465304 | L53: 0.9191176471
A54: 99 11 | B54: 2.083604636 | C54: 0.748502994 | D54: 3.53713997 | E54: 1.624035729 | F54: 2.050230651 | G54: 1.818181818 | H54: 1.605136437 | I54: 3.717472119 | J54: 0.8944543828 | K54: 2.855511136 | L54: 2.032520325
A55: 2000 12 | B55: 2.217584138 | C55: 3.032600455 | D55: 1.540832049 | E55: 3.8925652 | F55: 0 | G55: 2.816901408 | H55: 0.5485463522 | I55: 5.102040816 | J55: 5.410279531 | K55: 1.740139211 | L55: 0
A56: 01 13 | B56: 2.155172414 | C56: 3.623188406 | D56: 2.522704339 | E56: 2.806736167 | F56: 2.003004507 | G56: 0 | H56: 2.820078962 | I56: 0 | J56: 0 | K56: 3.353828955 | L56: 1.048218029
A57: 02 14 | B57: 1.990113629 | C57: 2.050580998 | D57: 1.910219675 | E57: 2.035002035 | F57: 2.980625931 | G57: 0.9765625 | H57: 1.58061117 | I57: 1.221001221 | J57: 0.9900990099 | K57: 3.36889388 | L57: 0.9823182711
A58: 03 15 | B58: 2.666844456 | C58: 2.130681818 | D58: 1.993024415 | E58: 1.242750621 | F58: 5.28262018 | G58: 5.291005291 | H58: 3.389830508 | I58: 1.219512195 | J58: 1.949317739 | K58: 2.287021155 | L58: 2.068252327
A59: 04 16 | B59: 3.051054309 | C59: 4.06779661 | D59: 4.437869822 | E59: 4.357298475 | F59: 2.653927813 | G59: 2.047082907 | H59: 3.36889388 | I59: 1.38121547 | J59: 3.151260504 | K59: 0.5724098454 | L59: 2.257336343
A60: 05 17 | B60: 2.679075014 | C60: 1.423487544 | D60: 2.038735984 | E60: 3.535130358 | F60: 1.605995717 | G60: 7.042253521 | H60: 3.556609366 | I60: 2.865329513 | J60: 1.137656428 | K60: 2.99940012 | L60: 1.107419712
A61: 06 18 | B61: 2.308214528 | C61: 0.6443298969 | D61: 4.010025063 | E61: 1.730103806 | F61: 3.670686943 | G61: 1.180637544 | H61: 0.5608524958 | I61: 2.534854246 | J61: 1.175088132 | K61: 3.436426117 | L61: 3.164556962
A62: 07 19 | B62: 2.345151055 | C62: 3.939592909 | D62: 1.984126984 | E62: 1.781737194 | F62: 1.621621622 | G62: 2.336448598 | H62: 4.06504065 | I62: 2.743484225 | J62: 0 | K62: 2.336448598 | L62: 2.06185567
A63: 08 20 | B63: 2.290333446 | C63: 2.442002442 | D63: 2.85578296 | E63: 1.306051371 | F63: 2.069322297 | G63: 1.191895113 | H63: 2.265005663 | I63: 3.717472119 | J63: 2.272727273 | K63: 3.548196334 | L63: 1.119820829
A64: 09 21 | B64: 2.274920722 | C64: 1.265822785 | D64: 1.461988304 | E64: 2.701485817 | F64: 4.36919716 | G64: 2.442002442 | H64: 0.5810575247 | I64: 2.587322122 | J64: 4.592422503 | K64: 1.78041543 | L64: 2.098635887
A65: 10 22 | B65: 1.76402741 | C65: 1.142204455 | D65: 0.9970089731 | E65: 3.576218149 | F65: 2.557544757 | G65: 1.156069364 | H65: 0.5711022273 | I65: 3.989361702 | J65: 0 | K65: 1.196172249 | L65: 2.183406114
A66: 11 23 | B66: 2.760334 | C66: 2.930832356 | D66: 3.125 | E66: 2.802428772 | F66: 1.589825119 | G66: 2.564102564 | H66: 2.74122807 | I66: 3.931847969 | J66: 3.731343284 | K66: 3.450258769 | L66: 1.078748652
A67: 12 24 | B67: 2.346931732 | C67: 1.714285714 | D67: 2.069322297 | E67: 2.324500232 | F67: 3.123373243 | G67: 4.126547455 | H67: 3.812636166 | I67: 1.326259947 | J67: 2.433090024 | K67: 0.600240096 | L67: 2.157497303
A68: 13 25 | B68: 2.398738949 | C68: 1.581444386 | D68: 2.02122284 | E68: 2.843601896 | F68: 3.739316239 | G68: 2.496878901 | H68: 1.117318436 | I68: 4.255319149 | J68: 1.285347044 | K68: 2.332361516 | L68: 3.177966102
A69: 14 26 | B69: 1.784733663 | C69: 2.16802168 | D69: 2.049180328 | E69: 3.22432059 | F69: 0 | G69: 2.577319588 | H69: 1.064395955 | I69: 3.03030303 | J69: 0 | K69: 1.862197393 | L69: 2.114164905
A70: 15 27 | B70: 1.850709439 | C70: 3.201707577 | D70: 1.469867712 | E70: 1.879699248 | F70: 2.644103649 | G70: 2.680965147 | H70: 0.5296610169 | I70: 0 | J70: 1.300390117 | K70: 1.810500905 | L70: 2.105263158
A71: 16 28 | B71: 2.068326082 | C71: 1.742160279 | D71: 2.164502165 | E71: 1.361161525 | F71: 1.622498648 | G71: 2.805049088 | H71: 4.899292324 | I71: 0 | J71: 2.751031637 | K71: 0.6361323155 | L71: 2.237136465
A72: 17 29 | B72: 1.808841618 | C72: 0.5643340858 | D72: 0.5327650506 | E72: 2.80767431 | F72: 2.302820956 | G72: 0 | H72: 2.294893861 | I72: 3.220611916 | J72: 2.78551532 | K72: 2.421307506 | L72: 1.152073733
A73: 18 30 | B73: =B38/[1]出生数!G$19*1000 -> 2.566425121 | C73: =C38/[1]出生数!H$19*1000 -> 3.440366972 | D73: =D38/[1]出生数!I$19*1000 -> 1.62425555 | E73: =E38/[1]出生数!J$19*1000 -> 2.527805865 | F73: =F38/[1]出生数!K$19*1000 -> 2.337814144 | G73: =G38/[1]出生数!L$19*1000 -> 4.538577912 | H73: =H38/[1]出生数!M$19*1000 -> 2.378121284 | I73: =I38/[1]出生数!N$19*1000 -> 3.105590062 | J73: =J38/[1]出生数!O$19*1000 -> 3.115264798 | K73: =K38/[1]出生数!P$19*1000 -> 1.960784314 | L73: =L38/[1]出生数!Q$19*1000 -> 2.472187886
A74: 1) 分区後の清田区分を含む。

Sheet 3 乳児死亡数，月・性・区別
A1: 3 月・性別にみた区別乳児死亡数
O2: 平成30年
A3: 区 ・ 性 | C3: 総数 | D3: 1 月 | E3: 2 月 | F3: 3 月 | G3: 4 月 | H3: 5 月 | I3: 6 月 | J3: 7 月 | K3: 8 月 | L3: 9 月 | M3: 10月 | N3: 11月 | O3: 12月
A4: 総数 | C4: =SUM(C7,C10,C13,C16,C19,C22,C25,C28,C31,C34) -> 34 | D4: 2 | E4: 0 | F4: =SUM(F7,F10,F13,F16,F19,F22,F25,F28,F31,F34) -> 3 | G4: 3 | H4: 3 | I4: 5 | J4: 1 | K4: 6 | L4: 4 | M4: 1 | N4: 3 | O4: 3
B5: 男 | C5: 16 | D5: 1 | E5: =SUM(E8,E11,E14,E17,E20,E23,E26,E29,E32,E35) -> 0 | F5: 1 | G5: 0 | H5: 2 | I5: 5 | J5: 0 | K5: 2 | L5: 2 | M5: 0 | N5: 1 | O5: 2
B6: 女 | C6: 18 | D6: 1 | E6: 0 | F6: 2 | G6: 3 | H6: 1 | I6: 0 | J6: 1 | K6: 4 | L6: 2 | M6: 1 | N6: 2 | O6: 1
A7: 中央 | C7: =SUM(D7:O7) -> 6 | D7: =SUM(D8:D9) -> 0 | E7: =SUM(E8:E9) -> 0 | F7: 0 | G7: 1 | H7: 2 | I7: 1 | J7: 0 | K7: =SUM(K8:K9) -> 0 | L7: =SUM(L8:L9) -> 1 | M7: =SUM(M8:M9) -> 0 | N7: =SUM(N8:N9) -> 1 | O7: 0
B8: 男 | C8: 3 | D8: 0 | E8: 0 | F8: 0 | G8: 0 | H8: 2 | I8: 1 | J8: 0 | K8: 0 | L8: 0 | M8: 0 | N8: 0 | O8: 0
B9: 女 | C9: 3 | D9: 0 | E9: 0 | F9: 0 | G9: 1 | H9: 0 | I9: 0 | J9: 0 | K9: 0 | L9: 1 | M9: 0 | N9: 1 | O9: 0
A10: 北 | C10: 3 | D10: =SUM(D11:D12) -> 0 | E10: =SUM(E11:E12) -> 0 | F10: 0 | G10: 0 | H10: 0 | I10: =SUM(I11:I12) -> 0 | J10: 0 | K10: =SUM(K11:K12) -> 1 | L10: =SUM(L11:L12) -> 2 | M10: =SUM(M11:M12) -> 0 | N10: =SUM(N11:N12) -> 0 | O10: 0
B11: 男 | C11: 2 | D11: 0 | E11: 0 | F11: 0 | G11: 0 | H11: 0 | I11: 0 | J11: 0 | K11: 0 | L11: 2 | M11: 0 | N11: 0 | O11: 0
B12: 女 | C12: 1 | D12: 0 | E12: 0 | F12: 0 | G12: 0 | H12: 0 | I12: 0 | J12: 0 | K12: 1 | L12: 0 | M12: 0 | N12: 0 | O12: 0
A13: 東 | C13: 5 | D13: =SUM(D14:D15) -> 0 | E13: 0 | F13: 0 | G13: 0 | H13: 0 | I13: 0 | J13: 1 | K13: =SUM(K14:K15) -> 0 | L13: =SUM(L14:L15) -> 0 | M13: =SUM(M14:M15) -> 0 | N13: =SUM(N14:N15) -> 2 | O13: 2
B14: 男 | C14: 3 | D14: 0 | E14: 0 | F14: 0 | G14: 0 | H14: 0 | I14: 0 | J14: 0 | K14: 0 | L14: 0 | M14: 0 | N14: 1 | O14: 2
B15: 女 | C15: 2 | D15: 0 | E15: 0 | F15: 0 | G15: 0 | H15: 0 | I15: 0 | J15: 1 | K15: 0 | L15: 0 | M15: 0 | N15: 1 | O15: 0
A16: 白石 | C16: 4 | D16: =SUM(D17:D18) -> 0 | E16: 0 | F16: 1 | G16: 2 | H16: 0 | I16: 0 | J16: 0 | K16: =SUM(K17:K18) -> 1 | L16: =SUM(L17:L18) -> 0 | M16: =SUM(M17:M18) -> 0 | N16: =SUM(N17:N18) -> 0 | O16: 0
B17: 男 | C17: 1 | D17: 0 | E17: 0 | F17: 1 | G17: 0 | H17: 0 | I17: 0 | J17: 0 | K17: 0 | L17: 0 | M17: 0 | N17: 0 | O17: 0
B18: 女 | C18: 3 | D18: 0 | E18: 0 | F18: 0 | G18: 2 | H18: 0 | I18: 0 | J18: 0 | K18: 1 | L18: 0 | M18: 0 | N18: 0 | O18: 0
A19: 厚別 | C19: 3 | D19: =SUM(D20:D21) -> 0 | E19: 0 | F19: 0 | G19: 0 | H19: 0 | I19: 2 | J19: 0 | K19: =SUM(K20:K21) -> 0 | L19: =SUM(L20:L21) -> 0 | M19: =SUM(M20:M21) -> 1 | N19: =SUM(N20:N21) -> 0 | O19: 0
B20: 男 | C20: 2 | D20: 0 | E20: 0 | F20: 0 | G20: 0 | H20: 0 | I20: 2 | J20: 0 | K20: 0 | L20: 0 | M20: 0 | N20: 0 | O20: 0
B21: 女 | C21: 1 | D21: 0 | E21: 0 | F21: 0 | G21: 0 | H21: 0 | I21: 0 | J21: 0 | K21: 0 | L21: 0 | M21: 1 | N21: 0 | O21: 0
A22: 豊平 | C22: 4 | D22: =SUM(D23:D24) -> 0 | E22: 0 | F22: 2 | G22: 0 | H22: 0 | I22: 1 | J22: 0 | K22: =SUM(K23:K24) -> 1 | L22: =SUM(L23:L24) -> 0 | M22: =SUM(M23:M24) -> 0 | N22: =SUM(N23:N24) -> 0 | O22: 0
B23: 男 | C23: 2 | D23: 0 | E23: 0 | F23: 0 | G23: 0 | H23: 0 | I23: 1 | J23: 0 | K23: 1 | L23: 0 | M23: 0 | N23: 0 | O23: 0
B24: 女 | C24: 2 | D24: 0 | E24: 0 | F24: 2 | G24: 0 | H24: 0 | I24: 0 | J24: 0 | K24: 0 | L24: 0 | M24: 0 | N24: 0 | O24: 0
A25: 清田 | C25: 2 | D25: =SUM(D26:D27) -> 1 | E25: 0 | F25: 0 | G25: 0 | H25: 0 | I25: 0 | J25: 0 | K25: =SUM(K26:K27) -> 1 | L25: =SUM(L26:L27) -> 0 | M25: =SUM(M26:M27) -> 0 | N25: =SUM(N26:N27) -> 0 | O25: 0
B26: 男 | C26: 1 | D26: 0 | E26: 0 | F26: 0 | G26: 0 | H26: 0 | I26: 0 | J26: 0 | K26: 1 | L26: 0 | M26: 0 | N26: 0 | O26: 0
B27: 女 | C27: 1 | D27: 1 | E27: 0 | F27: 0 | G27: 0 | H27: 0 | I27: 0 | J27: 0 | K27: 0 | L27: 0 | M27: 0 | N27: 0 | O27: 0
A28: 南 | C28: 2 | D28: =SUM(D29:D30) -> 0 | E28: 0 | F28: 0 | G28: 0 | H28: 0 | I28: 1 | J28: 0 | K28: =SUM(K29:K30) -> 0 | L28: =SUM(L29:L30) -> 1 | M28: =SUM(M29:M30) -> 0 | N28: =SUM(N29:N30) -> 0 | O28: 0
B29: 男 | C29: 1 | D29: 0 | E29: 0 | F29: 0 | G29: 0 | H29: 0 | I29: 1 | J29: 0 | K29: 0 | L29: 0 | M29: 0 | N29: 0 | O29: 0
B30: 女 | C30: 1 | D30: 0 | E30: 0 | F30: 0 | G30: 0 | H30: 0 | I30: 0 | J30: 0 | K30: 0 | L30: 1 | M30: 0 | N30: 0 | O30: 0
A31: 西 | C31: 3 | D31: =SUM(D32:D33) -> 1 | E31: 0 | F31: 0 | G31: 0 | H31: 1 | I31: 0 | J31: 0 | K31: =SUM(K32:K33) -> 0 | L31: =SUM(L32:L33) -> 0 | M31: =SUM(M32:M33) -> 0 | N31: =SUM(N32:N33) -> 0 | O31: 1
B32: 男 | C32: 1 | D32: 1 | E32: 0 | F32: 0 | G32: 0 | H32: 0 | I32: 0 | J32: 0 | K32: 0 | L32: 0 | M32: 0 | N32: 0 | O32: 0
B33: 女 | C33: 2 | D33: 0 | E33: 0 | F33: 0 | G33: 0 | H33: 1 | I33: 0 | J33: 0 | K33: 0 | L33: 0 | M33: 0 | N33: 0 | O33: 1
A34: 手稲 | C34: 2 | D34: =SUM(D35:D36) -> 0 | E34: 0 | F34: 0 | G34: 0 | H34: 0 | I34: 0 | J34: 0 | K34: =SUM(K35:K36) -> 2 | L34: =SUM(L35:L36) -> 0 | M34: =SUM(M35:M36) -> 0 | N34: =SUM(N35:N36) -> 0 | O34: 0
B35: 男 | C35: 0 | D35: 0 | E35: 0 | F35: 0 | G35: 0 | H35: 0 | I35: 0 | J35: 0 | K35: 0 | L35: 0 | M35: 0 | N35: 0 | O35: 0
B36: 女 | C36: 2 | D36: 0 | E36: 0 | F36: 0 | G36: 0 | H36: 0 | I36: 0 | J36: 0 | K36: 2 | L36: 0 | M36: 0 | N36: 0 | O36: 0

Sheet 4 年次別，乳児死因順位
A1: 4 年次別にみた乳児死因順位
A3: 年次 | B3: 乳児死 亡総数 | C3: 第 1 位 | D3: 乳 児 死亡数 | E3: 第 2 位 | F3: 乳 児 死亡数 | G3: 第 3 位 | H3: 乳 児 死亡数 | I3: 第 4 位 | J3: 乳 児 死亡数 | K3: 第 5 位 | L3: 乳 児 死亡数
A4: 1965 昭和40年 | B4: 222 | C4: その他の新生児固有疾患 | D4: … | E4: 先天異常 | F4: … | G4: 出生時の損傷 | H4: … | I4: 新生児の感染 | J4: … | K4: 肺炎 | L4: …
A5: 70 45 | B5: 195 | C5: 詳細不明の未熟児 | D5: … | E5: 先天異常 | F5: … | G5: 肺炎及び気管支炎 | H5: … | I5: 出生時損傷、難産及び その他の無酸素症、低酸素症 | J5: … | K5: 不慮の事故 | L5: …
A6: 1975 昭和50年 | B6: 214 | C6: 先天異常 | D6: 55 | E6: 出生時損傷、難産及び その他の無酸素症、低酸素症 | F6: 51 | G6: 肺炎及び気管支炎 | H6: 16 | J6: 11
A7: 80 55 | B7: 156 | C7: 出生時外傷、低酸素症、分娩 仮死及びその他の呼吸器病態 | D7: 57 | E7: 先天異常 | F7: 43 | G7: 不慮の事故及び有害作用 | H7: 10 | J7: 5
A8: 85 60 | B8: 101 | C8: 先天異常 | D8: 38 | E8: 出生時外傷、低酸素症、分娩 仮死及びその他の呼吸器病態 | F8: 25 | G8: 不慮の事故及び有害作用 | H8: 8 | I8: 心疾患 | J8: 6 | K8: その他の外因 | L8: 5
A9: 86 61 | B9: 86 | C9: 先天異常 | D9: 29 | E9: 出生時外傷、低酸素症、分娩 仮死及びその他の呼吸器病態 | F9: 18 | G9: 不慮の事故及び有害作用 | H9: 9 | I9: その他の外因 | J9: 5 | K9: 心疾患 | L9: 3
A10: 87 62 | B10: 88 | C10: 先天異常 | D10: 34 | E10: 出生時外傷、低酸素症、分娩 仮死及びその他の呼吸器病態 | F10: 15 | G10: 不慮の事故及び有害作用 | H10: 12 | J10: 4
A11: 88 63 | B11: 80 | C11: 先天異常 | D11: 24 | E11: 出生時外傷、低酸素症、分娩 仮死及びその他の呼吸器病態 | F11: 20 | H11: 4 | K11: その他の外因 | L11: 3
A12: 89 平成元年 | B12: 75 | C12: 先天異常 | D12: 26 | E12: 出生時外傷、低酸素症、分娩 仮死及びその他の呼吸器病態 | F12: 21 | G12: 不慮の事故及び有害作用 | H12: 6 | J12: 2
A13: 1990 平成2年 | B13: 85 | C13: 先天異常 | D13: 41 | E13: 出生時外傷、低酸素症、分娩 仮死及びその他の呼吸器病態 | F13: 11 | G13: 不慮の事故及び有害作用 | H13: 4 | J13: 3
A14: 91 3 | B14: 63 | C14: 先天異常 | D14: 26 | E14: 出生時外傷、低酸素症、分娩 仮死及びその他の呼吸器病態 | F14: 9 | H14: 3
A15: 92 4 | B15: 57 | C15: 先天異常 | D15: 22 | E15: 出生時外傷、低酸素症、分娩 仮死及びその他の呼吸器病態 | F15: 8 | G15: 心疾患 | H15: 4 | I15: その他の外因 | J15: 4 | K15: 敗血症 (新生児敗血症を含む） | L15: 3
A16: 93 5 | B16: 51 | C16: 先天異常 | D16: 21 | E16: 出生時外傷、低酸素症、分娩 仮死及びその他の呼吸器病態 | F16: 8 | G16: 不慮の事故及び有害作用 | H16: 7 | I16: 心疾患 | J16: 2 | L16: 1
A17: 94 6 | B17: 65 | C17: 先天異常 | D17: 25 | E17: 出生時外傷、低酸素症、分娩 仮死及びその他の呼吸器病態 | F17: 8 | G17: 敗血症(新生児敗血症を含む） | H17: 3 | J17: 2
A18: 95 7 | B18: 53 | C18: 先天奇形、変形及び染色体異常 | D18: 18 | E18: 乳幼児突然死症候群 | F18: 6 | H18: 4 | K18: 不慮の事故 | L18: 3
A19: 96 8 | B19: 55 | C19: 先天奇形、変形及び染色体異常 | D19: 25 | E19: 周産期に特異的な呼吸 障害及び心血管障害 | F19: 10 | G19: 乳幼児突然死症候群 | H19: 5 | I19: 不慮の事故 | J19: 3 | K19: 胎児及び新生児の出血 性障害及び血液障害 | L19: 2
A20: 97 9 | B20: 52 | C20: 先天奇形、変形及び染色体異常 | D20: 16 | F20: 6 | I20: 不慮の事故 | J20: 5 | K20: 乳幼児突然死症候群 | L20: 3
A21: 98 10 | B21: 45 | C21: 先天奇形、変形及び染色体異常 | D21: 16 | E21: 周産期に特異的な呼吸 障害及び心血管障害 | F21: 11 | G21: 心疾患（高血圧性を除く） | H21: 4 | I21: 胎児及び新生児の出血 性障害及び血液障害 | J21: 3 | K21: 不慮の事故 | L21: 2
A22: 99 11 | B22: 32 | C22: 先天奇形、変形及び染色体異常 | D22: 14 | F22: 3 | K22: 胎児及び新生児の出血 性障害及び血液障害 | L22: 2
A23: 2000 12 | B23: 34 | C23: 先天奇形、変形及び染色体異常 | D23: 11 | E23: 不慮の事故 | F23: 6 | G23: 心疾患（高血圧性を除く） | H23: 3 | J23: 2
A24: 01 13 | B24: 33 | C24: 先天奇形、変形及び染色体異常 | D24: 13 | E24: 乳幼児突然死症候群 | F24: 6 | G24: 周産期に特異的な呼吸障害 及び心血管障害 | H24: 4 | I24: 不慮の事故 | J24: 3 | L24: 1
A25: 02 14 | B25: 31 | C25: 先天奇形、変形及び染色体異常 | D25: 10 | E25: 周産期に特異的な呼吸障害 及び心血管障害 | F25: 6 | G25: 不慮の事故 | H25: 5 | J25: 2
A26: 03 15 | B26: 40 | C26: 先天奇形、変形及び染色体異常 | D26: 11 | E26: 周産期に特異的な呼吸障害 及び心血管障害 | F26: 6 | G26: 乳幼児突然死症候群 | H26: 4 | I26: 不慮の事故 | J26: 3 | K26: 代謝障害、心疾患 | L26: 2
A27: 04 16 | B27: 45 | C27: 先天奇形、変形及び染色体異常 | D27: 21 | E27: 周産期に特異的な呼吸障害 及び心血管障害 | F27: 8 | G27: 乳幼児突然死症候群 | H27: 6 | I27: 不慮の事故 | J27: 3 | K27: 心疾患 | L27: 2
A28: 05 17 | B28: 38 | C28: 先天奇形、変形及び染色体異常 | D28: 21 | E28: 周産期に特異的な呼吸障害 及び心血管障害 | F28: 8 | G28: 乳幼児突然死症候群 | H28: 6 | I28: 不慮の事故 | J28: 3 | K28: 心疾患 | L28: 2
A29: 06 18 | B29: 34 | C29: 先天奇形，変形及び染色体異常 | D29: 15 | E29: 乳幼児突然死症候群 | F29: 4 | G29: 周産期に特異的な呼吸障害及び心血管障害 | H29: 2 | J29: 1
A30: 07 19 | B30: 34 | C30: 先天奇形，変形及び染色体異常 | D30: 13 | F30: 5 | I30: 心疾患 | J30: 2 | L30: 1
A31: 08 20 | B31: 34 | C31: 先天奇形，変形及び染色体異常 | D31: 15 | E31: 周産期に特異的な呼吸障害 及び心血管障害 | F31: 9 | G31: 乳幼児突然死症候群 | H31: 6 | I31: 悪性新生物 心疾患 肺 炎 | J31: 1
A32: 09 21 | B32: 33 | C32: 先天奇形，変形及び染色体異常 | D32: 9 | E32: 周産期に特異的な呼吸障害 及び心血管障害 | F32: 7 | G32: 乳幼児突然死症候群 | H32: 6 | I32: 不慮の事故 | J32: 2 | L32: 1
A33: 10 22 | B33: 26 | C33: 先天奇形，変形及び染色体異常 | D33: 11 | E33: 乳幼児突然死症候群 | F33: 4 | G33: 周産期に特異的な呼吸障害 及び心血管障害 | H33: 3 | J33: 2 | L33: 1
A34: 11 23 | B34: 40 | C34: 先天奇形，変形及び染色体異常 | D34: 17 | E34: 乳幼児突然死症候群 | F34: 9 | G34: 周産期に特異的な呼吸障害及び心血管障害 | H34: 5 | I34: その他のすべての疾患 | J34: 4 | K34: 肺 炎 周産期に特異的な感染症 その他の周産期に発生した病態 不慮の事故 | L34: 1
A35: 12 24 | B35: 34 | C35: 先天奇形，変形及び染色体異常 | D35: 12 | E35: 乳幼児突然死症候群 | F35: 6 | G35: 周産期に特異的な呼吸障害及び心血管障害 | H35: 5 | I35: 胎児及び新生児の出血性障害及び血液障害 | J35: 3 | K35: 肺 炎 | L35: 2
A36: 13 25 | B36: 35 | C36: 先天奇形，変形及び染色体異常 | D36: 11 | E36: 乳幼児突然死症候群 | F36: 7 | G36: 周産期に特異的な呼吸障害及び心血管障害 | H36: 4 | I36: 胎児及び新生児の出血性障害及び血液障害 | J36: 3 | K36: 妊娠期間及び胎児発育に関連する障害 その他のすべての疾患 | L36: 2
A37: 14 26 | B37: 26 | C37: 先天奇形，変形及び染色体異常 | D37: 13 | E37: 周産期に特異的な呼吸障害及び心血管障害 乳幼児突然死症候群 | F37: 3 | G37: 0 | H37: 0 | I37: 心疾患 その他のすべての疾患 | J37: 2 | K37: 0 | L37: 0
A38: 15 27 | B38: 27 | C38: 先天奇形，変形及び染色体異常 | D38: 8 | E38: 乳幼児突然死症候群 | F38: 6 | G38: 周産期に特異的な呼吸障害及び心血管障害 | H38: 3 | I38: 心疾患 その他の周産期に発生した病態 | J38: 2 | K38: 0 | L38: 0
A39: 16 28 | B39: 29 | C39: 先天奇形，変形及び染色体異常 | D39: 8 | E39: 乳幼児突然死症候群 | F39: 7 | G39: 周産期に特異的な呼吸障害及び心血管障害 | H39: 5 | I39: 不慮の事故 | J39: 3 | K39: 腸管感染症 その他の感染症及び寄生虫症 心疾患 妊娠期間及び胎児発育に関連する障害 その他のすべての疾患 | L39: 1
A40: 17 29 | B40: 25 | C40: 先天奇形，変形及び染色体異常 | D40: 9 | E40: 周産期に特異的な呼吸障害及び心血管障害 その他のすべての疾患 | F40: 4 | G40: 0 | H40: 0 | I40: 周産期に特異的な感染症 | J40: 2 | K40: 代謝障害 心疾患 ヘルニア及び腸閉塞 妊娠期間及び胎児発育に関連する障害 胎児及び新生児の出血性障害及び血液障害 不慮の事故 | L40: 1
A41: 18 30 | B41: ='3 乳児死亡数，月・性・区別'!C4 -> 34 | C41: ='[3]■4 年次別，乳児死因順位'!$C$4 -> 先天奇形，変形及び染色体異常 | D41: ='[3]■4 年次別，乳児死因順位'!$D$4 -> 13 | E41: ='[3]■4 年次別，乳児死因順位'!$E$4 -> 周産期に特異的な呼吸障害及び心血管障害 | F41: ='[3]■4 年次別，乳児死因順位'!$F$4 -> 8 | G41: ='[3]■4 年次別，乳児死因順位'!$G$4 -> 心疾患 その他の周産期に発生した病態 その他のすべての疾患 | H41: ='[3]■4 年次別，乳児死因順位'!$H$4 -> 2 | I41: ='[3]■4 年次別，乳児死因順位'!$I$4 -> 0 | J41: ='[3]■4 年次別，乳児死因順位'!$J$4 -> 0 | K41: ='[3]■4 年次別，乳児死因順位'!$K$4 -> 0 | L41: ='[3]■4 年次別，乳児死因順位'!$L$4 -> 0

Sheet 5 生存期間別，乳児死亡数・率
A1: 5 生存期間別にみた年次別乳児死亡数及び乳児死亡率（出生10万対）
A3: 年次 | B3: 総数 | C3: 日齢―月齢
C4: 1 日 未満 | D4: 1日 | E4: 2日 | F4: 3日 | G4: 4日 | H4: 5日 | I4: 6日 | J4: １週未満 | K4: 1週～ 2週未満 | L4: 2週～ 3週未満 | M4: 3週～ 4週未満 | N4: 4週未満 | O4: 4週～ 2か月未満 | P4: 2か月 | Q4: 3か月 | R4: 4か月 | S4: 5か月 | T4: 6か月 | U4: 7か月 | V4: 8か月 | W4: 9か月 | X4: 10か月 | Y4: 11か月
B5: 乳児死亡数
A6: 85 60 | B6: 101 | C6: 25 | D6: 7 | E6: 6 | F6: 2 | G6: 4 | H6: 2 | I6: 0 | J6: 46 | K6: 9 | L6: 5 | M6: 3 | N6: 63 | O6: 6 | P6: 9 | Q6: 0 | R6: 6 | S6: 2 | T6: 2 | U6: 0 | V6: 3 | W6: 2 | X6: 4 | Y6: 4
A7: 1986 昭和61年 | B7: 86 | C7: 19 | D7: 1 | E7: 2 | F7: 4 | G7: 2 | H7: 2 | I7: 3 | J7: 33 | K7: 9 | L7: 2 | M7: 4 | N7: 48 | O7: 7 | P7: 3 | Q7: 5 | R7: 4 | S7: 7 | T7: 3 | U7: 0 | V7: 3 | W7: 2 | X7: 3 | Y7: 1
A8: 1987 昭和62年 | B8: 88 | C8: 22 | D8: 8 | E8: 4 | F8: 2 | G8: 2 | H8: 0 | I8: 0 | J8: 38 | K8: 7 | L8: 2 | M8: 5 | N8: 52 | O8: 8 | P8: 5 | Q8: 1 | R8: 2 | S8: 2 | T8: 3 | U8: 3 | V8: 5 | W8: 1 | X8: 6 | Y8: 0
A9: 1988 昭和63年 | B9: 80 | C9: 32 | D9: 2 | E9: 1 | F9: 0 | G9: 2 | H9: 2 | I9: 0 | J9: 39 | K9: 2 | L9: 3 | M9: 0 | N9: 44 | O9: 6 | P9: 2 | Q9: 10 | R9: 0 | S9: 4 | T9: 5 | U9: 2 | V9: 3 | W9: 3 | X9: 0 | Y9: 1
A10: 89 平成元年 | B10: 75 | C10: 20 | D10: 6 | E10: 3 | F10: 2 | G10: 4 | H10: 0 | I10: 1 | J10: 36 | K10: 1 | L10: 3 | M10: 0 | N10: 40 | O10: 5 | P10: 5 | Q10: 4 | R10: 3 | S10: 3 | T10: 2 | U10: 2 | V10: 3 | W10: 5 | X10: 0 | Y10: 3
A11: 90 2 | B11: 85 | C11: 24 | D11: 5 | E11: 3 | F11: 0 | G11: 0 | H11: 1 | I11: 0 | J11: 33 | K11: 5 | L11: 7 | M11: 2 | N11: 47 | O11: 6 | P11: 10 | Q11: 6 | R11: 5 | S11: 3 | T11: 3 | U11: 1 | V11: 1 | W11: 1 | X11: 2 | Y11: 0
A12: 91 3 | B12: 63 | C12: 17 | D12: 7 | E12: 4 | F12: 2 | G12: 0 | H12: 0 | I12: 1 | J12: 31 | K12: 1 | L12: 1 | M12: 3 | N12: 36 | O12: 4 | P12: 4 | Q12: 4 | R12: 5 | S12: 2 | T12: 1 | U12: 1 | V12: 2 | W12: 3 | X12: 0 | Y12: 1
A13: 93 4 | B13: 57 | C13: 16 | D13: 3 | E13: 1 | F13: 0 | G13: 0 | H13: 2 | I13: 1 | J13: 23 | K13: 3 | L13: 1 | M13: 2 | N13: 29 | O13: 6 | P13: 4 | Q13: 4 | R13: 1 | S13: 1 | T13: 1 | U13: 4 | V13: 1 | W13: 2 | X13: 0 | Y13: 4
A14: 1993 平成5年 | B14: 51 | C14: 16 | D14: 2 | E14: 0 | F14: 1 | G14: 0 | H14: 0 | I14: 0 | J14: 19 | K14: 1 | L14: 0 | M14: 0 | N14: 20 | O14: 7 | P14: 1 | Q14: 4 | R14: 4 | S14: 2 | T14: 5 | U14: 5 | V14: 1 | W14: 1 | X14: 0 | Y14: 1
A15: 94 6 | B15: 65 | C15: 14 | D15: 6 | E15: 2 | F15: 1 | G15: 0 | H15: 0 | I15: 0 | J15: 23 | K15: 5 | L15: 3 | M15: 2 | N15: 33 | O15: 6 | P15: 6 | Q15: 1 | R15: 4 | S15: 3 | T15: 2 | U15: 2 | V15: 4 | W15: 3 | X15: 1 | Y15: 0
A16: 95 7 | B16: 53 | C16: 12 | D16: 0 | E16: 0 | F16: 2 | G16: 0 | H16: 0 | I16: 1 | J16: 15 | K16: 4 | L16: 5 | M16: 1 | N16: 25 | O16: 6 | P16: 2 | Q16: 3 | R16: 5 | S16: 1 | T16: 3 | U16: 2 | V16: 1 | W16: 3 | X16: 2 | Y16: 0
A17: 96 8 | B17: 55 | C17: 11 | D17: 6 | E17: 1 | F17: 2 | G17: 2 | H17: 0 | I17: 0 | J17: 22 | K17: 5 | L17: 3 | M17: 1 | N17: 31 | O17: 6 | P17: 3 | Q17: 3 | R17: 2 | S17: 2 | T17: 0 | U17: 0 | V17: 3 | W17: 1 | X17: 1 | Y17: 3
A18: 97 9 | B18: 52 | C18: 14 | D18: 2 | E18: 1 | F18: 0 | G18: 0 | H18: 2 | I18: 0 | J18: 19 | K18: 2 | L18: 5 | M18: 4 | N18: 30 | O18: 4 | P18: 2 | Q18: 5 | R18: 1 | S18: 2 | T18: 1 | U18: 1 | V18: 2 | W18: 1 | X18: 2 | Y18: 1
A19: 1998 平成10年 | B19: 45 | C19: 15 | D19: 4 | E19: 1 | F19: 0 | G19: 1 | H19: 0 | I19: 0 | J19: 21 | K19: 0 | L19: 0 | M19: 3 | N19: 24 | O19: 4 | P19: 2 | Q19: 6 | R19: 1 | S19: 1 | T19: 2 | U19: 2 | V19: 1 | W19: 0 | X19: 1 | Y19: 1
A20: 99 11 | B20: 32 | C20: 13 | D20: 0 | E20: 0 | F20: 0 | G20: 0 | H20: 1 | I20: 0 | J20: 14 | K20: 3 | L20: 3 | M20: 0 | N20: 20 | O20: 2 | P20: 3 | Q20: 3 | R20: 0 | S20: 1 | T20: 0 | U20: 0 | V20: 1 | W20: 1 | X20: 0 | Y20: 1
A21: 2000 12 | B21: 34 | C21: 8 | D21: 1 | E21: 0 | F21: 1 | G21: 0 | H21: 0 | I21: 0 | J21: 10 | K21: 1 | L21: 1 | M21: 1 | N21: 13 | O21: 3 | P21: 1 | Q21: 4 | R21: 1 | S21: 6 | T21: 3 | U21: 0 | V21: 2 | W21: 0 | X21: 0 | Y21: 1
A22: 01 13 | B22: 33 | C22: 9 | D22: 0 | E22: 0 | F22: 1 | G22: 0 | H22: 0 | I22: 0 | J22: 10 | K22: 2 | L22: 4 | M22: 3 | N22: 19 | O22: 5 | P22: 0 | Q22: 5 | R22: 1 | S22: 1 | T22: 1 | U22: 0 | V22: 1 | W22: 0 | X22: 0 | Y22: 0
A23: 02 14 | B23: 31 | C23: 8 | D23: 2 | E23: 0 | F23: 0 | G23: 0 | H23: 0 | I23: 1 | J23: 11 | K23: 2 | L23: 2 | M23: 0 | N23: 15 | O23: 3 | P23: 3 | Q23: 2 | R23: 3 | S23: 0 | T23: 0 | U23: 0 | V23: 4 | W23: 0 | X23: 0 | Y23: 1
A24: 03 15 | B24: 40 | C24: 11 | D24: 2 | E24: 1 | F24: 0 | G24: 0 | H24: 0 | I24: 1 | J24: 15 | K24: 4 | L24: 1 | M24: 0 | N24: 20 | O24: 2 | P24: 3 | Q24: 3 | R24: 3 | S24: 0 | T24: 3 | U24: 1 | V24: 3 | W24: 1 | X24: 1 | Y24: 0
A25: 04 16 | B25: 45 | C25: 12 | D25: 2 | E25: 0 | F25: 1 | G25: 0 | H25: 0 | I25: 1 | J25: 16 | K25: 2 | L25: 4 | M25: 1 | N25: 23 | O25: 6 | P25: 4 | Q25: 3 | R25: 1 | S25: 2 | T25: 1 | U25: 0 | V25: 1 | W25: 1 | X25: 1 | Y25: 2
A26: 05 17 | B26: 38 | C26: 11 | D26: 5 | E26: 0 | F26: 0 | G26: 0 | H26: 0 | I26: 0 | J26: 16 | K26: 4 | L26: 3 | M26: 2 | N26: 25 | O26: 3 | P26: 1 | Q26: 2 | R26: 3 | S26: 1 | T26: 1 | U26: 1 | V26: 1 | W26: 0 | X26: 0 | Y26: 0
A27: 06 18 | B27: 34 | C27: 6 | D27: 1 | E27: 2 | F27: 2 | G27: 1 | H27: 0 | I27: 1 | J27: 13 | K27: 1 | L27: 0 | M27: 2 | N27: 16 | O27: 2 | P27: 3 | Q27: 2 | R27: 2 | S27: 2 | T27: 3 | U27: 1 | V27: 1 | W27: 0 | X27: 1 | Y27: 1
A28: 07 19 | B28: 34 | C28: 9 | D28: 0 | E28: 1 | F28: 0 | G28: 0 | H28: 2 | I28: 1 | J28: 13 | K28: 1 | L28: 1 | M28: 2 | N28: 17 | O28: 3 | P28: 6 | Q28: 3 | R28: 1 | S28: 0 | T28: 0 | U28: 0 | V28: 1 | W28: 0 | X28: 0 | Y28: 3
A29: 08 20 | B29: 34 | C29: 9 | D29: 3 | E29: 0 | F29: 1 | G29: 0 | H29: 1 | I29: 0 | J29: 14 | K29: 1 | L29: 2 | M29: 1 | N29: 18 | O29: 4 | P29: 3 | Q29: 2 | R29: 1 | S29: 1 | T29: 1 | U29: 0 | V29: 1 | W29: 2 | X29: 0 | Y29: 1
A30: 09 21 | B30: 33 | C30: 6 | D30: 2 | E30: 0 | F30: 1 | G30: 0 | H30: 0 | I30: 0 | J30: 9 | K30: 1 | L30: 2 | M30: 2 | N30: 14 | O30: 3 | P30: 3 | Q30: 2 | R30: 2 | S30: 2 | T30: 1 | U30: 2 | V30: 1 | W30: 1 | X30: 1 | Y30: 1
A31: 10 22 | B31: 26 | C31: 8 | D31: 2 | E31: 0 | F31: 0 | G31: 1 | H31: 0 | I31: 0 | J31: 11 | K31: 2 | L31: 1 | M31: 1 | N31: 15 | O31: 4 | P31: 1 | Q31: 1 | R31: 0 | S31: 3 | T31: 2 | U31: 0 | V31: 0 | W31: 0 | X31: 0 | Y31: 0
A32: 11 23 | B32: 40 | C32: 9 | D32: 2 | E32: 2 | F32: 1 | G32: 0 | H32: 0 | I32: 0 | J32: 14 | K32: 3 | L32: 2 | M32: 1 | N32: 20 | O32: 2 | P32: 3 | Q32: 5 | R32: 3 | S32: 1 | T32: 1 | U32: 2 | V32: 0 | W32: 1 | X32: 1 | Y32: 1
A33: 12 24 | B33: 34 | C33: 7 | D33: 1 | E33: 1 | F33: 0 | G33: 1 | H33: 1 | I33: 0 | J33: 11 | K33: 0 | L33: 0 | M33: 2 | N33: 13 | O33: 5 | P33: 9 | Q33: 1 | R33: 3 | S33: 1 | T33: 0 | U33: 0 | V33: 1 | W33: 1 | X33: 0 | Y33: 0
A34: 13 25 | B34: 34 | C34: 8 | D34: 1 | E34: 0 | F34: 2 | G34: 1 | H34: 0 | I34: 1 | J34: 13 | K34: 2 | L34: 1 | M34: 1 | N34: 17 | O34: 3 | P34: 4 | Q34: 1 | R34: 3 | S34: 0 | T34: 1 | U34: 0 | V34: 1 | W34: 2 | X34: 2 | Y34: 0
A35: 14 26 | B35: 26 | C35: 9 | D35: 2 | E35: 0 | F35: 1 | G35: 1 | H35: 0 | I35: 0 | J35: 13 | K35: 0 | L35: 1 | M35: 1 | N35: 15 | O35: 2 | P35: 0 | Q35: 3 | R35: 0 | S35: 2 | T35: 1 | U35: 2 | V35: 1 | W35: 0 | X35: 0 | Y35: 0
A36: 15 27 | B36: 27 | C36: 5 | D36: 1 | E36: 1 | F36: 0 | G36: 0 | H36: 2 | I36: 0 | J36: 9 | K36: 0 | L36: 1 | M36: 0 | N36: 10 | O36: 5 | P36: 2 | Q36: 0 | R36: 2 | S36: 3 | T36: 1 | U36: 2 | V36: 0 | W36: 0 | X36: 1 | Y36: 1
A37: 16 28 | B37: 29 | C37: 6 | D37: 1 | E37: 0 | F37: 0 | G37: 1 | H37: 0 | I37: 1 | J37: 9 | K37: 0 | L37: 1 | M37: 2 | N37: 12 | O37: 5 | P37: 3 | Q37: 1 | R37: 1 | S37: 0 | T37: 1 | U37: 1 | V37: 0 | W37: 2 | X37: 1 | Y37: 2
A38: 17 29 | B38: 25 | C38: 7 | D38: 4 | E38: 0 | F38: 0 | G38: 1 | H38: 0 | I38: 1 | J38: 13 | K38: 1 | L38: 0 | M38: 0 | N38: 14 | O38: 3 | P38: 0 | Q38: 1 | R38: 4 | S38: 2 | T38: 1 | U38: 0 | V38: 0 | W38: 0 | X38: 0 | Y38: 0
A39: 18 30 | B39: =SUM(N39:Y39) -> 34 | C39: ='6 生存期間・性別，区別乳児死亡数'!D$6 -> 10 | D39: ='6 生存期間・性別，区別乳児死亡数'!E$6 -> 1 | E39: ='6 生存期間・性別，区別乳児死亡数'!F$6 -> 0 | F39: ='6 生存期間・性別，区別乳児死亡数'!G$6 -> 3 | G39: ='6 生存期間・性別，区別乳児死亡数'!H$6 -> 0 | H39: ='6 生存期間・性別，区別乳児死亡数'!I$6 -> 1 | I39: ='6 生存期間・性別，区別乳児死亡数'!J$6 -> 0 | J39: =SUM(C39:I39) -> 15 | K39: ='6 生存期間・性別，区別乳児死亡数'!L$6 -> 1 | L39: ='6 生存期間・性別，区別乳児死亡数'!M$6 -> 3 | M39: ='6 生存期間・性別，区別乳児死亡数'!N$6 -> 1 | N39: =SUM(J39:M39) -> 20 | O39: ='6 生存期間・性別，区別乳児死亡数'!P$6 -> 3 | P39: ='6 生存期間・性別，区別乳児死亡数'!Q$6 -> 2 | Q39: ='6 生存期間・性別，区別乳児死亡数'!R$6 -> 2 | R39: ='6 生存期間・性別，区別乳児死亡数'!S$6 -> 3 | S39: ='6 生存期間・性別，区別乳児死亡数'!T$6 -> 1 | T39: ='6 生存期間・性別，区別乳児死亡数'!U$6 -> 1 | U39: ='6 生存期間・性別，区別乳児死亡数'!V$6 -> 0 | V39: ='6 生存期間・性別，区別乳児死亡数'!W$6 -> 1 | W39: ='6 生存期間・性別，区別乳児死亡数'!X$6 -> 1 | X39: ='6 生存期間・性別，区別乳児死亡数'!Y$6 -> 0 | Y39: ='6 生存期間・性別，区別乳児死亡数'!Z$6 -> 0
B40: 乳 児 死 亡 率 ( 出 生 10 万 対 ）
A41: 85 60 | B41: 522.9367298 | C41: 129.4397846 | D41: 36.24313969 | E41: 31.06554831 | F41: 10.35518277 | G41: 20.71036554 | H41: 10.35518277 | I41: 0 | J41: 238.1692037 | K41: 46.59832246 | L41: 25.88795692 | M41: 15.53277415 | N41: 326.1882572 | O41: 31.06554831 | P41: 46.59832246 | Q41: 0 | R41: 31.06554831 | S41: 10.35518277 | T41: 10.35518277 | U41: 0 | V41: 15.53277415 | W41: 10.35518277 | X41: 20.71036554 | Y41: 20.71036554
A42: 1986 昭和61年 | B42: 449.5556717 | C42: 99.3204391 | D42: 5.227391532 | E42: 10.45478306 | F42: 20.90956613 | G42: 10.45478306 | H42: 10.45478306 | I42: 15.68217459 | J42: 172.5039205 | K42: 47.04652378 | L42: 10.45478306 | M42: 20.90956613 | N42: 250.9147935 | O42: 36.59174072 | P42: 15.68217459 | Q42: 26.13695766 | R42: 20.90956613 | S42: 36.59174072 | T42: 15.68217459 | U42: 0 | V42: 15.68217459 | W42: 10.45478306 | X42: 15.68217459 | Y42: 5.227391532
A43: 1987 昭和62年 | B43: 474.828684 | C43: 118.707171 | D43: 43.166244 | E43: 21.583122 | F43: 10.791561 | G43: 10.791561 | H43: 0 | I43: 0 | J43: 205.039659 | K43: 37.7704635 | L43: 10.791561 | M43: 26.9789025 | N43: 280.580586 | O43: 43.166244 | P43: 26.9789025 | Q43: 5.3957805 | R43: 10.791561 | S43: 10.791561 | T43: 16.1873415 | U43: 16.1873415 | V43: 26.9789025 | W43: 5.3957805 | X43: 32.374683 | Y43: 0
A44: 1988 昭和63年 | B44: 439.1743522 | C44: 175.6697409 | D44: 10.97935881 | E44: 5.489679403 | F44: 0 | G44: 10.97935881 | H44: 10.97935881 | I44: 0 | J44: 214.0974967 | K44: 10.97935881 | L44: 16.46903821 | M44: 0 | N44: 241.5458937 | O44: 32.93807642 | P44: 10.97935881 | Q44: 54.89679403 | R44: 0 | S44: 21.95871761 | T44: 27.44839701 | U44: 10.97935881 | V44: 16.46903821 | W44: 16.46903821 | X44: 0 | Y44: 5.489679403
A45: 89 平成元年 | B45: 429.0863322 | C45: 114.4230219 | D45: 34.32690657 | E45: 17.16345329 | F45: 11.44230219 | G45: 22.88460438 | H45: 0 | I45: 5.721151096 | J45: 205.9614394 | K45: 5.721151096 | L45: 17.16345329 | M45: 0 | N45: 228.8460438 | O45: 28.60575548 | P45: 28.60575548 | Q45: 22.88460438 | R45: 17.16345329 | S45: 17.16345329 | T45: 11.44230219 | U45: 11.44230219 | V45: 17.16345329 | W45: 28.60575548 | X45: 0 | Y45: 17.16345329
A46: 90 2 | B46: 487.804878 | C46: 137.733142 | D46: 28.69440459 | E46: 17.21664275 | F46: 0 | G46: 0 | H46: 5.738880918 | I46: 0 | J46: 189.3830703 | K46: 28.69440459 | L46: 40.17216643 | M46: 11.47776184 | N46: 269.7274032 | O46: 34.43328551 | P46: 57.38880918 | Q46: 34.43328551 | R46: 28.69440459 | S46: 17.21664275 | T46: 17.21664275 | U46: 5.738880918 | V46: 5.738880918 | W46: 5.738880918 | X46: 11.47776184 | Y46: 0
A47: 91 3 | B47: 360.8660786 | C47: 97.37656089 | D47: 40.09623095 | E47: 22.91213197 | F47: 11.45606599 | G47: 0 | H47: 0 | I47: 5.728032993 | J47: 177.5690228 | K47: 5.728032993 | L47: 5.728032993 | M47: 17.18409898 | N47: 206.2091878 | O47: 22.91213197 | P47: 22.91213197 | Q47: 22.91213197 | R47: 28.64016497 | S47: 11.45606599 | T47: 5.728032993 | U47: 5.728032993 | V47: 11.45606599 | W47: 17.18409898 | X47: 0 | Y47: 5.728032993
A48: 93 4 | B48: 329.004329 | C48: 92.35209235 | D48: 17.31601732 | E48: 5.772005772 | F48: 0 | G48: 0 | H48: 11.54401154 | I48: 5.772005772 | J48: 132.7561328 | K48: 17.31601732 | L48: 5.772005772 | M48: 11.54401154 | N48: 167.3881674 | O48: 34.63203463 | P48: 23.08802309 | Q48: 23.08802309 | R48: 5.772005772 | S48: 5.772005772 | T48: 5.772005772 | U48: 23.08802309 | V48: 5.772005772 | W48: 11.54401154 | X48: 0 | Y48: 23.08802309
A49: 1993 平成5年 | B49: 311.5264798 | C49: 97.73379757 | D49: 12.2167247 | E49: 0 | F49: 6.108362348 | G49: 0 | H49: 0 | I49: 0 | J49: 116.0588846 | K49: 6.108362348 | L49: 0 | M49: 0 | N49: 122.167247 | O49: 42.75853644 | P49: 6.108362348 | Q49: 24.43344939 | R49: 24.43344939 | S49: 12.2167247 | T49: 30.54181174 | U49: 30.54181174 | V49: 6.108362348 | W49: 6.108362348 | X49: 0 | Y49: 6.108362348
A50: 94 6 | B50: 381.0752184 | C50: 82.07773934 | D50: 35.176174 | E50: 11.72539133 | F50: 5.862695667 | G50: 0 | H50: 0 | I50: 0 | J50: 134.8420004 | K50: 29.31347834 | L50: 17.588087 | M50: 11.72539133 | N50: 193.468957 | O50: 35.176174 | P50: 35.176174 | Q50: 5.862695667 | R50: 23.45078267 | S50: 17.588087 | T50: 11.72539133 | U50: 11.72539133 | V50: 23.45078267 | W50: 17.588087 | X50: 5.862695667 | Y50: 0
A51: 95 7 | B51: 326.6161336 | C51: 73.9508227 | D51: 0 | E51: 0 | F51: 12.32513712 | G51: 0 | H51: 0 | I51: 6.162568559 | J51: 92.43852838 | K51: 24.65027423 | L51: 30.81284279 | M51: 6.162568559 | N51: 154.064214 | O51: 36.97541135 | P51: 12.32513712 | Q51: 18.48770568 | R51: 30.81284279 | S51: 6.162568559 | T51: 18.48770568 | U51: 12.32513712 | V51: 6.162568559 | W51: 18.48770568 | X51: 12.32513712 | Y51: 0
A52: 96 8 | B52: 336.6179081 | C52: 67.32358161 | D52: 36.72195361 | E52: 6.120325601 | F52: 12.2406512 | G52: 12.2406512 | H52: 0 | I52: 0 | J52: 134.6471632 | K52: 30.60162801 | L52: 18.3609768 | M52: 6.120325601 | N52: 189.7300936 | O52: 36.72195361 | P52: 18.3609768 | Q52: 18.3609768 | R52: 12.2406512 | S52: 12.2406512 | T52: 0 | U52: 0 | V52: 18.3609768 | W52: 6.120325601 | X52: 6.120325601 | Y52: 18.3609768
A53: 97 9 | B53: 327.6003276 | C53: 88.2000882 | D53: 12.6000126 | E53: 6.3000063 | F53: 0 | G53: 0 | H53: 12.6000126 | I53: 0 | J53: 119.7001197 | K53: 12.6000126 | L53: 31.5000315 | M53: 25.2000252 | N53: 189.000189 | O53: 25.2000252 | P53: 12.6000126 | Q53: 31.5000315 | R53: 6.3000063 | S53: 12.6000126 | T53: 6.3000063 | U53: 6.3000063 | V53: 12.6000126 | W53: 6.3000063 | X53: 12.6000126 | Y53: 6.3000063
A54: 1998 平成10年 | B54: 278.3792144 | C54: 92.79307145 | D54: 24.74481905 | E54: 6.186204763 | F54: 0 | G54: 6.186204763 | H54: 0 | I54: 0 | J54: 129.9103 | K54: 0 | L54: 0 | M54: 18.55861429 | N54: 148.4689143 | O54: 24.74481905 | P54: 12.37240953 | Q54: 37.11722858 | R54: 6.186204763 | S54: 6.186204763 | T54: 12.37240953 | U54: 12.37240953 | V54: 6.186204763 | W54: 0 | X54: 6.186204763 | Y54: 6.186204763
A55: 99 11 | B55: 208.3604636 | C55: 84.64643834 | D55: 0 | E55: 0 | F55: 0 | G55: 0 | H55: 6.511264488 | I55: 0 | J55: 91.15770283 | K55: 19.53379346 | L55: 19.53379346 | M55: 0 | N55: 130.2252898 | O55: 13.02252898 | P55: 19.53379346 | Q55: 19.53379346 | R55: 0 | S55: 6.511264488 | T55: 0 | U55: 0 | V55: 6.511264488 | W55: 6.511264488 | X55: 0 | Y55: 6.511264488
A56: 2000 12 | B56: 221.7584138 | C56: 52.1784503 | D56: 6.522306288 | E56: 0 | F56: 6.522306288 | G56: 0 | H56: 0 | I56: 0 | J56: 65.22306288 | K56: 6.522306288 | L56: 6.522306288 | M56: 6.522306288 | N56: 84.78998174 | O56: 19.56691886 | P56: 6.522306288 | Q56: 26.08922515 | R56: 6.522306288 | S56: 39.13383773 | T56: 19.56691886 | U56: 0 | V56: 13.04461258 | W56: 0 | X56: 0 | Y56: 6.522306288
A57: 01 13 | B57: 215.5172414 | C57: 58.77742947 | D57: 0 | E57: 0 | F57: 6.530825496 | G57: 0 | H57: 0 | I57: 0 | J57: 65.30825496 | K57: 13.06165099 | L57: 26.12330199 | M57: 19.59247649 | N57: 124.0856844 | O57: 32.65412748 | P57: 0 | Q57: 32.65412748 | R57: 6.530825496 | S57: 6.530825496 | T57: 6.530825496 | U57: 0 | V57: 6.530825496 | W57: 0 | X57: 0 | Y57: 0
A58: 02 14 | B58: 199.0113629 | C58: 51.35777107 | D58: 12.83944277 | E58: 0 | F58: 0 | G58: 0 | H58: 0 | I58: 6.419721384 | J58: 70.61693523 | K58: 12.83944277 | L58: 12.83944277 | M58: 0 | N58: 96.29582076 | O58: 19.25916415 | P58: 19.25916415 | Q58: 12.83944277 | R58: 19.25916415 | S58: 0 | T58: 0 | U58: 0 | V58: 25.67888554 | W58: 0 | X58: 0 | Y58: 6.419721384
A59: 03 15 | B59: 266.6844456 | C59: 73.33822255 | D59: 13.33422228 | E59: 6.667111141 | F59: 0 | G59: 0 | H59: 0 | I59: 6.667111141 | J59: 100.0066671 | K59: 26.66844456 | L59: 6.667111141 | M59: 0 | N59: 133.3422228 | O59: 13.33422228 | P59: 20.00133342 | Q59: 20.00133342 | R59: 20.00133342 | S59: 0 | T59: 20.00133342 | U59: 6.667111141 | V59: 20.00133342 | W59: 6.667111141 | X59: 6.667111141 | Y59: 0
A60: 04 16 | B60: 305.1054309 | C60: 81.36144823 | D60: 13.56024137 | E60: 0 | F60: 6.780120686 | G60: 0 | H60: 0 | I60: 6.780120686 | J60: 108.481931 | K60: 13.56024137 | L60: 27.12048274 | M60: 6.780120686 | N60: 155.9427758 | O60: 40.68072412 | P60: 27.12048274 | Q60: 20.34036206 | R60: 6.780120686 | S60: 13.56024137 | T60: 6.780120686 | U60: 0 | V60: 6.780120686 | W60: 6.780120686 | X60: 6.780120686 | Y60: 13.56024137
A61: 05 17 | B61: 267.9075014 | C61: 77.55217146 | D61: 35.25098703 | E61: 0 | F61: 0 | G61: 0 | H61: 0 | I61: 0 | J61: 112.8031585 | K61: 28.20078962 | L61: 21.15059222 | M61: 14.10039481 | N61: 176.2549351 | O61: 21.15059222 | P61: 7.050197406 | Q61: 14.10039481 | R61: 21.15059222 | S61: 7.050197406 | T61: 7.050197406 | U61: 7.050197406 | V61: 7.050197406 | W61: 0 | X61: 0 | Y61: 0
A62: 06 18 | B62: 230.8214528 | C62: 40.73319756 | D62: 6.788866259 | E62: 13.57773252 | F62: 13.57773252 | G62: 6.788866259 | H62: 0 | I62: 6.788866259 | J62: 88.25526137 | K62: 6.788866259 | L62: 0 | M62: 13.57773252 | N62: 108.6218601 | O62: 13.57773252 | P62: 20.36659878 | Q62: 13.57773252 | R62: 13.57773252 | S62: 13.57773252 | T62: 20.36659878 | U62: 6.788866259 | V62: 6.788866259 | W62: 0 | X62: 6.788866259 | Y62: 6.788866259
A63: 07 19 | B63: 234.5151055 | C63: 62.07752793 | D63: 0 | E63: 6.897503104 | F63: 0 | G63: 0 | H63: 13.79500621 | I63: 6.897503104 | J63: 89.66754035 | K63: 6.897503104 | L63: 6.897503104 | M63: 13.79500621 | N63: 117.2575528 | O63: 20.69250931 | P63: 41.38501862 | Q63: 20.69250931 | R63: 6.897503104 | S63: 0 | T63: 0 | U63: 0 | V63: 6.897503104 | W63: 0 | X63: 0 | Y63: 20.69250931
A64: 08 20 | B64: 229.0333446 | C64: 60.62647356 | D64: 20.20882452 | E64: 0 | F64: 6.73627484 | G64: 0 | H64: 6.73627484 | I64: 0 | J64: 94.30784776 | K64: 6.73627484 | L64: 13.47254968 | M64: 6.73627484 | N64: 121.2529471 | O64: 26.94509936 | P64: 20.20882452 | Q64: 13.47254968 | R64: 6.73627484 | S64: 6.73627484 | T64: 6.73627484 | U64: 0 | V64: 6.73627484 | W64: 13.47254968 | X64: 0 | Y64: 6.73627484
A65: 09 21 | B65: 227.4920722 | C65: 41.36219495 | D65: 13.78739832 | E65: 0 | F65: 6.893699159 | G65: 0 | H65: 0 | I65: 0 | J65: 62.04329243 | K65: 6.893699159 | L65: 13.78739832 | M65: 13.78739832 | N65: 96.51178823 | O65: 20.68109748 | P65: 20.68109748 | Q65: 13.78739832 | R65: 13.78739832 | S65: 13.78739832 | T65: 6.893699159 | U65: 13.78739832 | V65: 6.893699159 | W65: 6.893699159 | X65: 6.893699159 | Y65: 6.893699159
A66: 10 22 | B66: 176.402741 | C66: 54.27776647 | D66: 13.56944162 | E66: 0 | F66: 0 | G66: 6.784720809 | H66: 0 | I66: 0 | J66: 74.6319289 | K66: 13.56944162 | L66: 6.784720809 | M66: 6.784720809 | N66: 101.7708121 | O66: 27.13888323 | P66: 6.784720809 | Q66: 6.784720809 | R66: 0 | S66: 20.35416243 | T66: 13.56944162 | U66: 0 | V66: 0 | W66: 0 | X66: 0 | Y66: 0
A67: 11 23 | B67: 276.0334 | C67: 62.10751501 | D67: 13.80167 | E67: 13.80167 | F67: 6.900835001 | G67: 0 | H67: 0 | I67: 0 | J67: 96.61169001 | K67: 20.702505 | L67: 13.80167 | M67: 6.900835001 | N67: 138.0167 | O67: 13.80167 | P67: 20.702505 | Q67: 34.50417501 | R67: 20.702505 | S67: 6.900835001 | T67: 6.900835001 | U67: 13.80167 | V67: 0 | W67: 6.900835001 | X67: 6.900835001 | Y67: 6.900835001
A68: 12 24 | B68: 234.6931732 | C68: 48.31918272 | D68: 6.902740388 | E68: 6.902740388 | F68: 0 | G68: 6.902740388 | H68: 6.902740388 | I68: 0 | J68: 75.93014427 | K68: 0 | L68: 0 | M68: 13.80548078 | N68: 89.73562504 | O68: 34.51370194 | P68: 62.12466349 | Q68: 6.902740388 | R68: 20.70822116 | S68: 6.902740388 | T68: 0 | U68: 0 | V68: 6.902740388 | W68: 6.902740388 | X68: 0 | Y68: 0
A69: 13 25 | B69: 233.020355 | C69: 54.82831883 | D69: 6.853539853 | E69: 0 | F69: 13.70707971 | G69: 6.853539853 | H69: 0 | I69: 6.853539853 | J69: 89.09601809 | K69: 13.70707971 | L69: 6.853539853 | M69: 6.853539853 | N69: 116.5101775 | O69: 20.56061956 | P69: 27.41415941 | Q69: 6.853539853 | R69: 20.56061956 | S69: 0 | T69: 6.853539853 | U69: 0 | V69: 6.853539853 | W69: 13.70707971 | X69: 13.70707971 | Y69: 0
A70: 14 26 | B70: 178.4733663 | C70: 61.77924217 | D70: 13.72872048 | E70: 0 | F70: 6.864360242 | G70: 6.864360242 | H70: 0 | I70: 0 | J70: 89.23668314 | K70: 0 | L70: 6.864360242 | M70: 6.864360242 | N70: 102.9654036 | O70: 13.72872048 | P70: 0 | Q70: 20.59308072 | R70: 0 | S70: 13.72872048 | T70: 6.864360242 | U70: 13.72872048 | V70: 6.864360242 | W70: 0 | X70: 0 | Y70: 0
A71: 15 27 | B71: 185.0709439 | C71: 34.27239701 | D71: 6.854479402 | E71: 6.854479402 | F71: 0 | G71: 0 | H71: 13.7089588 | I71: 0 | J71: 61.69031462 | K71: 0 | L71: 6.854479402 | M71: 0 | N71: 68.54479402 | O71: 34.27239701 | P71: 13.7089588 | Q71: 0 | R71: 13.7089588 | S71: 20.56343821 | T71: 6.854479402 | U71: 13.7089588 | V71: 0 | W71: 0 | X71: 6.854479402 | Y71: 6.854479402
A72: 16 28 | B72: 206.8326082 | C72: 42.79295343 | D72: 7.132158905 | E72: 0 | F72: 0 | G72: 7.132158905 | H72: 0 | I72: 7.132158905 | J72: 64.18943014 | K72: 0 | L72: 7.132158905 | M72: 14.26431781 | N72: 85.58590685 | O72: 35.66079452 | P72: 21.39647671 | Q72: 7.132158905 | R72: 7.132158905 | S72: 0 | T72: 7.132158905 | U72: 7.132158905 | V72: 0 | W72: 14.26431781 | X72: 7.132158905 | Y72: 14.26431781
A73: 17 29 | B73: 180.8841618 | C73: 50.6475653 | D73: 28.94146589 | E73: 0 | F73: 0 | G73: 7.235366471 | H73: 0 | I73: 7.235366471 | J73: 94.05976413 | K73: 7.235366471 | L73: 0 | M73: 0 | N73: 101.2951306 | O73: 21.70609941 | P73: 0 | Q73: 7.235366471 | R73: 28.94146589 | S73: 14.47073294 | T73: 7.235366471 | U73: 0 | V73: 0 | W73: 0 | X73: 0 | Y73: 0
A74: 18 30 | B74: =B39/[1]出生数!$B55*100000 -> 256.6425121 | C74: =C39/[1]出生数!$B55*100000 -> 75.48309179 | D74: =D39/[1]出生数!$B55*100000 -> 7.548309179 | E74: =E39/[1]出生数!$B55*100000 -> 0 | F74: =F39/[1]出生数!$B55*100000 -> 22.64492754 | G74: =G39/[1]出生数!$B55*100000 -> 0 | H74: =H39/[1]出生数!$B55*100000 -> 7.548309179 | I74: =I39/[1]出生数!$B55*100000 -> 0 | J74: =J39/[1]出生数!$B55*100000 -> 113.2246377 | K74: =K39/[1]出生数!$B55*100000 -> 7.548309179 | L74: =L39/[1]出生数!$B55*100000 -> 22.64492754 | M74: =M39/[1]出生数!$B55*100000 -> 7.548309179 | N74: =N39/[1]出生数!$B55*100000 -> 150.9661836 | O74: =O39/[1]出生数!$B55*100000 -> 22.64492754 | P74: =P39/[1]出生数!$B55*100000 -> 15.09661836 | Q74: =Q39/[1]出生数!$B55*100000 -> 15.09661836 | R74: =R39/[1]出生数!$B55*100000 -> 22.64492754 | S74: =S39/[1]出生数!$B55*100000 -> 7.548309179 | T74: =T39/[1]出生数!$B55*100000 -> 7.548309179 | U74: =U39/[1]出生数!$B55*100000 -> 0 | V74: =V39/[1]出生数!$B55*100000 -> 7.548309179 | W74: =W39/[1]出生数!$B55*100000 -> 7.548309179 | X74: =X39/[1]出生数!$B55*100000 -> 0 | Y74: =Y39/[1]出生数!$B55*100000 -> 0

Sheet 6 生存期間・性別，区別乳児死亡数
A1: 6 生存期間・性別にみた区別乳児死亡数
Z2: ='3 乳児死亡数，月・性・区別'!$O$2 -> 平成30年
A3: 区 ・ 性 | C3: 総 数 | D3: 日齢―月齢
D4: 1 日 未満 | E4: 1日 | F4: 2日 | G4: 3日 | H4: 4日 | I4: 5日 | J4: 6日 | K4: １週未満 | L4: 1週～ 2週未満 | M4: 2週～ 3週未満 | N4: 3週～ 4週未満 | O4: 4週未満 | P4: 4週～ 2か月未満 | Q4: 2か月 | R4: 3か月 | S4: 4か月 | T4: 5か月 | U4: 6か月 | V4: 7か月 | W4: 8か月 | X4: 9か月 | Y4: 10か月 | Z4: 11か月
A6: 総数 | C6: =SUM(C9,C12,C15,C18,C21,C24,C27,C30,C33,C36) -> 34 | D6: =SUM(D9,D12,D15,D18,D21,D24,D27,D30,D33,D36) -> 10 | E6: =SUM(E9,E12,E15,E18,E21,E24,E27,E30,E33,E36) -> 1 | F6: 0 | G6: 3 | H6: 0 | I6: 1 | J6: 0 | K6: 15 | L6: 1 | M6: 3 | N6: 1 | O6: 20 | P6: 3 | Q6: 2 | R6: 2 | S6: 3 | T6: 1 | U6: 1 | V6: 0 | W6: 1 | X6: 1 | Y6: 0 | Z6: 0
B7: 男 | C7: =SUM(C10,C13,C16,C19,C22,C25,C28,C31,C34,C37) -> 16 | D7: 6 | E7: 1 | F7: 0 | G7: 1 | H7: 0 | I7: 0 | J7: 0 | K7: 8 | L7: 0 | M7: 2 | N7: 1 | O7: 11 | P7: 1 | Q7: 1 | R7: 0 | S7: 2 | T7: 0 | U7: 0 | V7: 0 | W7: 0 | X7: 1 | Y7: 0 | Z7: 0
B8: 女 | C8: =SUM(C11,C14,C17,C20,C23,C26,C29,C32,C35,C38) -> 18 | D8: 4 | E8: 0 | F8: 0 | G8: 2 | H8: 0 | I8: 1 | J8: 0 | K8: 7 | L8: 1 | M8: 1 | N8: 0 | O8: 9 | P8: 2 | Q8: 1 | R8: 2 | S8: 1 | T8: 1 | U8: 1 | V8: 0 | W8: 1 | X8: 0 | Y8: 0 | Z8: 0
A9: 中央 | C9: =SUM(O9:Z9) -> 6 | D9: =SUM(D10:D11) -> 0 | E9: =SUM(E10:E11) -> 0 | F9: 0 | G9: 1 | H9: 0 | I9: 1 | J9: 0 | K9: 2 | L9: 0 | M9: 2 | N9: 1 | O9: 5 | P9: 0 | Q9: 0 | R9: 0 | S9: 0 | T9: 0 | U9: 1 | V9: 0 | W9: 0 | X9: 0 | Y9: 0 | Z9: 0
B10: 男 | C10: =SUM(O10:Z10) -> 3 | D10: 0 | E10: 0 | F10: 0 | G10: 1 | H10: 0 | I10: 0 | J10: 0 | K10: =SUM(D10:J10) -> 1 | L10: 0 | M10: 1 | N10: 1 | O10: =SUM(K10:N10) -> 3 | P10: 0 | Q10: 0 | R10: 0 | S10: 0 | T10: 0 | U10: 0 | V10: 0 | W10: 0 | X10: 0 | Y10: 0 | Z10: 0
B11: 女 | C11: 3 | D11: 0 | E11: 0 | F11: 0 | G11: 0 | H11: 0 | I11: 1 | J11: 0 | K11: 1 | L11: 0 | M11: 1 | N11: 0 | O11: 2 | P11: 0 | Q11: 0 | R11: 0 | S11: 0 | T11: 0 | U11: 1 | V11: 0 | W11: 0 | X11: 0 | Y11: 0 | Z11: 0
A12: 北 | C12: 3 | D12: =SUM(D13:D14) -> 0 | E12: 1 | F12: 0 | G12: 0 | H12: 0 | I12: 0 | J12: 0 | K12: 1 | L12: 0 | M12: 0 | N12: 0 | O12: 1 | P12: 1 | Q12: =SUM(Q13:Q14) -> 0 | R12: 0 | S12: 0 | T12: 0 | U12: 0 | V12: 0 | W12: 1 | X12: 0 | Y12: 0 | Z12: 0
B13: 男 | C13: 2 | D13: 0 | E13: 1 | F13: 0 | G13: 0 | H13: 0 | I13: 0 | J13: 0 | K13: 1 | L13: 0 | M13: 0 | N13: 0 | O13: 1 | P13: 1 | Q13: 0 | R13: 0 | S13: 0 | T13: 0 | U13: 0 | V13: 0 | W13: 0 | X13: 0 | Y13: 0 | Z13: 0
B14: 女 | C14: 1 | D14: 0 | E14: 0 | F14: 0 | G14: 0 | H14: 0 | I14: 0 | J14: 0 | K14: 0 | L14: 0 | M14: 0 | N14: 0 | O14: 0 | P14: 0 | Q14: 0 | R14: 0 | S14: 0 | T14: 0 | U14: 0 | V14: 0 | W14: 1 | X14: 0 | Y14: 0 | Z14: 0
A15: 東 | C15: 5 | D15: =SUM(D16:D17) -> 3 | E15: 0 | F15: 0 | G15: 0 | H15: 0 | I15: 0 | J15: 0 | K15: 3 | L15: 0 | M15: 1 | N15: 0 | O15: 4 | P15: 0 | Q15: =SUM(Q16:Q17) -> 0 | R15: 0 | S15: 1 | T15: 0 | U15: 0 | V15: 0 | W15: 0 | X15: 0 | Y15: 0 | Z15: 0
B16: 男 | C16: 3 | D16: 2 | E16: 0 | F16: 0 | G16: 0 | H16: 0 | I16: 0 | J16: 0 | K16: 2 | L16: 0 | M16: 1 | N16: 0 | O16: 3 | P16: 0 | Q16: 0 | R16: 0 | S16: 0 | T16: 0 | U16: 0 | V16: 0 | W16: 0 | X16: 0 | Y16: 0 | Z16: 0
B17: 女 | C17: 2 | D17: 1 | E17: 0 | F17: 0 | G17: 0 | H17: 0 | I17: 0 | J17: 0 | K17: 1 | L17: 0 | M17: 0 | N17: 0 | O17: 1 | P17: 0 | Q17: 0 | R17: 0 | S17: 1 | T17: 0 | U17: 0 | V17: 0 | W17: 0 | X17: 0 | Y17: 0 | Z17: 0
A18: 白石 | C18: 4 | D18: =SUM(D19:D20) -> 1 | E18: 0 | F18: 0 | G18: 0 | H18: 0 | I18: 0 | J18: 0 | K18: 1 | L18: 0 | M18: 0 | N18: 0 | O18: 1 | P18: 1 | Q18: =SUM(Q19:Q20) -> 1 | R18: 0 | S18: 0 | T18: 0 | U18: 0 | V18: 0 | W18: 0 | X18: 1 | Y18: 0 | Z18: 0
B19: 男 | C19: 1 | D19: 0 | E19: 0 | F19: 0 | G19: 0 | H19: 0 | I19: 0 | J19: 0 | K19: 0 | L19: 0 | M19: 0 | N19: 0 | O19: 0 | P19: 0 | Q19: 0 | R19: 0 | S19: 0 | T19: 0 | U19: 0 | V19: 0 | W19: 0 | X19: 1 | Y19: 0 | Z19: 0
B20: 女 | C20: 3 | D20: 1 | E20: 0 | F20: 0 | G20: 0 | H20: 0 | I20: 0 | J20: 0 | K20: 1 | L20: 0 | M20: 0 | N20: 0 | O20: 1 | P20: 1 | Q20: 1 | R20: 0 | S20: 0 | T20: 0 | U20: 0 | V20: 0 | W20: 0 | X20: 0 | Y20: 0 | Z20: 0
A21: 厚別 | C21: 3 | D21: =SUM(D22:D23) -> 2 | E21: 0 | F21: 0 | G21: 0 | H21: 0 | I21: 0 | J21: 0 | K21: 2 | L21: 0 | M21: 0 | N21: 0 | O21: 2 | P21: 1 | Q21: =SUM(Q22:Q23) -> 0 | R21: 0 | S21: 0 | T21: 0 | U21: 0 | V21: 0 | W21: 0 | X21: 0 | Y21: 0 | Z21: 0
B22: 男 | C22: 2 | D22: 2 | E22: 0 | F22: 0 | G22: 0 | H22: 0 | I22: 0 | J22: 0 | K22: 2 | L22: 0 | M22: 0 | N22: 0 | O22: 2 | P22: 0 | Q22: 0 | R22: 0 | S22: 0 | T22: 0 | U22: 0 | V22: 0 | W22: 0 | X22: 0 | Y22: 0 | Z22: 0
B23: 女 | C23: 1 | D23: 0 | E23: 0 | F23: 0 | G23: 0 | H23: 0 | I23: 0 | J23: 0 | K23: 0 | L23: 0 | M23: 0 | N23: 0 | O23: 0 | P23: 1 | Q23: 0 | R23: 0 | S23: 0 | T23: 0 | U23: 0 | V23: 0 | W23: 0 | X23: 0 | Y23: 0 | Z23: 0
A24: 豊平 | C24: 4 | D24: =SUM(D25:D26) -> 1 | E24: 0 | F24: 0 | G24: 1 | H24: 0 | I24: 0 | J24: 0 | K24: 2 | L24: 0 | M24: 0 | N24: 0 | O24: 2 | P24: 0 | Q24: =SUM(Q25:Q26) -> 0 | R24: 1 | S24: 1 | T24: 0 | U24: 0 | V24: 0 | W24: 0 | X24: 0 | Y24: 0 | Z24: 0
B25: 男 | C25: 2 | D25: 1 | E25: 0 | F25: 0 | G25: 0 | H25: 0 | I25: 0 | J25: 0 | K25: 1 | L25: 0 | M25: 0 | N25: 0 | O25: 1 | P25: 0 | Q25: 0 | R25: 0 | S25: 1 | T25: 0 | U25: 0 | V25: 0 | W25: 0 | X25: 0 | Y25: 0 | Z25: 0
B26: 女 | C26: 2 | D26: 0 | E26: 0 | F26: 0 | G26: 1 | H26: 0 | I26: 0 | J26: 0 | K26: 1 | L26: 0 | M26: 0 | N26: 0 | O26: 1 | P26: 0 | Q26: 0 | R26: 1 | S26: 0 | T26: 0 | U26: 0 | V26: 0 | W26: 0 | X26: 0 | Y26: 0 | Z26: 0
A27: 清田 | C27: 2 | D27: =SUM(D28:D29) -> 1 | E27: 0 | F27: 0 | G27: 0 | H27: 0 | I27: 0 | J27: 0 | K27: 1 | L27: 0 | M27: 0 | N27: 0 | O27: 1 | P27: 0 | Q27: =SUM(Q28:Q29) -> 1 | R27: 0 | S27: 0 | T27: 0 | U27: 0 | V27: 0 | W27: 0 | X27: 0 | Y27: 0 | Z27: 0
B28: 男 | C28: 1 | D28: 0 | E28: 0 | F28: 0 | G28: 0 | H28: 0 | I28: 0 | J28: 0 | K28: 0 | L28: 0 | M28: 0 | N28: 0 | O28: 0 | P28: 0 | Q28: 1 | R28: 0 | S28: 0 | T28: 0 | U28: 0 | V28: 0 | W28: 0 | X28: 0 | Y28: 0 | Z28: 0
B29: 女 | C29: 1 | D29: 1 | E29: 0 | F29: 0 | G29: 0 | H29: 0 | I29: 0 | J29: 0 | K29: 1 | L29: 0 | M29: 0 | N29: 0 | O29: 1 | P29: 0 | Q29: 0 | R29: 0 | S29: 0 | T29: 0 | U29: 0 | V29: 0 | W29: 0 | X29: 0 | Y29: 0 | Z29: 0
A30: 南 | C30: 2 | D30: =SUM(D31:D32) -> 0 | E30: 0 | F30: 0 | G30: 0 | H30: 0 | I30: 0 | J30: 0 | K30: 0 | L30: 1 | M30: 0 | N30: 0 | O30: 1 | P30: 0 | Q30: =SUM(Q31:Q32) -> 0 | R30: 0 | S30: 1 | T30: 0 | U30: 0 | V30: 0 | W30: 0 | X30: 0 | Y30: 0 | Z30: 0
B31: 男 | C31: 1 | D31: 0 | E31: 0 | F31: 0 | G31: 0 | H31: 0 | I31: 0 | J31: 0 | K31: 0 | L31: 0 | M31: 0 | N31: 0 | O31: 0 | P31: 0 | Q31: 0 | R31: 0 | S31: 1 | T31: 0 | U31: 0 | V31: 0 | W31: 0 | X31: 0 | Y31: 0 | Z31: 0
B32: 女 | C32: 1 | D32: 0 | E32: 0 | F32: 0 | G32: 0 | H32: 0 | I32: 0 | J32: 0 | K32: 0 | L32: 1 | M32: 0 | N32: 0 | O32: 1 | P32: 0 | Q32: 0 | R32: 0 | S32: 0 | T32: 0 | U32: 0 | V32: 0 | W32: 0 | X32: 0 | Y32: 0 | Z32: 0
A33: 西 | C33: 3 | D33: =SUM(D34:D35) -> 2 | E33: 0 | F33: 0 | G33: 0 | H33: 0 | I33: 0 | J33: 0 | K33: 2 | L33: 0 | M33: 0 | N33: 0 | O33: 2 | P33: 0 | Q33: =SUM(Q34:Q35) -> 0 | R33: 0 | S33: 0 | T33: 1 | U33: 0 | V33: 0 | W33: 0 | X33: 0 | Y33: 0 | Z33: 0
B34: 男 | C34: 1 | D34: 1 | E34: 0 | F34: 0 | G34: 0 | H34: 0 | I34: 0 | J34: 0 | K34: 1 | L34: 0 | M34: 0 | N34: 0 | O34: 1 | P34: 0 | Q34: 0 | R34: 0 | S34: 0 | T34: 0 | U34: 0 | V34: 0 | W34: 0 | X34: 0 | Y34: 0 | Z34: 0
B35: 女 | C35: 2 | D35: 1 | E35: 0 | F35: 0 | G35: 0 | H35: 0 | I35: 0 | J35: 0 | K35: 1 | L35: 0 | M35: 0 | N35: 0 | O35: 1 | P35: 0 | Q35: 0 | R35: 0 | S35: 0 | T35: 1 | U35: 0 | V35: 0 | W35: 0 | X35: 0 | Y35: 0 | Z35: 0
A36: 手稲 | C36: 2 | D36: =SUM(D37:D38) -> 0 | E36: 0 | F36: 0 | G36: 1 | H36: 0 | I36: 0 | J36: 0 | K36: 1 | L36: 0 | M36: 0 | N36: 0 | O36: 1 | P36: 0 | Q36: =SUM(Q37:Q38) -> 0 | R36: 1 | S36: 0 | T36: 0 | U36: 0 | V36: 0 | W36: 0 | X36: 0 | Y36: 0 | Z36: 0
B37: 男 | C37: 0 | D37: 0 | E37: 0 | F37: 0 | G37: 0 | H37: 0 | I37: 0 | J37: 0 | K37: 0 | L37: 0 | M37: 0 | N37: 0 | O37: 0 | P37: 0 | Q37: 0 | R37: 0 | S37: 0 | T37: 0 | U37: 0 | V37: 0 | W37: 0 | X37: 0 | Y37: 0 | Z37: 0
B38: 女 | C38: 2 | D38: 0 | E38: 0 | F38: 0 | G38: 1 | H38: 0 | I38: 0 | J38: 0 | K38: 1 | L38: 0 | M38: 0 | N38: 0 | O38: 1 | P38: 0 | Q38: 0 | R38: 1 | S38: 0 | T38: 0 | U38: 0 | V38: 0 | W38: 0 | X38: 0 | Y38: 0 | Z38: 0

Sheet 7 月・性別，乳児死因簡単分類別死亡数
A1: 7 月・性別にみた乳児死因簡単分類別乳児死亡数
Q2: ='3 乳児死亡数，月・性・区別'!$O$2 -> 平成30年
A3: 乳児死因 簡単分類 コ ー ド | B3: 死 因 ・ 性 | E3: 総数 | F3: 1月 | G3: 2月 | H3: 3月 | I3: 4月 | J3: 5月 | K3: 6月 | L3: 7月 | M3: 8月 | N3: 9月 | O3: 10月 | P3: 11月 | Q3: 12月
B5: 総 数 | D5: 総数 | E5: =SUM(E8,E11,E14,E17,E20,E23,E32,E35,E38,E41,E44,E47,E50,E53,E56,E59,E62,E65,E68,E71,E74,E110,E137,E140,E143,E170,E173) -> 34 | F5: =SUM(F8,F11,F14,F17,F20,F23,F32,F35,F38,F41,F44,F47,F50,F53,F56,F59,F62,F65,F68,F71,F74,F110,F137,F140,F143,F170,F173) -> 2 | G5: 0 | H5: 3 | I5: 3 | J5: 3 | K5: 5 | L5: 1 | M5: 6 | N5: 4 | O5: 1 | P5: 3 | Q5: 3
D6: 男 | E6: =SUM(E9,E12,E15,E18,E21,E24,E33,E36,E39,E42,E45,E48,E51,E54,E57,E60,E63,E66,E69,E72,E75,E111,E138,E141,E144,E171,E174) -> 16 | F6: 1 | G6: 0 | H6: 1 | I6: 0 | J6: 2 | K6: 5 | L6: 0 | M6: 2 | N6: 2 | O6: 0 | P6: 1 | Q6: 2
D7: 女 | E7: 18 | F7: 1 | G7: 0 | H7: 2 | I7: 3 | J7: 1 | K7: 0 | L7: 1 | M7: 4 | N7: 2 | O7: 1 | P7: 2 | Q7: 1
A8: Ba01 | B8: 腸管感染症 | D8: 総数 | E8: =SUM(F8:Q8) -> 0 | F8: =SUM(F9:F10) -> 0 | G8: =SUM(G9:G10) -> 0 | H8: 0 | I8: 0 | J8: 0 | K8: 0 | L8: 0 | M8: 0 | N8: 0 | O8: 0 | P8: 0 | Q8: 0
D9: 男 | E9: 0 | F9: 0 | G9: 0 | H9: 0 | I9: 0 | J9: 0 | K9: 0 | L9: 0 | M9: 0 | N9: 0 | O9: 0 | P9: 0 | Q9: 0
D10: 女 | E10: 0 | F10: 0 | G10: 0 | H10: 0 | I10: 0 | J10: 0 | K10: 0 | L10: 0 | M10: 0 | N10: 0 | O10: 0 | P10: 0 | Q10: 0
A11: Ba02 | B11: 敗血症（新生児の細菌性敗血症を除く） | D11: 総数 | E11: 1 | F11: =SUM(F12:F13) -> 0 | G11: =SUM(G12:G13) -> 0 | H11: 1 | I11: 0 | J11: 0 | K11: 0 | L11: 0 | M11: 0 | N11: 0 | O11: 0 | P11: 0 | Q11: 0
D12: 男 | E12: 1 | F12: 0 | G12: 0 | H12: 1 | I12: 0 | J12: 0 | K12: 0 | L12: 0 | M12: 0 | N12: 0 | O12: 0 | P12: 0 | Q12: 0
D13: 女 | E13: 0 | F13: 0 | G13: 0 | H13: 0 | I13: 0 | J13: 0 | K13: 0 | L13: 0 | M13: 0 | N13: 0 | O13: 0 | P13: 0 | Q13: 0
A14: Ba03 | B14: 麻 疹 | D14: 総数 | E14: 0 | F14: =SUM(F15:F16) -> 0 | G14: =SUM(G15:G16) -> 0 | H14: 0 | I14: 0 | J14: 0 | K14: 0 | L14: 0 | M14: 0 | N14: 0 | O14: 0 | P14: 0 | Q14: 0
D15: 男 | E15: 0 | F15: 0 | G15: 0 | H15: 0 | I15: 0 | J15: 0 | K15: 0 | L15: 0 | M15: 0 | N15: 0 | O15: 0 | P15: 0 | Q15: 0
D16: 女 | E16: 0 | F16: 0 | G16: 0 | H16: 0 | I16: 0 | J16: 0 | K16: 0 | L16: 0 | M16: 0 | N16: 0 | O16: 0 | P16: 0 | Q16: 0
A17: Ba04 | B17: ウイルス肝炎 | D17: 総数 | E17: 0 | F17: =SUM(F18:F19) -> 0 | G17: =SUM(G18:G19) -> 0 | H17: 0 | I17: 0 | J17: 0 | K17: 0 | L17: 0 | M17: 0 | N17: 0 | O17: 0 | P17: 0 | Q17: 0
D18: 男 | E18: 0 | F18: 0 | G18: 0 | H18: 0 | I18: 0 | J18: 0 | K18: 0 | L18: 0 | M18: 0 | N18: 0 | O18: 0 | P18: 0 | Q18: 0
D19: 女 | E19: 0 | F19: 0 | G19: 0 | H19: 0 | I19: 0 | J19: 0 | K19: 0 | L19: 0 | M19: 0 | N19: 0 | O19: 0 | P19: 0 | Q19: 0
A20: Ba05 | B20: その他の感染症及び寄生虫症 | D20: 総数 | E20: 0 | F20: =SUM(F21:F22) -> 0 | G20: =SUM(G21:G22) -> 0 | H20: 0 | I20: 0 | J20: 0 | K20: 0 | L20: 0 | M20: 0 | N20: 0 | O20: 0 | P20: 0 | Q20: 0
D21: 男 | E21: 0 | F21: 0 | G21: 0 | H21: 0 | I21: 0 | J21: 0 | K21: 0 | L21: 0 | M21: 0 | N21: 0 | O21: 0 | P21: 0 | Q21: 0
D22: 女 | E22: 0 | F22: 0 | G22: 0 | H22: 0 | I22: 0 | J22: 0 | K22: 0 | L22: 0 | M22: 0 | N22: 0 | O22: 0 | P22: 0 | Q22: 0
A23: Ba06 | B23: 悪性新生物 | D23: 総数 | E23: 0 | F23: =SUM(F26,F29) -> 0 | G23: 0 | H23: 0 | I23: 0 | J23: 0 | K23: 0 | L23: 0 | M23: 0 | N23: 0 | O23: 0 | P23: 0 | Q23: 0
D24: 男 | E24: 0 | F24: =SUM(F27,F30) -> 0 | G24: 0 | H24: 0 | I24: 0 | J24: 0 | K24: 0 | L24: 0 | M24: 0 | N24: 0 | O24: 0 | P24: 0 | Q24: 0
D25: 女 | E25: 0 | F25: 0 | G25: 0 | H25: 0 | I25: 0 | J25: 0 | K25: 0 | L25: 0 | M25: 0 | N25: 0 | O25: 0 | P25: 0 | Q25: 0
A26: Ba07 | C26: 白 血 病 | D26: 総数 | E26: 0 | F26: =SUM(F27:F28) -> 0 | G26: =SUM(G27:G28) -> 0 | H26: 0 | I26: 0 | J26: 0 | K26: 0 | L26: 0 | M26: 0 | N26: 0 | O26: 0 | P26: 0 | Q26: 0
D27: 男 | E27: 0 | F27: 0 | G27: 0 | H27: 0 | I27: 0 | J27: 0 | K27: 0 | L27: 0 | M27: 0 | N27: 0 | O27: 0 | P27: 0 | Q27: 0
D28: 女 | E28: 0 | F28: 0 | G28: 0 | H28: 0 | I28: 0 | J28: 0 | K28: 0 | L28: 0 | M28: 0 | N28: 0 | O28: 0 | P28: 0 | Q28: 0
A29: Ba08 | C29: その他の悪性新生物 | D29: 総数 | E29: 0 | F29: =SUM(F30:F31) -> 0 | G29: =SUM(G30:G31) -> 0 | H29: 0 | I29: 0 | J29: 0 | K29: 0 | L29: 0 | M29: 0 | N29: 0 | O29: 0 | P29: 0 | Q29: 0
D30: 男 | E30: 0 | F30: 0 | G30: 0 | H30: 0 | I30: 0 | J30: 0 | K30: 0 | L30: 0 | M30: 0 | N30: 0 | O30: 0 | P30: 0 | Q30: 0
D31: 女 | E31: 0 | F31: 0 | G31: 0 | H31: 0 | I31: 0 | J31: 0 | K31: 0 | L31: 0 | M31: 0 | N31: 0 | O31: 0 | P31: 0 | Q31: 0
A32: Ba09 | B32: その他の新生物 | D32: 総数 | E32: 0 | F32: =SUM(F33:F34) -> 0 | G32: =SUM(G33:G34) -> 0 | H32: 0 | I32: 0 | J32: 0 | K32: 0 | L32: 0 | M32: 0 | N32: 0 | O32: 0 | P32: 0 | Q32: 0
D33: 男 | E33: 0 | F33: 0 | G33: 0 | H33: 0 | I33: 0 | J33: 0 | K33: 0 | L33: 0 | M33: 0 | N33: 0 | O33: 0 | P33: 0 | Q33: 0
D34: 女 | E34: 0 | F34: 0 | G34: 0 | H34: 0 | I34: 0 | J34: 0 | K34: 0 | L34: 0 | M34: 0 | N34: 0 | O34: 0 | P34: 0 | Q34: 0
A35: Ba10 | B35: 栄養失調症及びその他の栄養欠乏症 | D35: 総数 | E35: 0 | F35: =SUM(F36:F37) -> 0 | G35: 0 | H35: 0 | I35: 0 | J35: 0 | K35: 0 | L35: 0 | M35: 0 | N35: 0 | O35: 0 | P35: 0 | Q35: 0
D36: 男 | E36: 0 | F36: 0 | G36: 0 | H36: 0 | I36: 0 | J36: 0 | K36: 0 | L36: 0 | M36: 0 | N36: 0 | O36: 0 | P36: 0 | Q36: 0
D37: 女 | E37: 0 | F37: 0 | G37: 0 | H37: 0 | I37: 0 | J37: 0 | K37: 0 | L37: 0 | M37: 0 | N37: 0 | O37: 0 | P37: 0 | Q37: 0
A38: Ba11 | B38: 代 謝 障 害 | D38: 総数 | E38: 0 | F38: =SUM(F39:F40) -> 0 | G38: 0 | H38: 0 | I38: 0 | J38: 0 | K38: 0 | L38: 0 | M38: 0 | N38: 0 | O38: 0 | P38: =SUM(P39:P40) -> 0 | Q38: 0
D39: 男 | E39: 0 | F39: 0 | G39: 0 | H39: 0 | I39: 0 | J39: 0 | K39: 0 | L39: 0 | M39: 0 | N39: 0 | O39: 0 | P39: 0 | Q39: 0
D40: 女 | E40: 0 | F40: 0 | G40: 0 | H40: 0 | I40: 0 | J40: 0 | K40: 0 | L40: 0 | M40: 0 | N40: 0 | O40: 0 | P40: 0 | Q40: 0
A41: Ba12 | B41: 髄 膜 炎 | D41: 総数 | E41: 0 | F41: =SUM(F42:F43) -> 0 | G41: 0 | H41: 0 | I41: 0 | J41: 0 | K41: 0 | L41: 0 | M41: 0 | N41: 0 | O41: 0 | P41: 0 | Q41: 0
D42: 男 | E42: 0 | F42: 0 | G42: 0 | H42: 0 | I42: 0 | J42: 0 | K42: 0 | L42: 0 | M42: 0 | N42: 0 | O42: 0 | P42: 0 | Q42: 0
D43: 女 | E43: 0 | F43: 0 | G43: 0 | H43: 0 | I43: 0 | J43: 0 | K43: 0 | L43: 0 | M43: 0 | N43: 0 | O43: 0 | P43: 0 | Q43: 0
A44: Ba13 | B44: 脊髄性筋萎縮症及び関連症候群 | D44: 総数 | E44: 0 | F44: =SUM(F45:F46) -> 0 | G44: 0 | H44: 0 | I44: 0 | J44: 0 | K44: 0 | L44: 0 | M44: 0 | N44: 0 | O44: 0 | P44: 0 | Q44: 0
D45: 男 | E45: 0 | F45: 0 | G45: 0 | H45: 0 | I45: 0 | J45: 0 | K45: 0 | L45: 0 | M45: 0 | N45: 0 | O45: 0 | P45: 0 | Q45: 0
D46: 女 | E46: 0 | F46: 0 | G46: 0 | H46: 0 | I46: 0 | J46: 0 | K46: 0 | L46: 0 | M46: 0 | N46: 0 | O46: 0 | P46: 0 | Q46: 0
A47: Ba14 | B47: 脳 性 麻 痺 | D47: 総数 | E47: 0 | F47: =SUM(F48:F49) -> 0 | G47: 0 | H47: 0 | I47: 0 | J47: 0 | K47: 0 | L47: 0 | M47: 0 | N47: 0 | O47: 0 | P47: 0 | Q47: 0
D48: 男 | E48: 0 | F48: 0 | G48: 0 | H48: 0 | I48: 0 | J48: 0 | K48: 0 | L48: 0 | M48: 0 | N48: 0 | O48: 0 | P48: 0 | Q48: 0
D49: 女 | E49: 0 | F49: 0 | G49: 0 | H49: 0 | I49: 0 | J49: 0 | K49: 0 | L49: 0 | M49: 0 | N49: 0 | O49: 0 | P49: 0 | Q49: 0
A50: Ba15 | B50: 心疾患（高血圧性を除く） | D50: 総数 | E50: 2 | F50: =SUM(F51:F52) -> 0 | G50: 0 | H50: 0 | I50: 0 | J50: 0 | K50: 0 | L50: 0 | M50: 1 | N50: 0 | O50: 1 | P50: 0 | Q50: 0
D51: 男 | E51: 0 | F51: 0 | G51: 0 | H51: 0 | I51: 0 | J51: 0 | K51: 0 | L51: 0 | M51: 0 | N51: 0 | O51: 0 | P51: 0 | Q51: 0
D52: 女 | E52: 2 | F52: 0 | G52: 0 | H52: 0 | I52: 0 | J52: 0 | K52: 0 | L52: 0 | M52: 1 | N52: 0 | O52: 1 | P52: 0 | Q52: 0
A53: Ba16 | B53: 脳血管疾患 | D53: 総数 | E53: 0 | F53: =SUM(F54:F55) -> 0 | G53: 0 | H53: 0 | I53: 0 | J53: 0 | K53: 0 | L53: 0 | M53: 0 | N53: 0 | O53: 0 | P53: 0 | Q53: 0
D54: 男 | E54: 0 | F54: 0 | G54: 0 | H54: 0 | I54: 0 | J54: 0 | K54: 0 | L54: 0 | M54: 0 | N54: 0 | O54: 0 | P54: 0 | Q54: 0
D55: 女 | E55: 0 | F55: 0 | G55: 0 | H55: 0 | I55: 0 | J55: 0 | K55: 0 | L55: 0 | M55: 0 | N55: 0 | O55: 0 | P55: 0 | Q55: 0
A56: Ba17 | B56: インフルエンザ | D56: 総数 | E56: 0 | F56: =SUM(F57:F58) -> 0 | G56: 0 | H56: 0 | I56: 0 | J56: 0 | K56: 0 | L56: 0 | M56: 0 | N56: 0 | O56: 0 | P56: 0 | Q56: 0
D57: 男 | E57: 0 | F57: 0 | G57: 0 | H57: 0 | I57: 0 | J57: 0 | K57: 0 | L57: 0 | M57: 0 | N57: 0 | O57: 0 | P57: 0 | Q57: 0
D58: 女 | E58: 0 | F58: 0 | G58: 0 | H58: 0 | I58: 0 | J58: 0 | K58: 0 | L58: 0 | M58: 0 | N58: 0 | O58: 0 | P58: 0 | Q58: 0
A59: Ba18 | B59: 肺 炎 | D59: 総数 | E59: 1 | F59: =SUM(F60:F61) -> 0 | G59: 0 | H59: 0 | I59: 0 | J59: 0 | K59: 0 | L59: 0 | M59: 0 | N59: 1 | O59: 0 | P59: 0 | Q59: 0
D60: 男 | E60: 0 | F60: 0 | G60: 0 | H60: 0 | I60: 0 | J60: 0 | K60: 0 | L60: 0 | M60: 0 | N60: 0 | O60: 0 | P60: 0 | Q60: 0
D61: 女 | E61: 1 | F61: 0 | G61: 0 | H61: 0 | I61: 0 | J61: 0 | K61: 0 | L61: 0 | M61: 0 | N61: 1 | O61: 0 | P61: 0 | Q61: 0
A62: Ba19 | B62: 喘 息 | D62: 総数 | E62: 0 | F62: =SUM(F63:F64) -> 0 | G62: 0 | H62: 0 | I62: 0 | J62: 0 | K62: 0 | L62: 0 | M62: 0 | N62: 0 | O62: 0 | P62: 0 | Q62: 0
D63: 男 | E63: 0 | F63: 0 | G63: 0 | H63: 0 | I63: 0 | J63: 0 | K63: 0 | L63: 0 | M63: 0 | N63: 0 | O63: 0 | P63: 0 | Q63: 0
D64: 女 | E64: 0 | F64: 0 | G64: 0 | H64: 0 | I64: 0 | J64: 0 | K64: 0 | L64: 0 | M64: 0 | N64: 0 | O64: 0 | P64: 0 | Q64: 0
A65: Ba20 | B65: ヘルニア及び腸閉塞 | D65: 総数 | E65: 0 | F65: =SUM(F66:F67) -> 0 | G65: 0 | H65: 0 | I65: 0 | J65: 0 | K65: 0 | L65: 0 | M65: 0 | N65: 0 | O65: 0 | P65: 0 | Q65: 0
D66: 男 | E66: 0 | F66: 0 | G66: 0 | H66: 0 | I66: 0 | J66: 0 | K66: 0 | L66: 0 | M66: 0 | N66: 0 | O66: 0 | P66: 0 | Q66: 0
D67: 女 | E67: 0 | F67: 0 | G67: 0 | H67: 0 | I67: 0 | J67: 0 | K67: 0 | L67: 0 | M67: 0 | N67: 0 | O67: 0 | P67: 0 | Q67: 0
A68: Ba21 | B68: 肝 疾 患 | D68: 総数 | E68: 1 | F68: =SUM(F69:F70) -> 0 | G68: 0 | H68: 0 | I68: 0 | J68: 0 | K68: 0 | L68: 0 | M68: 0 | N68: 0 | O68: 0 | P68: 1 | Q68: 0
D69: 男 | E69: 0 | F69: 0 | G69: 0 | H69: 0 | I69: 0 | J69: 0 | K69: 0 | L69: 0 | M69: 0 | N69: 0 | O69: 0 | P69: 0 | Q69: 0
D70: 女 | E70: =SUM(F70:Q70) -> 1 | F70: 0 | G70: 0 | H70: 0 | I70: 0 | J70: 0 | K70: 0 | L70: 0 | M70: 0 | N70: 0 | O70: 0 | P70: 1 | Q70: 0
A71: Ba22 | B71: 腎 不 全 | D71: 総数 | E71: 0 | F71: =SUM(F72:F73) -> 0 | G71: 0 | H71: 0 | I71: 0 | J71: 0 | K71: 0 | L71: 0 | M71: 0 | N71: 0 | O71: 0 | P71: 0 | Q71: 0
D72: 男 | E72: 0 | F72: 0 | G72: 0 | H72: 0 | I72: 0 | J72: 0 | K72: 0 | L72: 0 | M72: 0 | N72: 0 | O72: 0 | P72: 0 | Q72: 0
D73: 女 | E73: 0 | F73: 0 | G73: 0 | H73: 0 | I73: 0 | J73: 0 | K73: 0 | L73: 0 | M73: 0 | N73: 0 | O73: 0 | P73: 0 | Q73: 0
A74: Ba23 | B74: 周産期に発生した病態 | D74: 総数 | E74: 12 | F74: =SUM(F77,F80,F83,F86,F89,F92,F95,F98,F101,F104,F107) -> 2 | G74: 0 | H74: 0 | I74: 0 | J74: 2 | K74: 3 | L74: 1 | M74: 1 | N74: 1 | O74: 0 | P74: 1 | Q74: 1
D75: 男 | E75: 8 | F75: =SUM(F78,F81,F84,F87,F90,F93,F96,F99,F102,F105,F108) -> 1 | G75: 0 | H75: 0 | I75: 0 | J75: 1 | K75: 3 | L75: 0 | M75: 0 | N75: 1 | O75: 0 | P75: 1 | Q75: 1
D76: 女 | E76: 4 | F76: =SUM(F79,F82,F85,F88,F91,F94,F97,F100,F103,F106,F109) -> 1 | G76: 0 | H76: 0 | I76: 0 | J76: 1 | K76: 0 | L76: 1 | M76: 1 | N76: 0 | O76: 0 | P76: 0 | Q76: 0
A77: Ba24 | C77: 妊娠期間及び胎児発育に関連する障害 | D77: 総数 | E77: 0 | F77: =SUM(F78:F79) -> 0 | G77: 0 | H77: 0 | I77: 0 | J77: 0 | K77: 0 | L77: 0 | M77: 0 | N77: 0 | O77: 0 | P77: 0 | Q77: 0
D78: 男 | E78: 0 | F78: 0 | G78: 0 | H78: 0 | I78: 0 | J78: 0 | K78: 0 | L78: 0 | M78: 0 | N78: 0 | O78: 0 | P78: 0 | Q78: 0
D79: 女 | E79: 0 | F79: 0 | G79: 0 | H79: 0 | I79: 0 | J79: 0 | K79: 0 | L79: 0 | M79: 0 | N79: 0 | O79: 0 | P79: 0 | Q79: 0
A80: Ba25 | C80: 出 産 外 傷 | D80: 総数 | E80: 0 | F80: =SUM(F81:F82) -> 0 | G80: 0 | H80: 0 | I80: 0 | J80: 0 | K80: 0 | L80: 0 | M80: 0 | N80: 0 | O80: 0 | P80: 0 | Q80: 0
D81: 男 | E81: 0 | F81: 0 | G81: 0 | H81: 0 | I81: 0 | J81: 0 | K81: 0 | L81: 0 | M81: 0 | N81: 0 | O81: 0 | P81: 0 | Q81: 0
D82: 女 | E82: 0 | F82: 0 | G82: 0 | H82: 0 | I82: 0 | J82: 0 | K82: 0 | L82: 0 | M82: 0 | N82: 0 | O82: 0 | P82: 0 | Q82: 0
A83: Ba26 | C83: 出生時仮死 | D83: 総数 | E83: 2 | F83: =SUM(F84:F85) -> 0 | G83: 0 | H83: 0 | I83: 0 | J83: 1 | K83: 0 | L83: 0 | M83: 0 | N83: 1 | O83: 0 | P83: 0 | Q83: 0
D84: 男 | E84: 1 | F84: 0 | G84: 0 | H84: 0 | I84: 0 | J84: 0 | K84: 0 | L84: 0 | M84: 0 | N84: 1 | O84: 0 | P84: 0 | Q84: 0
D85: 女 | E85: 1 | F85: 0 | G85: 0 | H85: 0 | I85: 0 | J85: 1 | K85: 0 | L85: 0 | M85: 0 | N85: 0 | O85: 0 | P85: 0 | Q85: 0
A86: Ba27 | C86: 新生児の呼吸窮迫 | D86: 総数 | E86: 3 | F86: =SUM(F87:F88) -> 1 | G86: 0 | H86: 0 | I86: 0 | J86: 0 | K86: 2 | L86: 0 | M86: 0 | N86: 0 | O86: 0 | P86: 0 | Q86: 0
D87: 男 | E87: 3 | F87: 1 | G87: 0 | H87: 0 | I87: 0 | J87: 0 | K87: 2 | L87: 0 | M87: 0 | N87: 0 | O87: 0 | P87: 0 | Q87: 0
D88: 女 | E88: 0 | F88: 0 | G88: 0 | H88: 0 | I88: 0 | J88: 0 | K88: 0 | L88: 0 | M88: 0 | N88: 0 | O88: 0 | P88: 0 | Q88: 0
A89: Ba28 | C89: 周産期に発生した肺出血 | D89: 総数 | E89: 0 | F89: =SUM(F90:F91) -> 0 | G89: 0 | H89: 0 | I89: 0 | J89: 0 | K89: 0 | L89: 0 | M89: 0 | N89: 0 | O89: 0 | P89: 0 | Q89: 0
D90: 男 | E90: 0 | F90: 0 | G90: 0 | H90: 0 | I90: 0 | J90: 0 | K90: 0 | L90: 0 | M90: 0 | N90: 0 | O90: 0 | P90: 0 | Q90: 0
D91: 女 | E91: 0 | F91: 0 | G91: 0 | H91: 0 | I91: 0 | J91: 0 | K91: 0 | L91: 0 | M91: 0 | N91: 0 | O91: 0 | P91: 0 | Q91: 0
A92: Ba29 | C92: 周産期に発生した心血管障害 | D92: 総数 | E92: 1 | F92: =SUM(F93:F94) -> 0 | G92: 0 | H92: 0 | I92: 0 | J92: 0 | K92: 1 | L92: 0 | M92: 0 | N92: 0 | O92: 0 | P92: 0 | Q92: 0
D93: 男 | E93: 1 | F93: 0 | G93: 0 | H93: 0 | I93: 0 | J93: 0 | K93: 1 | L93: 0 | M93: 0 | N93: 0 | O93: 0 | P93: 0 | Q93: 0
D94: 女 | E94: 0 | F94: 0 | G94: 0 | H94: 0 | I94: 0 | J94: 0 | K94: 0 | L94: 0 | M94: 0 | N94: 0 | O94: 0 | P94: 0 | Q94: 0
A95: Ba30 | C95: その他の周産期に特異的な呼吸障害及び心血管障害 | D95: 総数 | E95: 2 | F95: =SUM(F96:F97) -> 1 | G95: 0 | H95: 0 | I95: 0 | J95: 0 | K95: 0 | L95: 0 | M95: 0 | N95: 0 | O95: 0 | P95: 1 | Q95: 0
D96: 男 | E96: 1 | F96: 0 | G96: 0 | H96: 0 | I96: 0 | J96: 0 | K96: 0 | L96: 0 | M96: 0 | N96: 0 | O96: 0 | P96: 1 | Q96: 0
D97: 女 | E97: 1 | F97: 1 | G97: 0 | H97: 0 | I97: 0 | J97: 0 | K97: 0 | L97: 0 | M97: 0 | N97: 0 | O97: 0 | P97: 0 | Q97: 0
A98: Ba31 | C98: 新生児の細菌性敗血症 | D98: 総数 | E98: 1 | F98: =SUM(F99:F100) -> 0 | G98: 0 | H98: 0 | I98: 0 | J98: 0 | K98: 0 | L98: 1 | M98: 0 | N98: 0 | O98: 0 | P98: 0 | Q98: 0
D99: 男 | E99: 0 | F99: 0 | G99: 0 | H99: 0 | I99: 0 | J99: 0 | K99: 0 | L99: 0 | M99: 0 | N99: 0 | O99: 0 | P99: 0 | Q99: 0
D100: 女 | E100: 1 | F100: 0 | G100: 0 | H100: 0 | I100: 0 | J100: 0 | K100: 0 | L100: 1 | M100: 0 | N100: 0 | O100: 0 | P100: 0 | Q100: 0
A101: Ba32 | C101: その他の周産期に特異的な感染症 | D101: 総数 | E101: 0 | F101: =SUM(F102:F103) -> 0 | G101: 0 | H101: 0 | I101: 0 | J101: 0 | K101: 0 | L101: 0 | M101: 0 | N101: 0 | O101: 0 | P101: 0 | Q101: 0
D102: 男 | E102: 0 | F102: 0 | G102: 0 | H102: 0 | I102: 0 | J102: 0 | K102: 0 | L102: 0 | M102: 0 | N102: 0 | O102: 0 | P102: 0 | Q102: 0
D103: 女 | E103: 0 | F103: 0 | G103: 0 | H103: 0 | I103: 0 | J103: 0 | K103: 0 | L103: 0 | M103: 0 | N103: 0 | O103: 0 | P103: 0 | Q103: 0
A104: Ba33 | C104: 胎児及び新生児の出血性障害及び血液障害 | D104: 総数 | E104: 1 | F104: =SUM(F105:F106) -> 0 | G104: 0 | H104: 0 | I104: 0 | J104: 1 | K104: 0 | L104: 0 | M104: 0 | N104: 0 | O104: 0 | P104: 0 | Q104: 0
D105: 男 | E105: 1 | F105: 0 | G105: 0 | H105: 0 | I105: 0 | J105: 1 | K105: 0 | L105: 0 | M105: 0 | N105: 0 | O105: 0 | P105: 0 | Q105: 0
D106: 女 | E106: 0 | F106: 0 | G106: 0 | H106: 0 | I106: 0 | J106: 0 | K106: 0 | L106: 0 | M106: 0 | N106: 0 | O106: 0 | P106: 0 | Q106: 0
A107: Ba34 | C107: その他の周産期に発生した病態 | D107: 総数 | E107: 2 | F107: =SUM(F108:F109) -> 0 | G107: 0 | H107: 0 | I107: 0 | J107: 0 | K107: 0 | L107: 0 | M107: 1 | N107: 0 | O107: 0 | P107: 0 | Q107: 1
D108: 男 | E108: 1 | F108: 0 | G108: 0 | H108: 0 | I108: 0 | J108: 0 | K108: 0 | L108: 0 | M108: 0 | N108: 0 | O108: 0 | P108: 0 | Q108: 1
D109: 女 | E109: 1 | F109: 0 | G109: 0 | H109: 0 | I109: 0 | J109: 0 | K109: 0 | L109: 0 | M109: 1 | N109: 0 | O109: 0 | P109: 0 | Q109: 0
A110: Ba35 | B110: 先天奇形、変形及び染色体異常 | D110: 総数 | E110: 13 | F110: =SUM(F113,F116,F119,F122,F125,F128,F131,F134) -> 0 | G110: 0 | H110: 2 | I110: 3 | J110: 0 | K110: 1 | L110: 0 | M110: 3 | N110: 1 | O110: 0 | P110: 1 | Q110: 2
D111: 男 | E111: 5 | F111: =SUM(F114,F117,F120,F123,F126,F129,F132,F135) -> 0 | G111: 0 | H111: 0 | I111: 0 | J111: 0 | K111: 1 | L111: 0 | M111: 2 | N111: 1 | O111: 0 | P111: 0 | Q111: 1
D112: 女 | E112: 8 | F112: 0 | G112: 0 | H112: 2 | I112: 3 | J112: 0 | K112: 0 | L112: 0 | M112: 1 | N112: 0 | O112: 0 | P112: 1 | Q112: 1
A113: Ba36 | C113: 神経系の先天奇形 | D113: 総数 | E113: 0 | F113: =SUM(F114:F115) -> 0 | G113: 0 | H113: 0 | I113: 0 | J113: 0 | K113: 0 | L113: 0 | M113: 0 | N113: 0 | O113: 0 | P113: 0 | Q113: 0
D114: 男 | E114: 0 | F114: 0 | G114: 0 | H114: 0 | I114: 0 | J114: 0 | K114: 0 | L114: 0 | M114: 0 | N114: 0 | O114: 0 | P114: 0 | Q114: 0
D115: 女 | E115: 0 | F115: 0 | G115: 0 | H115: 0 | I115: 0 | J115: 0 | K115: 0 | L115: 0 | M115: 0 | N115: 0 | O115: 0 | P115: 0 | Q115: 0
A116: Ba37 | C116: 心臓の先天奇形 | D116: 総数 | E116: 6 | F116: =SUM(F117:F118) -> 0 | G116: 0 | H116: 1 | I116: 1 | J116: 0 | K116: 0 | L116: 0 | M116: 3 | N116: 0 | O116: 0 | P116: 0 | Q116: 1
D117: 男 | E117: 2 | F117: 0 | G117: 0 | H117: 0 | I117: 0 | J117: 0 | K117: 0 | L117: 0 | M117: 2 | N117: 0 | O117: 0 | P117: 0 | Q117: 0
D118: 女 | E118: 4 | F118: 0 | G118: 0 | H118: 1 | I118: 1 | J118: 0 | K118: 0 | L118: 0 | M118: 1 | N118: 0 | O118: 0 | P118: 0 | Q118: 1
A119: Ba38 | C119: その他の循環器系の先天奇形 | D119: 総数 | E119: 0 | F119: =SUM(F120:F121) -> 0 | G119: 0 | H119: 0 | I119: 0 | J119: 0 | K119: 0 | L119: 0 | M119: 0 | N119: 0 | O119: 0 | P119: 0 | Q119: 0
D120: 男 | E120: 0 | F120: 0 | G120: 0 | H120: 0 | I120: 0 | J120: 0 | K120: 0 | L120: 0 | M120: 0 | N120: 0 | O120: 0 | P120: 0 | Q120: 0
D121: 女 | E121: 0 | F121: 0 | G121: 0 | H121: 0 | I121: 0 | J121: 0 | K121: 0 | L121: 0 | M121: 0 | N121: 0 | O121: 0 | P121: 0 | Q121: 0
A122: Ba39 | C122: 呼吸器系の先天奇形 | D122: 総数 | E122: 1 | F122: =SUM(F123:F124) -> 0 | G122: 0 | H122: 0 | I122: 1 | J122: 0 | K122: 0 | L122: 0 | M122: 0 | N122: 0 | O122: 0 | P122: 0 | Q122: 0
D123: 男 | E123: 0 | F123: 0 | G123: 0 | H123: 0 | I123: 0 | J123: 0 | K123: 0 | L123: 0 | M123: 0 | N123: 0 | O123: 0 | P123: 0 | Q123: 0
D124: 女 | E124: 1 | F124: 0 | G124: 0 | H124: 0 | I124: 1 | J124: 0 | K124: 0 | L124: 0 | M124: 0 | N124: 0 | O124: 0 | P124: 0 | Q124: 0
A125: Ba40 | C125: 消化器系の先天奇形 | D125: 総数 | E125: 1 | F125: =SUM(F126:F127) -> 0 | G125: 0 | H125: 0 | I125: 0 | J125: 0 | K125: 0 | L125: 0 | M125: 0 | N125: 0 | O125: 0 | P125: 1 | Q125: 0
D126: 男 | E126: 0 | F126: 0 | G126: 0 | H126: 0 | I126: 0 | J126: 0 | K126: 0 | L126: 0 | M126: 0 | N126: 0 | O126: 0 | P126: 0 | Q126: 0
D127: 女 | E127: 1 | F127: 0 | G127: 0 | H127: 0 | I127: 0 | J127: 0 | K127: 0 | L127: 0 | M127: 0 | N127: 0 | O127: 0 | P127: 1 | Q127: 0
A128: Ba41 | C128: 筋骨格系の先天奇形及び変形 | D128: 総数 | E128: 0 | F128: =SUM(F129:F130) -> 0 | G128: 0 | H128: 0 | I128: 0 | J128: 0 | K128: 0 | L128: 0 | M128: 0 | N128: 0 | O128: 0 | P128: 0 | Q128: 0
D129: 男 | E129: 0 | F129: 0 | G129: 0 | H129: 0 | I129: 0 | J129: 0 | K129: 0 | L129: 0 | M129: 0 | N129: 0 | O129: 0 | P129: 0 | Q129: 0
D130: 女 | E130: 0 | F130: 0 | G130: 0 | H130: 0 | I130: 0 | J130: 0 | K130: 0 | L130: 0 | M130: 0 | N130: 0 | O130: 0 | P130: 0 | Q130: 0
A131: Ba42 | C131: その他の先天奇形及び変形 | D131: 総数 | E131: 1 | F131: =SUM(F132:F133) -> 0 | G131: 0 | H131: 0 | I131: 0 | J131: 0 | K131: 0 | L131: 0 | M131: 0 | N131: 0 | O131: 0 | P131: 0 | Q131: 1
D132: 男 | E132: 1 | F132: 0 | G132: 0 | H132: 0 | I132: 0 | J132: 0 | K132: 0 | L132: 0 | M132: 0 | N132: 0 | O132: 0 | P132: 0 | Q132: 1
D133: 女 | E133: 0 | F133: 0 | G133: 0 | H133: 0 | I133: 0 | J133: 0 | K133: 0 | L133: 0 | M133: 0 | N133: 0 | O133: 0 | P133: 0 | Q133: 0
A134: Ba43 | C134: 染色体異常、他に分類されないもの | D134: 総数 | E134: =SUM(F134:Q134) -> 4 | F134: =SUM(F135:F136) -> 0 | G134: 0 | H134: 1 | I134: 1 | J134: 0 | K134: 1 | L134: 0 | M134: 0 | N134: 1 | O134: 0 | P134: 0 | Q134: 0
D135: 男 | E135: 2 | F135: 0 | G135: 0 | H135: 0 | I135: 0 | J135: 0 | K135: 1 | L135: 0 | M135: 0 | N135: 1 | O135: 0 | P135: 0 | Q135: 0
D136: 女 | E136: 2 | F136: 0 | G136: 0 | H136: 1 | I136: 1 | J136: 0 | K136: 0 | L136: 0 | M136: 0 | N136: 0 | O136: 0 | P136: 0 | Q136: 0
A137: Ba44 | B137: 乳幼児突然死症候群 | D137: 総数 | E137: 1 | F137: =SUM(F138:F139) -> 0 | G137: 0 | H137: 0 | I137: 0 | J137: 0 | K137: 0 | L137: 0 | M137: 1 | N137: 0 | O137: 0 | P137: 0 | Q137: 0
D138: 男 | E138: 0 | F138: 0 | G138: 0 | H138: 0 | I138: 0 | J138: 0 | K138: 0 | L138: 0 | M138: 0 | N138: 0 | O138: 0 | P138: 0 | Q138: 0
D139: 女 | E139: 1 | F139: 0 | G139: 0 | H139: 0 | I139: 0 | J139: 0 | K139: 0 | L139: 0 | M139: 1 | N139: 0 | O139: 0 | P139: 0 | Q139: 0
A140: Ba45 | B140: その他のすべての疾患 | D140: 総数 | E140: 2 | F140: =SUM(F141:F142) -> 0 | G140: 0 | H140: 0 | I140: 0 | J140: 0 | K140: 1 | L140: 0 | M140: 0 | N140: 1 | O140: 0 | P140: 0 | Q140: 0
D141: 男 | E141: 1 | F141: 0 | G141: 0 | H141: 0 | I141: 0 | J141: 0 | K141: 1 | L141: 0 | M141: 0 | N141: 0 | O141: 0 | P141: 0 | Q141: 0
D142: 女 | E142: 1 | F142: 0 | G142: 0 | H142: 0 | I142: 0 | J142: 0 | K142: 0 | L142: 0 | M142: 0 | N142: 1 | O142: 0 | P142: 0 | Q142: 0
A143: Ba46 | B143: 不慮の事故 | D143: 総数 | E143: 0 | F143: =SUM(F146,F149,F152,F155,F158,F161,F164,F167) -> 0 | G143: 0 | H143: 0 | I143: 0 | J143: 0 | K143: 0 | L143: 0 | M143: 0 | N143: 0 | O143: 0 | P143: 0 | Q143: 0
D144: 男 | E144: 0 | F144: =SUM(F147,F150,F153,F156,F159,F162,F165,F168) -> 0 | G144: 0 | H144: 0 | I144: 0 | J144: 0 | K144: 0 | L144: 0 | M144: 0 | N144: 0 | O144: 0 | P144: 0 | Q144: 0
D145: 女 | E145: 0 | F145: 0 | G145: 0 | H145: 0 | I145: 0 | J145: 0 | K145: 0 | L145: 0 | M145: 0 | N145: 0 | O145: 0 | P145: 0 | Q145: 0
A146: Ba47 | C146: 交 通 事 故 | D146: 総数 | E146: 0 | F146: =SUM(F147:F148) -> 0 | G146: 0 | H146: 0 | I146: 0 | J146: 0 | K146: 0 | L146: 0 | M146: 0 | N146: 0 | O146: 0 | P146: 0 | Q146: 0
D147: 男 | E147: 0 | F147: 0 | G147: 0 | H147: 0 | I147: 0 | J147: 0 | K147: 0 | L147: 0 | M147: 0 | N147: 0 | O147: 0 | P147: 0 | Q147: 0
D148: 女 | E148: 0 | F148: 0 | G148: 0 | H148: 0 | I148: 0 | J148: 0 | K148: 0 | L148: 0 | M148: 0 | N148: 0 | O148: 0 | P148: 0 | Q148: 0
A149: Ba48 | C149: 転倒・転落 | D149: 総数 | E149: 0 | F149: =SUM(F150:F151) -> 0 | G149: 0 | H149: 0 | I149: 0 | J149: 0 | K149: 0 | L149: 0 | M149: 0 | N149: 0 | O149: 0 | P149: 0 | Q149: 0
D150: 男 | E150: 0 | F150: 0 | G150: 0 | H150: 0 | I150: 0 | J150: 0 | K150: 0 | L150: 0 | M150: 0 | N150: 0 | O150: 0 | P150: 0 | Q150: 0
D151: 女 | E151: 0 | F151: 0 | G151: 0 | H151: 0 | I151: 0 | J151: 0 | K151: 0 | L151: 0 | M151: 0 | N151: 0 | O151: 0 | P151: 0 | Q151: 0
A152: Ba49 | C152: 不慮の溺死及び溺水 | D152: 総数 | E152: 0 | F152: =SUM(F153:F154) -> 0 | G152: 0 | H152: 0 | I152: 0 | J152: 0 | K152: 0 | L152: 0 | M152: 0 | N152: 0 | O152: 0 | P152: 0 | Q152: 0
D153: 男 | E153: 0 | F153: 0 | G153: 0 | H153: 0 | I153: 0 | J153: 0 | K153: 0 | L153: 0 | M153: 0 | N153: 0 | O153: 0 | P153: 0 | Q153: 0
D154: 女 | E154: 0 | F154: 0 | G154: 0 | H154: 0 | I154: 0 | J154: 0 | K154: 0 | L154: 0 | M154: 0 | N154: 0 | O154: 0 | P154: 0 | Q154: 0
A155: Ba50 | C155: 胃内容物の誤えん及び気道閉塞を生じた食物等の誤えん | D155: 総数 | E155: 0 | F155: =SUM(F156:F157) -> 0 | G155: 0 | H155: 0 | I155: 0 | J155: 0 | K155: 0 | L155: 0 | M155: 0 | N155: 0 | O155: 0 | P155: 0 | Q155: 0
D156: 男 | E156: 0 | F156: 0 | G156: 0 | H156: 0 | I156: 0 | J156: 0 | K156: 0 | L156: 0 | M156: 0 | N156: 0 | O156: 0 | P156: 0 | Q156: 0
D157: 女 | E157: 0 | F157: 0 | G157: 0 | H157: 0 | I157: 0 | J157: 0 | K157: 0 | L157: 0 | M157: 0 | N157: 0 | O157: 0 | P157: 0 | Q157: 0
A158: Ba51 | C158: その他の不慮の窒息 | D158: 総数 | E158: 0 | F158: =SUM(F159:F160) -> 0 | G158: 0 | H158: 0 | I158: 0 | J158: 0 | K158: 0 | L158: 0 | M158: 0 | N158: 0 | O158: 0 | P158: 0 | Q158: 0
D159: 男 | E159: 0 | F159: 0 | G159: 0 | H159: 0 | I159: 0 | J159: 0 | K159: 0 | L159: 0 | M159: 0 | N159: 0 | O159: 0 | P159: 0 | Q159: 0
D160: 女 | E160: 0 | F160: 0 | G160: 0 | H160: 0 | I160: 0 | J160: 0 | K160: 0 | L160: 0 | M160: 0 | N160: 0 | O160: 0 | P160: 0 | Q160: 0
A161: Ba52 | C161: 煙、火及び火炎への曝露 | D161: 総数 | E161: 0 | F161: =SUM(F162:F163) -> 0 | G161: 0 | H161: 0 | I161: 0 | J161: 0 | K161: 0 | L161: 0 | M161: 0 | N161: 0 | O161: 0 | P161: 0 | Q161: 0
D162: 男 | E162: 0 | F162: 0 | G162: 0 | H162: 0 | I162: 0 | J162: 0 | K162: 0 | L162: 0 | M162: 0 | N162: 0 | O162: 0 | P162: 0 | Q162: 0
D163: 女 | E163: 0 | F163: 0 | G163: 0 | H163: 0 | I163: 0 | J163: 0 | K163: 0 | L163: 0 | M163: 0 | N163: 0 | O163: 0 | P163: 0 | Q163: 0
A164: Ba53 | C164: 有害物質による不慮の中毒及び有害物質への曝露 | D164: 総数 | E164: 0 | F164: =SUM(F165:F166) -> 0 | G164: 0 | H164: 0 | I164: 0 | J164: 0 | K164: 0 | L164: 0 | M164: 0 | N164: 0 | O164: 0 | P164: 0 | Q164: 0
D165: 男 | E165: 0 | F165: 0 | G165: 0 | H165: 0 | I165: 0 | J165: 0 | K165: 0 | L165: 0 | M165: 0 | N165: 0 | O165: 0 | P165: 0 | Q165: 0
D166: 女 | E166: 0 | F166: 0 | G166: 0 | H166: 0 | I166: 0 | J166: 0 | K166: 0 | L166: 0 | M166: 0 | N166: 0 | O166: 0 | P166: 0 | Q166: 0
A167: Ba54 | C167: その他の不慮の事故 | D167: 総数 | E167: 0 | F167: =SUM(F168:F169) -> 0 | G167: 0 | H167: 0 | I167: 0 | J167: 0 | K167: 0 | L167: 0 | M167: 0 | N167: 0 | O167: 0 | P167: 0 | Q167: 0
D168: 男 | E168: 0 | F168: 0 | G168: 0 | H168: 0 | I168: 0 | J168: 0 | K168: 0 | L168: 0 | M168: 0 | N168: 0 | O168: 0 | P168: 0 | Q168: 0
D169: 女 | E169: 0 | F169: 0 | G169: 0 | H169: 0 | I169: 0 | J169: 0 | K169: 0 | L169: 0 | M169: 0 | N169: 0 | O169: 0 | P169: 0 | Q169: 0
A170: Ba55 | B170: 他 殺 | D170: 総数 | E170: 0 | F170: =SUM(F171:F172) -> 0 | G170: 0 | H170: 0 | I170: 0 | J170: 0 | K170: 0 | L170: 0 | M170: 0 | N170: 0 | O170: 0 | P170: 0 | Q170: 0
D171: 男 | E171: 0 | F171: 0 | G171: 0 | H171: 0 | I171: 0 | J171: 0 | K171: 0 | L171: 0 | M171: 0 | N171: 0 | O171: 0 | P171: 0 | Q171: 0
D172: 女 | E172: 0 | F172: 0 | G172: 0 | H172: 0 | I172: 0 | J172: 0 | K172: 0 | L172: 0 | M172: 0 | N172: 0 | O172: 0 | P172: 0 | Q172: 0
A173: Ba56 | B173: その他の外因 | D173: 総数 | E173: 1 | F173: =SUM(F174:F175) -> 0 | G173: 0 | H173: 0 | I173: 0 | J173: 1 | K173: 0 | L173: 0 | M173: 0 | N173: 0 | O173: 0 | P173: 0 | Q173: 0
D174: 男 | E174: 1 | F174: 0 | G174: 0 | H174: 0 | I174: 0 | J174: 1 | K174: 0 | L174: 0 | M174: 0 | N174: 0 | O174: 0 | P174: 0 | Q174: 0
D175: 女 | E175: 0 | F175: 0 | G175: 0 | H175: 0 | I175: 0 | J175: 0 | K175: 0 | L175: 0 | M175: 0 | N175: 0 | O175: 0 | P175: 0 | Q175: 0

Sheet 8 死亡の場所別，年次別死亡数・百分率
A1: 8 死亡の場所別にみた年次別乳児死亡数及び百分率
A3: 年次 | B3: 総数 | C3: 施設内 | G3: 施設外
C4: 総数 | D4: 病院 | E4: 診療所 | F4: 助産所 | G4: 総 数 | H4: 自宅 | I4: その他
B5: 乳児死亡数
A6: 85 60 | B6: 101 | C6: 88 | D6: 87 | E6: 1 | F6: 0 | G6: 13 | H6: 10 | I6: 3
A7: 1986 昭和61年 | B7: 86 | C7: 71 | D7: 67 | E7: 4 | F7: 0 | G7: 15 | H7: 11 | I7: 4
A8: 1987 昭和62年 | B8: 88 | C8: 76 | D8: 71 | E8: 5 | F8: 0 | G8: 12 | H8: 8 | I8: 4
A9: 1988 昭和63年 | B9: 80 | C9: 67 | D9: 65 | E9: 2 | F9: 0 | G9: 13 | H9: 10 | I9: 3
A10: 89 平成元年 | B10: 75 | C10: 69 | D10: 65 | E10: 4 | F10: 0 | G10: 6 | H10: 5 | I10: 1
A11: 90 2 | B11: 85 | C11: 78 | D11: 74 | E11: 4 | F11: 0 | G11: 7 | H11: 6 | I11: 1
A12: 91 3 | B12: 63 | C12: 57 | D12: 55 | E12: 2 | F12: 0 | G12: 6 | H12: 4 | I12: 2
A13: 93 4 | B13: 57 | C13: 50 | D13: 49 | E13: 1 | F13: 0 | G13: 7 | H13: 6 | I13: 1
A14: 1993 平成5年 | B14: 51 | C14: 50 | D14: 47 | E14: 3 | F14: 0 | G14: 1 | H14: 1 | I14: 0
A15: 94 6 | B15: 65 | C15: 55 | D15: 54 | E15: 1 | F15: 0 | G15: 10 | H15: 10 | I15: 0
A16: 95 7 | B16: 53 | C16: 45 | D16: 45 | E16: 0 | F16: 0 | G16: 8 | H16: 7 | I16: 1
A17: 96 8 | B17: 55 | C17: 52 | D17: 52 | E17: 0 | F17: 0 | G17: 3 | H17: 2 | I17: 1
A18: 97 9 | B18: 52 | C18: 45 | D18: 44 | E18: 1 | F18: 0 | G18: 7 | H18: 7 | I18: 0
A19: 1998 平成10年 | B19: 45 | C19: 41 | D19: 41 | E19: 0 | F19: 0 | G19: 4 | H19: 3 | I19: 1
A20: 99 11 | B20: 32 | C20: 26 | D20: 26 | E20: 0 | F20: 0 | G20: 6 | H20: 5 | I20: 1
A21: 2000 12 | B21: 34 | C21: 26 | D21: 26 | E21: 0 | F21: 0 | G21: 8 | H21: 7 | I21: 1
A22: 01 13 | B22: 33 | C22: 23 | D22: 22 | E22: 1 | F22: 0 | G22: 10 | H22: 9 | I22: 1
A23: 02 14 | B23: 31 | C23: 26 | D23: 26 | E23: 0 | F23: 0 | G23: 5 | H23: 5 | I23: 0
A24: 03 15 | B24: 40 | C24: 35 | D24: 35 | E24: 0 | F24: 0 | G24: 5 | H24: 3 | I24: 2
A25: 04 16 | B25: 45 | C25: 35 | D25: 34 | E25: 1 | F25: 0 | G25: 10 | H25: 10 | I25: 0
A26: 05 17 | B26: 38 | C26: 31 | D26: 29 | E26: 2 | F26: 0 | G26: 7 | H26: 5 | I26: 2
A27: 06 18 | B27: 34 | C27: 29 | D27: 28 | E27: 1 | F27: 0 | G27: 5 | H27: 4 | I27: 1
A28: 07 19 | B28: 34 | C28: 25 | D28: 24 | E28: 1 | F28: 0 | G28: 9 | H28: 8 | I28: 1
A29: 08 20 | B29: 34 | C29: 30 | D29: 28 | E29: 2 | F29: 0 | G29: 4 | H29: 4 | I29: 0
A30: 09 21 | B30: 33 | C30: 24 | D30: 24 | E30: 0 | F30: 0 | G30: 9 | H30: 9 | I30: 0
A31: 10 22 | B31: 26 | C31: 20 | D31: 20 | E31: 0 | F31: 0 | G31: 6 | H31: 5 | I31: 1
A32: 11 23 | B32: 40 | C32: 32 | D32: 31 | E32: 1 | F32: 0 | G32: 8 | H32: 8 | I32: 0
A33: 12 24 | B33: 34 | C33: 27 | D33: 26 | E33: 1 | F33: 0 | G33: 7 | H33: 6 | I33: 1
A34: 13 25 | B34: 34 | C34: 30 | D34: 30 | E34: 0 | F34: 0 | G34: 4 | H34: 4 | I34: 0
A35: 14 26 | B35: 26 | C35: 25 | D35: 23 | E35: 2 | F35: 0 | G35: 1 | H35: 1 | I35: 0
A36: 15 27 | B36: 27 | C36: 27 | D36: 27 | E36: 0 | F36: 0 | G36: 0 | H36: 0 | I36: 0
A37: 16 28 | B37: 29 | C37: 28 | D37: 28 | E37: 0 | F37: 0 | G37: 1 | H37: 1 | I37: 0
A38: 17 29 | B38: 25 | C38: 24 | D38: 24 | E38: 0 | F38: 0 | G38: 1 | H38: 1 | I38: 0
A39: 18 30 | B39: =SUM(C39,G39) -> 34 | C39: =SUM(D39:E39) -> 31 | D39: ='[3]■8 死亡の場所別，年次別死亡数・百分率'!$D$5 -> 30 | E39: ='[3]■8 死亡の場所別，年次別死亡数・百分率'!$E$5 -> 1 | F39: ='[3]■8 死亡の場所別，年次別死亡数・百分率'!$F$5 -> 0 | G39: =SUM(H39:I39) -> 3 | H39: ='[3]■8 死亡の場所別，年次別死亡数・百分率'!$H$5 -> 3 | I39: ='[3]■8 死亡の場所別，年次別死亡数・百分率'!$I$5 -> 0
B40: 百分率
A41: 85 60 | B41: 100 | C41: 87.12871287 | D41: 86.13861386 | E41: 0.9900990099 | F41: 0 | G41: 12.87128713 | H41: 9.900990099 | I41: 2.97029703
A42: 1986 昭和61年 | B42: 100 | C42: 82.55813953 | D42: 77.90697674 | E42: 4.651162791 | F42: 0 | G42: 17.44186047 | H42: 12.79069767 | I42: 4.651162791
A43: 1987 昭和62年 | B43: 100 | C43: 86.36363636 | D43: 80.68181818 | E43: 5.681818182 | F43: 0 | G43: 13.63636364 | H43: 9.090909091 | I43: 4.545454545
A44: 1988 昭和63年 | B44: 100 | C44: 83.75 | D44: 81.25 | E44: 2.5 | F44: 0 | G44: 16.25 | H44: 12.5 | I44: 3.75
A45: 89 平成元年 | B45: 100 | C45: 92 | D45: 86.66666667 | E45: 5.333333333 | F45: 0 | G45: 8 | H45: 6.666666667 | I45: 1.333333333
A46: 90 2 | B46: 100 | C46: 91.76470588 | D46: 87.05882353 | E46: 4.705882353 | F46: 0 | G46: 8.235294118 | H46: 7.058823529 | I46: 1.176470588
A47: 91 3 | B47: 100 | C47: 90.47619048 | D47: 87.3015873 | E47: 3.174603175 | F47: 0 | G47: 9.523809524 | H47: 6.349206349 | I47: 3.174603175
A48: 93 4 | B48: 100 | C48: 87.71929825 | D48: 85.96491228 | E48: 1.754385965 | F48: 0 | G48: 12.28070175 | H48: 10.52631579 | I48: 1.754385965
A49: 1993 平成5年 | B49: 100 | C49: 98.03921569 | D49: 92.15686275 | E49: 5.882352941 | F49: 0 | G49: 1.960784314 | H49: 1.960784314 | I49: 0
A50: 94 6 | B50: 100 | C50: 84.61538462 | D50: 83.07692308 | E50: 1.538461538 | F50: 0 | G50: 15.38461538 | H50: 15.38461538 | I50: 0
A51: 95 7 | B51: 100 | C51: 84.90566038 | D51: 84.90566038 | E51: 0 | F51: 0 | G51: 15.09433962 | H51: 13.20754717 | I51: 1.886792453
A52: 96 8 | B52: 100 | C52: 94.54545455 | D52: 94.54545455 | E52: 0 | F52: 0 | G52: 5.454545455 | H52: 3.636363636 | I52: 1.818181818
A53: 97 9 | B53: 100 | C53: 86.53846154 | D53: 84.61538462 | E53: 1.923076923 | F53: 0 | G53: 13.46153846 | H53: 13.46153846 | I53: 0
A54: 1998 平成10年 | B54: 100 | C54: 91.11111111 | D54: 91.11111111 | E54: 0 | F54: 0 | G54: 8.888888889 | H54: 6.666666667 | I54: 2.222222222
A55: 99 11 | B55: 100 | C55: 81.25 | D55: 81.25 | E55: 0 | F55: 0 | G55: 18.75 | H55: 15.625 | I55: 3.125
A56: 2000 12 | B56: 100 | C56: 76.47058824 | D56: 76.47058824 | E56: 0 | F56: 0 | G56: 23.52941176 | H56: 20.58823529 | I56: 2.941176471
A57: 01 13 | B57: 100 | C57: 69.6969697 | D57: 66.66666667 | E57: 3.03030303 | F57: 0 | G57: 30.3030303 | H57: 27.27272727 | I57: 3.03030303
A58: 02 14 | B58: 100 | C58: 83.87096774 | D58: 83.87096774 | E58: 0 | F58: 0 | G58: 16.12903226 | H58: 16.12903226 | I58: 0
A59: 03 15 | B59: 100 | C59: 87.5 | D59: 87.5 | E59: 0 | F59: 0 | G59: 12.5 | H59: 7.5 | I59: 5
A60: 04 16 | B60: 100 | C60: 77.77777778 | D60: 75.55555556 | E60: 2.222222222 | F60: 0 | G60: 22.22222222 | H60: 22.22222222 | I60: 0
A61: 05 17 | B61: 100 | C61: 81.57894737 | D61: 76.31578947 | E61: 5.263157895 | F61: 0 | G61: 18.42105263 | H61: 13.15789474 | I61: 5.263157895
A62: 06 18 | B62: 100 | C62: 85.29411765 | D62: 82.35294118 | E62: 2.941176471 | F62: 0 | G62: 14.70588235 | H62: 11.76470588 | I62: 2.941176471
A63: 07 19 | B63: 100 | C63: 73.52941176 | D63: 70.58823529 | E63: 2.941176471 | F63: 0 | G63: 26.47058824 | H63: 23.52941176 | I63: 2.941176471
A64: 08 20 | B64: 100 | C64: 88.23529412 | D64: 82.35294118 | E64: 5.882352941 | F64: 0 | G64: 11.76470588 | H64: 11.76470588 | I64: 0
A65: 09 21 | B65: 100 | C65: 72.72727273 | D65: 72.72727273 | E65: 0 | F65: 0 | G65: 27.27272727 | H65: 27.27272727 | I65: 0
A66: 10 22 | B66: =SUM(C66,G66) -> 100 | C66: =C31/$B31*100 -> 76.92307692 | D66: 76.92307692 | E66: 0 | F66: 0 | G66: 23.07692308 | H66: 19.23076923 | I66: 3.846153846
A67: 11 23 | B67: 100 | C67: 80 | D67: 77.5 | E67: 2.5 | F67: 0 | G67: 20 | H67: 20 | I67: 0
A68: 12 24 | B68: 100 | C68: 79.41176471 | D68: 76.47058824 | E68: 2.941176471 | F68: 0 | G68: 20.58823529 | H68: 17.64705882 | I68: 2.941176471
A69: 13 25 | B69: 100 | C69: 88.23529412 | D69: 88.23529412 | E69: 0 | F69: 0 | G69: 11.76470588 | H69: 11.76470588 | I69: 0
A70: 14 26 | B70: 100 | C70: 96.15384615 | D70: 88.46153846 | E70: 7.692307692 | F70: 0 | G70: 3.846153846 | H70: 3.846153846 | I70: 0
A71: 15 27 | B71: 100 | C71: 100 | D71: 100 | E71: 0 | F71: 0 | G71: 0 | H71: 0 | I71: 0
A72: 16 28 | B72: 100 | C72: 96.55172414 | D72: 96.55172414 | E72: 0 | F72: 0 | G72: 3.448275862 | H72: 3.448275862 | I72: 0
A73: 17 29 | B73: 100 | C73: 96 | D73: 96 | E73: 0 | F73: 0 | G73: 4 | H73: 4 | I73: 0
A74: 18 30 | B74: =SUM(C74,G74) -> 100 | C74: =C39/$B39*100 -> 91.17647059 | D74: 88.23529412 | E74: 2.941176471 | F74: 0 | G74: 8.823529412 | H74: 8.823529412 | I74: 0

Sheet 9 生存期間・性別，乳児簡単死因分類別死亡数
A1: 9 生存期間・性別にみた乳児死因簡単分類別乳児死亡数
AB2: ='3 乳児死亡数，月・性・区別'!$O$2 -> 平成30年
A3: 乳児死因 簡単分類 コ ー ド | B3: 死因・性 | E3: 総数 | F3: 日 齢 － 月 齢
F4: 1日 未満 | G4: 1日 | H4: 2日 | I4: 3日 | J4: 4日 | K4: 5日 | L4: 6日 | M4: １週未満 | N4: 1週～ 2週未満 | O4: 2週～ 3週未満 | P4: 3週～ 4週未満 | Q4: 4週未満 | R4: 4週～ 2か月未満 | S4: 2か月 | T4: 3か月 | U4: 4か月 | V4: 5か月 | W4: 6か月 | X4: 7か月 | Y4: 8か月 | Z4: 9か月 | AA4: 10か月 | AB4: 11か月
B6: 総 数 | D6: 総数 | E6: =SUM(E9,E12,E15,E18,E21,E24,E33,E36,E39,E42,E45,E48,E51,E54,E57,E60,E63,E66,E69,E72,E75,E111,E138,E141,E144,E171,E174) -> 34 | F6: =SUM(F9,F12,F15,F18,F21,F24,F33,F36,F39,F42,F45,F48,F51,F54,F57,F60,F63,F66,F69,F72,F75,F111,F138,F141,F144,F171,F174) -> 10 | G6: 1 | H6: 0 | I6: 3 | J6: 0 | K6: 1 | L6: 0 | M6: 15 | N6: 1 | O6: 3 | P6: 1 | Q6: 20 | R6: 3 | S6: 2 | T6: 2 | U6: 3 | V6: 1 | W6: 1 | X6: 0 | Y6: 1 | Z6: 1 | AA6: 0 | AB6: 0
D7: 男 | E7: =SUM(E10,E13,E16,E19,E22,E25,E34,E37,E40,E43,E46,E49,E52,E55,E58,E61,E64,E67,E70,E73,E76,E112,E139,E142,E145,E172,E175) -> 16 | F7: 6 | G7: 1 | H7: 0 | I7: 1 | J7: 0 | K7: 0 | L7: 0 | M7: 8 | N7: 0 | O7: 2 | P7: 1 | Q7: 11 | R7: 1 | S7: 1 | T7: 0 | U7: 2 | V7: 0 | W7: 0 | X7: 0 | Y7: 0 | Z7: 1 | AA7: 0 | AB7: 0
D8: 女 | E8: =SUM(E11,E14,E17,E20,E23,E26,E35,E38,E41,E44,E47,E50,E53,E56,E59,E62,E65,E68,E71,E74,E77,E113,E140,E143,E146,E173,E176) -> 18 | F8: 4 | G8: 0 | H8: 0 | I8: 2 | J8: 0 | K8: 1 | L8: 0 | M8: 7 | N8: 1 | O8: 1 | P8: 0 | Q8: 9 | R8: 2 | S8: 1 | T8: 2 | U8: 1 | V8: 1 | W8: 1 | X8: 0 | Y8: 1 | Z8: 0 | AA8: 0 | AB8: 0
A9: Ba01 | B9: 腸管感染症 | D9: 総数 | E9: =SUM(Q9:AB9) -> 0 | F9: =SUM(F10:F11) -> 0 | G9: =SUM(G10:G11) -> 0 | H9: =SUM(H10:H11) -> 0 | I9: 0 | J9: 0 | K9: 0 | L9: 0 | M9: 0 | N9: 0 | O9: 0 | P9: 0 | Q9: 0 | R9: 0 | S9: 0 | T9: 0 | U9: 0 | V9: 0 | W9: 0 | X9: 0 | Y9: 0 | Z9: 0 | AA9: 0 | AB9: 0
D10: 男 | E10: =SUM(Q10:AB10) -> 0 | F10: 0 | G10: 0 | H10: 0 | I10: 0 | J10: 0 | K10: 0 | L10: 0 | M10: =SUM(F10:L10) -> 0 | N10: 0 | O10: 0 | P10: 0 | Q10: =SUM(M10:P10) -> 0 | R10: 0 | S10: 0 | T10: 0 | U10: 0 | V10: 0 | W10: 0 | X10: 0 | Y10: 0 | Z10: 0 | AA10: 0 | AB10: 0
D11: 女 | E11: 0 | F11: 0 | G11: 0 | H11: 0 | I11: 0 | J11: 0 | K11: 0 | L11: 0 | M11: =SUM(F11:L11) -> 0 | N11: 0 | O11: 0 | P11: 0 | Q11: 0 | R11: 0 | S11: 0 | T11: 0 | U11: 0 | V11: 0 | W11: 0 | X11: 0 | Y11: 0 | Z11: 0 | AA11: 0 | AB11: 0
A12: Ba02 | B12: 敗血症（新生児の細菌性敗血症を除く） | D12: 総数 | E12: 1 | F12: =SUM(F13:F14) -> 0 | G12: =SUM(G13:G14) -> 0 | H12: =SUM(H13:H14) -> 0 | I12: 0 | J12: 0 | K12: 0 | L12: 0 | M12: =SUM(M13:M14) -> 0 | N12: =SUM(N13:N14) -> 0 | O12: 0 | P12: 0 | Q12: 0 | R12: 0 | S12: =SUM(S13:S14) -> 0 | T12: 0 | U12: 0 | V12: 0 | W12: 0 | X12: 0 | Y12: 0 | Z12: 1 | AA12: 0 | AB12: 0
D13: 男 | E13: 1 | F13: 0 | G13: 0 | H13: 0 | I13: 0 | J13: 0 | K13: 0 | L13: 0 | M13: =SUM(F13:L13) -> 0 | N13: 0 | O13: 0 | P13: 0 | Q13: 0 | R13: 0 | S13: 0 | T13: 0 | U13: 0 | V13: 0 | W13: 0 | X13: 0 | Y13: 0 | Z13: 1 | AA13: 0 | AB13: 0
D14: 女 | E14: 0 | F14: 0 | G14: 0 | H14: 0 | I14: 0 | J14: 0 | K14: 0 | L14: 0 | M14: =SUM(F14:L14) -> 0 | N14: 0 | O14: 0 | P14: 0 | Q14: 0 | R14: 0 | S14: 0 | T14: 0 | U14: 0 | V14: 0 | W14: 0 | X14: 0 | Y14: 0 | Z14: 0 | AA14: 0 | AB14: 0
A15: Ba03 | B15: 麻 疹 | D15: 総数 | E15: 0 | F15: =SUM(F16:F17) -> 0 | G15: =SUM(G16:G17) -> 0 | H15: =SUM(H16:H17) -> 0 | I15: 0 | J15: 0 | K15: 0 | L15: 0 | M15: 0 | N15: 0 | O15: 0 | P15: 0 | Q15: 0 | R15: 0 | S15: =SUM(S16:S17) -> 0 | T15: 0 | U15: 0 | V15: 0 | W15: 0 | X15: 0 | Y15: 0 | Z15: 0 | AA15: 0 | AB15: 0
D16: 男 | E16: 0 | F16: 0 | G16: 0 | H16: 0 | I16: 0 | J16: 0 | K16: 0 | L16: 0 | M16: =SUM(F16:L16) -> 0 | N16: 0 | O16: 0 | P16: 0 | Q16: 0 | R16: 0 | S16: 0 | T16: 0 | U16: 0 | V16: 0 | W16: 0 | X16: 0 | Y16: 0 | Z16: 0 | AA16: 0 | AB16: 0
D17: 女 | E17: 0 | F17: 0 | G17: 0 | H17: 0 | I17: 0 | J17: 0 | K17: 0 | L17: 0 | M17: =SUM(F17:L17) -> 0 | N17: 0 | O17: 0 | P17: 0 | Q17: 0 | R17: 0 | S17: 0 | T17: 0 | U17: 0 | V17: 0 | W17: 0 | X17: 0 | Y17: 0 | Z17: 0 | AA17: 0 | AB17: 0
A18: Ba04 | B18: ウイルス肝炎 | D18: 総数 | E18: 0 | F18: =SUM(F19:F20) -> 0 | G18: =SUM(G19:G20) -> 0 | H18: =SUM(H19:H20) -> 0 | I18: 0 | J18: 0 | K18: 0 | L18: 0 | M18: 0 | N18: 0 | O18: 0 | P18: 0 | Q18: 0 | R18: 0 | S18: =SUM(S19:S20) -> 0 | T18: 0 | U18: 0 | V18: 0 | W18: 0 | X18: 0 | Y18: 0 | Z18: 0 | AA18: 0 | AB18: 0
D19: 男 | E19: 0 | F19: 0 | G19: 0 | H19: 0 | I19: 0 | J19: 0 | K19: 0 | L19: 0 | M19: =SUM(F19:L19) -> 0 | N19: 0 | O19: 0 | P19: 0 | Q19: 0 | R19: 0 | S19: 0 | T19: 0 | U19: 0 | V19: 0 | W19: 0 | X19: 0 | Y19: 0 | Z19: 0 | AA19: 0 | AB19: 0
D20: 女 | E20: 0 | F20: 0 | G20: 0 | H20: 0 | I20: 0 | J20: 0 | K20: 0 | L20: 0 | M20: =SUM(F20:L20) -> 0 | N20: 0 | O20: 0 | P20: 0 | Q20: 0 | R20: 0 | S20: 0 | T20: 0 | U20: 0 | V20: 0 | W20: 0 | X20: 0 | Y20: 0 | Z20: 0 | AA20: 0 | AB20: 0
A21: Ba05 | B21: その他の感染症及び寄生虫症 | D21: 総数 | E21: 0 | F21: =SUM(F22:F23) -> 0 | G21: =SUM(G22:G23) -> 0 | H21: =SUM(H22:H23) -> 0 | I21: 0 | J21: 0 | K21: 0 | L21: 0 | M21: 0 | N21: 0 | O21: 0 | P21: 0 | Q21: 0 | R21: 0 | S21: =SUM(S22:S23) -> 0 | T21: 0 | U21: 0 | V21: 0 | W21: 0 | X21: 0 | Y21: 0 | Z21: 0 | AA21: 0 | AB21: 0
D22: 男 | E22: 0 | F22: 0 | G22: 0 | H22: 0 | I22: 0 | J22: 0 | K22: 0 | L22: 0 | M22: =SUM(F22:L22) -> 0 | N22: 0 | O22: 0 | P22: 0 | Q22: 0 | R22: 0 | S22: 0 | T22: 0 | U22: 0 | V22: 0 | W22: 0 | X22: 0 | Y22: 0 | Z22: 0 | AA22: 0 | AB22: 0
D23: 女 | E23: 0 | F23: 0 | G23: 0 | H23: 0 | I23: 0 | J23: 0 | K23: 0 | L23: 0 | M23: =SUM(F23:L23) -> 0 | N23: 0 | O23: 0 | P23: 0 | Q23: 0 | R23: 0 | S23: 0 | T23: 0 | U23: 0 | V23: 0 | W23: 0 | X23: 0 | Y23: 0 | Z23: 0 | AA23: 0 | AB23: 0
A24: Ba06 | B24: 悪性新生物 | D24: 総数 | E24: 0 | F24: =SUM(F27,F30) -> 0 | G24: =SUM(G27,G30) -> 0 | H24: 0 | I24: 0 | J24: 0 | K24: 0 | L24: 0 | M24: 0 | N24: 0 | O24: 0 | P24: 0 | Q24: 0 | R24: 0 | S24: =SUM(S27,S30) -> 0 | T24: 0 | U24: 0 | V24: 0 | W24: 0 | X24: 0 | Y24: 0 | Z24: 0 | AA24: 0 | AB24: 0
D25: 男 | E25: 0 | F25: =SUM(F28,F31) -> 0 | G25: =SUM(G28,G31) -> 0 | H25: =SUM(H28,H31) -> 0 | I25: 0 | J25: 0 | K25: 0 | L25: 0 | M25: 0 | N25: 0 | O25: 0 | P25: 0 | Q25: 0 | R25: 0 | S25: =SUM(S28,S31) -> 0 | T25: 0 | U25: 0 | V25: 0 | W25: 0 | X25: 0 | Y25: 0 | Z25: 0 | AA25: 0 | AB25: 0
D26: 女 | E26: 0 | F26: =SUM(F29,F32) -> 0 | G26: =SUM(G29,G32) -> 0 | H26: 0 | I26: 0 | J26: 0 | K26: 0 | L26: 0 | M26: 0 | N26: 0 | O26: 0 | P26: 0 | Q26: 0 | R26: 0 | S26: =SUM(S29,S32) -> 0 | T26: 0 | U26: 0 | V26: 0 | W26: 0 | X26: 0 | Y26: 0 | Z26: 0 | AA26: 0 | AB26: 0
A27: Ba07 | C27: 白 血 病 | D27: 総数 | E27: 0 | F27: =SUM(F28:F29) -> 0 | G27: =SUM(G28:G29) -> 0 | H27: =SUM(H28:H29) -> 0 | I27: 0 | J27: 0 | K27: 0 | L27: 0 | M27: 0 | N27: 0 | O27: 0 | P27: 0 | Q27: 0 | R27: 0 | S27: =SUM(S28:S29) -> 0 | T27: 0 | U27: 0 | V27: 0 | W27: 0 | X27: 0 | Y27: 0 | Z27: 0 | AA27: 0 | AB27: 0
D28: 男 | E28: 0 | F28: 0 | G28: 0 | H28: 0 | I28: 0 | J28: 0 | K28: 0 | L28: 0 | M28: =SUM(F28:L28) -> 0 | N28: 0 | O28: 0 | P28: 0 | Q28: 0 | R28: 0 | S28: 0 | T28: 0 | U28: 0 | V28: 0 | W28: 0 | X28: 0 | Y28: 0 | Z28: 0 | AA28: 0 | AB28: 0
D29: 女 | E29: 0 | F29: 0 | G29: 0 | H29: 0 | I29: 0 | J29: 0 | K29: 0 | L29: 0 | M29: =SUM(F29:L29) -> 0 | N29: 0 | O29: 0 | P29: 0 | Q29: 0 | R29: 0 | S29: 0 | T29: 0 | U29: 0 | V29: 0 | W29: 0 | X29: 0 | Y29: 0 | Z29: 0 | AA29: 0 | AB29: 0
A30: Ba08 | C30: その他の悪性新生物 | D30: 総数 | E30: 0 | F30: =SUM(F31:F32) -> 0 | G30: =SUM(G31:G32) -> 0 | H30: =SUM(H31:H32) -> 0 | I30: 0 | J30: 0 | K30: 0 | L30: 0 | M30: 0 | N30: 0 | O30: 0 | P30: 0 | Q30: 0 | R30: 0 | S30: =SUM(S31:S32) -> 0 | T30: 0 | U30: 0 | V30: 0 | W30: 0 | X30: 0 | Y30: 0 | Z30: 0 | AA30: 0 | AB30: 0
D31: 男 | E31: 0 | F31: 0 | G31: 0 | H31: 0 | I31: 0 | J31: 0 | K31: 0 | L31: 0 | M31: =SUM(F31:L31) -> 0 | N31: 0 | O31: 0 | P31: 0 | Q31: 0 | R31: 0 | S31: 0 | T31: 0 | U31: 0 | V31: 0 | W31: 0 | X31: 0 | Y31: 0 | Z31: 0 | AA31: 0 | AB31: 0
D32: 女 | E32: 0 | F32: 0 | G32: 0 | H32: 0 | I32: 0 | J32: 0 | K32: 0 | L32: 0 | M32: =SUM(F32:L32) -> 0 | N32: 0 | O32: 0 | P32: 0 | Q32: 0 | R32: 0 | S32: 0 | T32: 0 | U32: 0 | V32: 0 | W32: 0 | X32: 0 | Y32: 0 | Z32: 0 | AA32: 0 | AB32: 0
A33: Ba09 | B33: その他の新生物 | D33: 総数 | E33: 0 | F33: =SUM(F34:F35) -> 0 | G33: =SUM(G34:G35) -> 0 | H33: =SUM(H34:H35) -> 0 | I33: 0 | J33: 0 | K33: 0 | L33: 0 | M33: 0 | N33: 0 | O33: 0 | P33: 0 | Q33: 0 | R33: 0 | S33: =SUM(S34:S35) -> 0 | T33: 0 | U33: 0 | V33: 0 | W33: 0 | X33: 0 | Y33: 0 | Z33: 0 | AA33: 0 | AB33: 0
D34: 男 | E34: 0 | F34: 0 | G34: 0 | H34: 0 | I34: 0 | J34: 0 | K34: 0 | L34: 0 | M34: =SUM(F34:L34) -> 0 | N34: 0 | O34: 0 | P34: 0 | Q34: 0 | R34: 0 | S34: 0 | T34: 0 | U34: 0 | V34: 0 | W34: 0 | X34: 0 | Y34: 0 | Z34: 0 | AA34: 0 | AB34: 0
D35: 女 | E35: 0 | F35: 0 | G35: 0 | H35: 0 | I35: 0 | J35: 0 | K35: 0 | L35: 0 | M35: =SUM(F35:L35) -> 0 | N35: 0 | O35: 0 | P35: 0 | Q35: 0 | R35: 0 | S35: 0 | T35: 0 | U35: 0 | V35: 0 | W35: 0 | X35: 0 | Y35: 0 | Z35: 0 | AA35: 0 | AB35: 0
A36: Ba10 | B36: 栄養失調症及びその他の栄養欠乏症 | D36: 総数 | E36: 0 | F36: =SUM(F37:F38) -> 0 | G36: =SUM(G37:G38) -> 0 | H36: 0 | I36: 0 | J36: 0 | K36: 0 | L36: 0 | M36: 0 | N36: 0 | O36: 0 | P36: 0 | Q36: 0 | R36: 0 | S36: =SUM(S37:S38) -> 0 | T36: 0 | U36: 0 | V36: 0 | W36: 0 | X36: 0 | Y36: 0 | Z36: 0 | AA36: 0 | AB36: 0
D37: 男 | E37: 0 | F37: 0 | G37: 0 | H37: 0 | I37: 0 | J37: 0 | K37: 0 | L37: 0 | M37: =SUM(F37:L37) -> 0 | N37: 0 | O37: 0 | P37: 0 | Q37: =SUM(M37:P37) -> 0 | R37: 0 | S37: 0 | T37: 0 | U37: 0 | V37: 0 | W37: 0 | X37: 0 | Y37: 0 | Z37: 0 | AA37: 0 | AB37: 0
D38: 女 | E38: 0 | F38: 0 | G38: 0 | H38: 0 | I38: 0 | J38: 0 | K38: 0 | L38: 0 | M38: =SUM(F38:L38) -> 0 | N38: 0 | O38: 0 | P38: 0 | Q38: =SUM(M38:P38) -> 0 | R38: 0 | S38: 0 | T38: 0 | U38: 0 | V38: 0 | W38: 0 | X38: 0 | Y38: 0 | Z38: 0 | AA38: 0 | AB38: 0
A39: Ba11 | B39: 代 謝 障 害 | D39: 総数 | E39: 0 | F39: =SUM(F40:F41) -> 0 | G39: 0 | H39: 0 | I39: 0 | J39: 0 | K39: 0 | L39: 0 | M39: 0 | N39: 0 | O39: 0 | P39: 0 | Q39: =SUM(Q40:Q41) -> 0 | R39: =SUM(R40:R41) -> 0 | S39: =SUM(S40:S41) -> 0 | T39: 0 | U39: 0 | V39: 0 | W39: 0 | X39: 0 | Y39: 0 | Z39: 0 | AA39: 0 | AB39: =SUM(AB40:AB41) -> 0
D40: 男 | E40: 0 | F40: 0 | G40: 0 | H40: 0 | I40: 0 | J40: 0 | K40: 0 | L40: 0 | M40: =SUM(F40:L40) -> 0 | N40: 0 | O40: 0 | P40: 0 | Q40: =SUM(M40:P40) -> 0 | R40: 0 | S40: 0 | T40: 0 | U40: 0 | V40: 0 | W40: 0 | X40: 0 | Y40: 0 | Z40: 0 | AA40: 0 | AB40: 0
D41: 女 | E41: 0 | F41: 0 | G41: 0 | H41: 0 | I41: 0 | J41: 0 | K41: 0 | L41: 0 | M41: =SUM(F41:L41) -> 0 | N41: 0 | O41: 0 | P41: 0 | Q41: =SUM(M41:P41) -> 0 | R41: 0 | S41: 0 | T41: 0 | U41: 0 | V41: 0 | W41: 0 | X41: 0 | Y41: 0 | Z41: 0 | AA41: 0 | AB41: 0
A42: Ba12 | B42: 髄 膜 炎 | D42: 総数 | E42: 0 | F42: =SUM(F43:F44) -> 0 | G42: =SUM(G43:G44) -> 0 | H42: 0 | I42: 0 | J42: 0 | K42: 0 | L42: 0 | M42: 0 | N42: 0 | O42: 0 | P42: 0 | Q42: 0 | R42: 0 | S42: =SUM(S43:S44) -> 0 | T42: 0 | U42: 0 | V42: 0 | W42: 0 | X42: 0 | Y42: 0 | Z42: 0 | AA42: 0 | AB42: 0
D43: 男 | E43: 0 | F43: 0 | G43: 0 | H43: 0 | I43: 0 | J43: 0 | K43: 0 | L43: 0 | M43: =SUM(F43:L43) -> 0 | N43: 0 | O43: 0 | P43: 0 | Q43: =SUM(M43:P43) -> 0 | R43: 0 | S43: 0 | T43: 0 | U43: 0 | V43: 0 | W43: 0 | X43: 0 | Y43: 0 | Z43: 0 | AA43: 0 | AB43: 0
D44: 女 | E44: 0 | F44: 0 | G44: 0 | H44: 0 | I44: 0 | J44: 0 | K44: 0 | L44: 0 | M44: =SUM(F44:L44) -> 0 | N44: 0 | O44: 0 | P44: 0 | Q44: =SUM(M44:P44) -> 0 | R44: 0 | S44: 0 | T44: 0 | U44: 0 | V44: 0 | W44: 0 | X44: 0 | Y44: 0 | Z44: 0 | AA44: 0 | AB44: 0
A45: Ba13 | B45: 脊髄性筋萎縮症及び関連症候群 | D45: 総数 | E45: 0 | F45: =SUM(F46:F47) -> 0 | G45: =SUM(G46:G47) -> 0 | H45: 0 | I45: 0 | J45: 0 | K45: 0 | L45: 0 | M45: 0 | N45: 0 | O45: 0 | P45: 0 | Q45: 0 | R45: 0 | S45: =SUM(S46:S47) -> 0 | T45: 0 | U45: 0 | V45: 0 | W45: 0 | X45: 0 | Y45: 0 | Z45: 0 | AA45: 0 | AB45: 0
D46: 男 | E46: 0 | F46: 0 | G46: 0 | H46: 0 | I46: 0 | J46: 0 | K46: 0 | L46: 0 | M46: =SUM(F46:L46) -> 0 | N46: 0 | O46: 0 | P46: 0 | Q46: =SUM(M46:P46) -> 0 | R46: 0 | S46: 0 | T46: 0 | U46: 0 | V46: 0 | W46: 0 | X46: 0 | Y46: 0 | Z46: 0 | AA46: 0 | AB46: 0
D47: 女 | E47: 0 | F47: 0 | G47: 0 | H47: 0 | I47: 0 | J47: 0 | K47: 0 | L47: 0 | M47: =SUM(F47:L47) -> 0 | N47: 0 | O47: 0 | P47: 0 | Q47: =SUM(M47:P47) -> 0 | R47: 0 | S47: 0 | T47: 0 | U47: 0 | V47: 0 | W47: 0 | X47: 0 | Y47: 0 | Z47: 0 | AA47: 0 | AB47: 0
A48: Ba14 | B48: 脳 性 麻 痺 | D48: 総数 | E48: 0 | F48: =SUM(F49:F50) -> 0 | G48: =SUM(G49:G50) -> 0 | H48: 0 | I48: 0 | J48: 0 | K48: 0 | L48: 0 | M48: =SUM(M49:M50) -> 0 | N48: 0 | O48: 0 | P48: 0 | Q48: 0 | R48: 0 | S48: =SUM(S49:S50) -> 0 | T48: 0 | U48: 0 | V48: 0 | W48: 0 | X48: 0 | Y48: 0 | Z48: 0 | AA48: 0 | AB48: 0
D49: 男 | E49: 0 | F49: 0 | G49: 0 | H49: 0 | I49: 0 | J49: 0 | K49: 0 | L49: 0 | M49: =SUM(F49:L49) -> 0 | N49: 0 | O49: 0 | P49: 0 | Q49: =SUM(M49:P49) -> 0 | R49: 0 | S49: 0 | T49: 0 | U49: 0 | V49: 0 | W49: 0 | X49: 0 | Y49: 0 | Z49: 0 | AA49: 0 | AB49: 0
D50: 女 | E50: 0 | F50: 0 | G50: 0 | H50: 0 | I50: 0 | J50: 0 | K50: 0 | L50: 0 | M50: =SUM(F50:L50) -> 0 | N50: 0 | O50: 0 | P50: 0 | Q50: =SUM(M50:P50) -> 0 | R50: 0 | S50: 0 | T50: 0 | U50: 0 | V50: 0 | W50: 0 | X50: 0 | Y50: 0 | Z50: 0 | AA50: 0 | AB50: 0
A51: Ba15 | B51: 心疾患（高血圧性を除く） | D51: 総数 | E51: 2 | F51: =SUM(F52:F53) -> 0 | G51: =SUM(G52:G53) -> 0 | H51: 0 | I51: 0 | J51: 0 | K51: 0 | L51: 0 | M51: =SUM(M52:M53) -> 0 | N51: 0 | O51: 0 | P51: 0 | Q51: 0 | R51: 1 | S51: =SUM(S52:S53) -> 0 | T51: 0 | U51: 0 | V51: 0 | W51: 0 | X51: 0 | Y51: 1 | Z51: 0 | AA51: 0 | AB51: 0
D52: 男 | E52: 0 | F52: 0 | G52: 0 | H52: 0 | I52: 0 | J52: 0 | K52: 0 | L52: 0 | M52: =SUM(F52:L52) -> 0 | N52: 0 | O52: 0 | P52: 0 | Q52: =SUM(M52:P52) -> 0 | R52: 0 | S52: 0 | T52: 0 | U52: 0 | V52: 0 | W52: 0 | X52: 0 | Y52: 0 | Z52: 0 | AA52: 0 | AB52: 0
D53: 女 | E53: 2 | F53: 0 | G53: 0 | H53: 0 | I53: 0 | J53: 0 | K53: 0 | L53: 0 | M53: =SUM(F53:L53) -> 0 | N53: 0 | O53: 0 | P53: 0 | Q53: =SUM(M53:P53) -> 0 | R53: 1 | S53: 0 | T53: 0 | U53: 0 | V53: 0 | W53: 0 | X53: 0 | Y53: 1 | Z53: 0 | AA53: 0 | AB53: 0
A54: Ba16 | B54: 脳血管疾患 | D54: 総数 | E54: 0 | F54: =SUM(F55:F56) -> 0 | G54: =SUM(G55:G56) -> 0 | H54: 0 | I54: 0 | J54: 0 | K54: 0 | L54: 0 | M54: 0 | N54: 0 | O54: 0 | P54: 0 | Q54: 0 | R54: 0 | S54: =SUM(S55:S56) -> 0 | T54: 0 | U54: 0 | V54: 0 | W54: 0 | X54: 0 | Y54: 0 | Z54: 0 | AA54: 0 | AB54: 0
D55: 男 | E55: 0 | F55: 0 | G55: 0 | H55: 0 | I55: 0 | J55: 0 | K55: 0 | L55: 0 | M55: =SUM(F55:L55) -> 0 | N55: 0 | O55: 0 | P55: 0 | Q55: =SUM(M55:P55) -> 0 | R55: 0 | S55: 0 | T55: 0 | U55: 0 | V55: 0 | W55: 0 | X55: 0 | Y55: 0 | Z55: 0 | AA55: 0 | AB55: 0
D56: 女 | E56: 0 | F56: 0 | G56: 0 | H56: 0 | I56: 0 | J56: 0 | K56: 0 | L56: 0 | M56: =SUM(F56:L56) -> 0 | N56: 0 | O56: 0 | P56: 0 | Q56: =SUM(M56:P56) -> 0 | R56: 0 | S56: 0 | T56: 0 | U56: 0 | V56: 0 | W56: 0 | X56: 0 | Y56: 0 | Z56: 0 | AA56: 0 | AB56: 0
A57: Ba17 | B57: インフルエンザ | D57: 総数 | E57: 0 | F57: =SUM(F58:F59) -> 0 | G57: =SUM(G58:G59) -> 0 | H57: 0 | I57: 0 | J57: 0 | K57: 0 | L57: 0 | M57: 0 | N57: 0 | O57: 0 | P57: 0 | Q57: 0 | R57: 0 | S57: =SUM(S58:S59) -> 0 | T57: 0 | U57: 0 | V57: 0 | W57: 0 | X57: 0 | Y57: 0 | Z57: 0 | AA57: 0 | AB57: 0
D58: 男 | E58: 0 | F58: 0 | G58: 0 | H58: 0 | I58: 0 | J58: 0 | K58: 0 | L58: 0 | M58: =SUM(F58:L58) -> 0 | N58: 0 | O58: 0 | P58: 0 | Q58: =SUM(M58:P58) -> 0 | R58: 0 | S58: 0 | T58: 0 | U58: 0 | V58: 0 | W58: 0 | X58: 0 | Y58: 0 | Z58: 0 | AA58: 0 | AB58: 0
D59: 女 | E59: 0 | F59: 0 | G59: 0 | H59: 0 | I59: 0 | J59: 0 | K59: 0 | L59: 0 | M59: =SUM(F59:L59) -> 0 | N59: 0 | O59: 0 | P59: 0 | Q59: =SUM(M59:P59) -> 0 | R59: 0 | S59: 0 | T59: 0 | U59: 0 | V59: 0 | W59: 0 | X59: 0 | Y59: 0 | Z59: 0 | AA59: 0 | AB59: 0
A60: Ba18 | B60: 肺 炎 | D60: 総数 | E60: 1 | F60: =SUM(F61:F62) -> 0 | G60: =SUM(G61:G62) -> 0 | H60: 0 | I60: 0 | J60: 0 | K60: 0 | L60: 0 | M60: 0 | N60: 1 | O60: 0 | P60: 0 | Q60: 1 | R60: 0 | S60: =SUM(S61:S62) -> 0 | T60: 0 | U60: 0 | V60: 0 | W60: 0 | X60: 0 | Y60: 0 | Z60: 0 | AA60: 0 | AB60: 0
D61: 男 | E61: 0 | F61: 0 | G61: 0 | H61: 0 | I61: 0 | J61: 0 | K61: 0 | L61: 0 | M61: =SUM(F61:L61) -> 0 | N61: 0 | O61: 0 | P61: 0 | Q61: =SUM(M61:P61) -> 0 | R61: 0 | S61: 0 | T61: 0 | U61: 0 | V61: 0 | W61: 0 | X61: 0 | Y61: 0 | Z61: 0 | AA61: 0 | AB61: 0
D62: 女 | E62: 1 | F62: 0 | G62: 0 | H62: 0 | I62: 0 | J62: 0 | K62: 0 | L62: 0 | M62: =SUM(F62:L62) -> 0 | N62: 1 | O62: 0 | P62: 0 | Q62: =SUM(M62:P62) -> 1 | R62: 0 | S62: 0 | T62: 0 | U62: 0 | V62: 0 | W62: 0 | X62: 0 | Y62: 0 | Z62: 0 | AA62: 0 | AB62: 0
A63: Ba19 | B63: 喘 息 | D63: 総数 | E63: 0 | F63: =SUM(F64:F65) -> 0 | G63: =SUM(G64:G65) -> 0 | H63: 0 | I63: 0 | J63: 0 | K63: 0 | L63: 0 | M63: 0 | N63: 0 | O63: 0 | P63: 0 | Q63: 0 | R63: 0 | S63: =SUM(S64:S65) -> 0 | T63: 0 | U63: 0 | V63: 0 | W63: 0 | X63: 0 | Y63: 0 | Z63: 0 | AA63: 0 | AB63: 0
D64: 男 | E64: 0 | F64: 0 | G64: 0 | H64: 0 | I64: 0 | J64: 0 | K64: 0 | L64: 0 | M64: =SUM(F64:L64) -> 0 | N64: 0 | O64: 0 | P64: 0 | Q64: =SUM(M64:P64) -> 0 | R64: 0 | S64: 0 | T64: 0 | U64: 0 | V64: 0 | W64: 0 | X64: 0 | Y64: 0 | Z64: 0 | AA64: 0 | AB64: 0
D65: 女 | E65: 0 | F65: 0 | G65: 0 | H65: 0 | I65: 0 | J65: 0 | K65: 0 | L65: 0 | M65: =SUM(F65:L65) -> 0 | N65: 0 | O65: 0 | P65: 0 | Q65: =SUM(M65:P65) -> 0 | R65: 0 | S65: 0 | T65: 0 | U65: 0 | V65: 0 | W65: 0 | X65: 0 | Y65: 0 | Z65: 0 | AA65: 0 | AB65: 0
A66: Ba20 | B66: ヘルニア及び腸閉塞 | D66: 総数 | E66: 0 | F66: =SUM(F67:F68) -> 0 | G66: =SUM(G67:G68) -> 0 | H66: 0 | I66: 0 | J66: 0 | K66: 0 | L66: 0 | M66: 0 | N66: 0 | O66: 0 | P66: 0 | Q66: 0 | R66: 0 | S66: =SUM(S67:S68) -> 0 | T66: 0 | U66: 0 | V66: 0 | W66: 0 | X66: 0 | Y66: 0 | Z66: 0 | AA66: 0 | AB66: 0
D67: 男 | E67: 0 | F67: 0 | G67: 0 | H67: 0 | I67: 0 | J67: 0 | K67: 0 | L67: 0 | M67: =SUM(F67:L67) -> 0 | N67: 0 | O67: 0 | P67: 0 | Q67: =SUM(M67:P67) -> 0 | R67: 0 | S67: 0 | T67: 0 | U67: 0 | V67: 0 | W67: 0 | X67: 0 | Y67: 0 | Z67: 0 | AA67: 0 | AB67: 0
D68: 女 | E68: 0 | F68: 0 | G68: 0 | H68: 0 | I68: 0 | J68: 0 | K68: 0 | L68: 0 | M68: =SUM(F68:L68) -> 0 | N68: 0 | O68: 0 | P68: 0 | Q68: =SUM(M68:P68) -> 0 | R68: 0 | S68: 0 | T68: 0 | U68: 0 | V68: 0 | W68: 0 | X68: 0 | Y68: 0 | Z68: 0 | AA68: 0 | AB68: 0
A69: Ba21 | B69: 肝 疾 患 | D69: 総数 | E69: 1 | F69: =SUM(F70:F71) -> 0 | G69: =SUM(G70:G71) -> 0 | H69: 0 | I69: 0 | J69: 0 | K69: 0 | L69: 0 | M69: 0 | N69: 0 | O69: 0 | P69: 0 | Q69: 0 | R69: 0 | S69: =SUM(S70:S71) -> 0 | T69: 0 | U69: 1 | V69: 0 | W69: 0 | X69: 0 | Y69: 0 | Z69: 0 | AA69: 0 | AB69: 0
D70: 男 | E70: 0 | F70: 0 | G70: 0 | H70: 0 | I70: 0 | J70: 0 | K70: 0 | L70: 0 | M70: =SUM(F70:L70) -> 0 | N70: 0 | O70: 0 | P70: 0 | Q70: =SUM(M70:P70) -> 0 | R70: 0 | S70: 0 | T70: 0 | U70: 0 | V70: 0 | W70: 0 | X70: 0 | Y70: 0 | Z70: 0 | AA70: 0 | AB70: 0
D71: 女 | E71: 1 | F71: 0 | G71: 0 | H71: 0 | I71: 0 | J71: 0 | K71: 0 | L71: 0 | M71: =SUM(F71:L71) -> 0 | N71: 0 | O71: 0 | P71: 0 | Q71: =SUM(M71:P71) -> 0 | R71: 0 | S71: 0 | T71: 0 | U71: 1 | V71: 0 | W71: 0 | X71: 0 | Y71: 0 | Z71: 0 | AA71: 0 | AB71: 0
A72: Ba22 | B72: 腎 不 全 | D72: 総数 | E72: 0 | F72: =SUM(F73:F74) -> 0 | G72: =SUM(G73:G74) -> 0 | H72: 0 | I72: 0 | J72: 0 | K72: 0 | L72: 0 | M72: 0 | N72: 0 | O72: 0 | P72: 0 | Q72: 0 | R72: 0 | S72: =SUM(S73:S74) -> 0 | T72: 0 | U72: 0 | V72: 0 | W72: 0 | X72: 0 | Y72: 0 | Z72: 0 | AA72: 0 | AB72: 0
D73: 男 | E73: 0 | F73: 0 | G73: 0 | H73: 0 | I73: 0 | J73: 0 | K73: 0 | L73: 0 | M73: =SUM(F73:L73) -> 0 | N73: 0 | O73: 0 | P73: 0 | Q73: =SUM(M73:P73) -> 0 | R73: 0 | S73: 0 | T73: 0 | U73: 0 | V73: 0 | W73: 0 | X73: 0 | Y73: 0 | Z73: 0 | AA73: 0 | AB73: 0
D74: 女 | E74: =SUM(Q74:AB74) -> 0 | F74: 0 | G74: 0 | H74: 0 | I74: 0 | J74: 0 | K74: 0 | L74: 0 | M74: =SUM(F74:L74) -> 0 | N74: 0 | O74: 0 | P74: 0 | Q74: =SUM(M74:P74) -> 0 | R74: 0 | S74: 0 | T74: 0 | U74: 0 | V74: 0 | W74: 0 | X74: 0 | Y74: 0 | Z74: 0 | AA74: 0 | AB74: 0
A75: Ba23 | B75: 周産期に発生した病態 | D75: 総数 | E75: =SUM(Q75:AB75) -> 12 | F75: =SUM(F78,F81,F84,F87,F90,F93,F96,F99,F102,F105,F108) -> 7 | G75: =SUM(G78,G81,G84,G87,G90,G93,G96,G99,G102,G105,G108) -> 1 | H75: 0 | I75: 2 | J75: 0 | K75: 0 | L75: 0 | M75: 10 | N75: 0 | O75: 2 | P75: 0 | Q75: 12 | R75: 0 | S75: =SUM(S78,S81,S84,S87,S90,S93,S96,S99,S102,S105,S108) -> 0 | T75: 0 | U75: 0 | V75: 0 | W75: 0 | X75: 0 | Y75: 0 | Z75: 0 | AA75: 0 | AB75: =SUM(AB78,AB81,AB84,AB87,AB90,AB93,AB96,AB99,AB102,AB105,AB108) -> 0
D76: 男 | E76: 8 | F76: =SUM(F79,F82,F85,F88,F91,F94,F97,F100,F103,F106,F109) -> 4 | G76: =SUM(G79,G82,G85,G88,G91,G94,G97,G100,G103,G106,G109) -> 1 | H76: 0 | I76: 1 | J76: 0 | K76: 0 | L76: 0 | M76: 6 | N76: 0 | O76: 2 | P76: 0 | Q76: 8 | R76: 0 | S76: =SUM(S79,S82,S85,S88,S91,S94,S97,S100,S103,S106,S109) -> 0 | T76: 0 | U76: 0 | V76: 0 | W76: 0 | X76: 0 | Y76: 0 | Z76: 0 | AA76: 0 | AB76: =SUM(AB79,AB82,AB85,AB88,AB91,AB94,AB97,AB100,AB103,AB106,AB109) -> 0
D77: 女 | E77: 4 | F77: =SUM(F80,F83,F86,F89,F92,F95,F98,F101,F104,F107,F110) -> 3 | G77: =SUM(G80,G83,G86,G89,G92,G95,G98,G101,G104,G107,G110) -> 0 | H77: 0 | I77: 1 | J77: 0 | K77: 0 | L77: 0 | M77: 4 | N77: 0 | O77: 0 | P77: 0 | Q77: 4 | R77: 0 | S77: =SUM(S80,S83,S86,S89,S92,S95,S98,S101,S104,S107,S110) -> 0 | T77: 0 | U77: 0 | V77: 0 | W77: 0 | X77: 0 | Y77: 0 | Z77: 0 | AA77: 0 | AB77: =SUM(AB80,AB83,AB86,AB89,AB92,AB95,AB98,AB101,AB104,AB107,AB110) -> 0
A78: Ba24 | C78: 妊娠期間及び胎児発育に関連する障害 | D78: 総数 | E78: 0 | F78: =SUM(F79:F80) -> 0 | G78: =SUM(G79:G80) -> 0 | H78: 0 | I78: 0 | J78: 0 | K78: 0 | L78: 0 | M78: 0 | N78: 0 | O78: 0 | P78: 0 | Q78: 0 | R78: 0 | S78: =SUM(S79:S80) -> 0 | T78: 0 | U78: 0 | V78: 0 | W78: 0 | X78: 0 | Y78: 0 | Z78: 0 | AA78: 0 | AB78: 0
D79: 男 | E79: 0 | F79: 0 | G79: 0 | H79: 0 | I79: 0 | J79: 0 | K79: 0 | L79: 0 | M79: =SUM(F79:L79) -> 0 | N79: 0 | O79: 0 | P79: 0 | Q79: =SUM(M79:P79) -> 0 | R79: 0 | S79: 0 | T79: 0 | U79: 0 | V79: 0 | W79: 0 | X79: 0 | Y79: 0 | Z79: 0 | AA79: 0 | AB79: 0
D80: 女 | E80: 0 | F80: 0 | G80: 0 | H80: 0 | I80: 0 | J80: 0 | K80: 0 | L80: 0 | M80: =SUM(F80:L80) -> 0 | N80: 0 | O80: 0 | P80: 0 | Q80: =SUM(M80:P80) -> 0 | R80: 0 | S80: 0 | T80: 0 | U80: 0 | V80: 0 | W80: 0 | X80: 0 | Y80: 0 | Z80: 0 | AA80: 0 | AB80: 0
A81: Ba25 | C81: 出 産 外 傷 | D81: 総数 | E81: 0 | F81: =SUM(F82:F83) -> 0 | G81: =SUM(G82:G83) -> 0 | H81: 0 | I81: 0 | J81: 0 | K81: 0 | L81: 0 | M81: 0 | N81: 0 | O81: 0 | P81: 0 | Q81: 0 | R81: 0 | S81: =SUM(S82:S83) -> 0 | T81: 0 | U81: 0 | V81: 0 | W81: 0 | X81: 0 | Y81: 0 | Z81: 0 | AA81: 0 | AB81: 0
D82: 男 | E82: 0 | F82: 0 | G82: 0 | H82: 0 | I82: 0 | J82: 0 | K82: 0 | L82: 0 | M82: =SUM(F82:L82) -> 0 | N82: 0 | O82: 0 | P82: 0 | Q82: =SUM(M82:P82) -> 0 | R82: 0 | S82: 0 | T82: 0 | U82: 0 | V82: 0 | W82: 0 | X82: 0 | Y82: 0 | Z82: 0 | AA82: 0 | AB82: 0
D83: 女 | E83: 0 | F83: 0 | G83: 0 | H83: 0 | I83: 0 | J83: 0 | K83: 0 | L83: 0 | M83: =SUM(F83:L83) -> 0 | N83: 0 | O83: 0 | P83: 0 | Q83: =SUM(M83:P83) -> 0 | R83: 0 | S83: 0 | T83: 0 | U83: 0 | V83: 0 | W83: 0 | X83: 0 | Y83: 0 | Z83: 0 | AA83: 0 | AB83: 0
A84: Ba26 | C84: 出生時仮死 | D84: 総数 | E84: 2 | F84: =SUM(F85:F86) -> 1 | G84: =SUM(G85:G86) -> 1 | H84: 0 | I84: 0 | J84: 0 | K84: 0 | L84: 0 | M84: 2 | N84: 0 | O84: 0 | P84: 0 | Q84: 2 | R84: 0 | S84: =SUM(S85:S86) -> 0 | T84: 0 | U84: 0 | V84: 0 | W84: 0 | X84: 0 | Y84: 0 | Z84: 0 | AA84: 0 | AB84: 0
D85: 男 | E85: 1 | F85: 0 | G85: 1 | H85: 0 | I85: 0 | J85: 0 | K85: 0 | L85: 0 | M85: =SUM(F85:L85) -> 1 | N85: 0 | O85: 0 | P85: 0 | Q85: =SUM(M85:P85) -> 1 | R85: 0 | S85: 0 | T85: 0 | U85: 0 | V85: 0 | W85: 0 | X85: 0 | Y85: 0 | Z85: 0 | AA85: 0 | AB85: 0
D86: 女 | E86: 1 | F86: 1 | G86: 0 | H86: 0 | I86: 0 | J86: 0 | K86: 0 | L86: 0 | M86: =SUM(F86:L86) -> 1 | N86: 0 | O86: 0 | P86: 0 | Q86: =SUM(M86:P86) -> 1 | R86: 0 | S86: 0 | T86: 0 | U86: 0 | V86: 0 | W86: 0 | X86: 0 | Y86: 0 | Z86: 0 | AA86: 0 | AB86: 0
A87: Ba27 | C87: 新生児の呼吸窮迫 | D87: 総数 | E87: 3 | F87: =SUM(F88:F89) -> 3 | G87: =SUM(G88:G89) -> 0 | H87: 0 | I87: 0 | J87: 0 | K87: 0 | L87: 0 | M87: 3 | N87: 0 | O87: 0 | P87: 0 | Q87: 3 | R87: 0 | S87: =SUM(S88:S89) -> 0 | T87: 0 | U87: 0 | V87: 0 | W87: 0 | X87: 0 | Y87: 0 | Z87: 0 | AA87: 0 | AB87: 0
D88: 男 | E88: 3 | F88: 3 | G88: 0 | H88: 0 | I88: 0 | J88: 0 | K88: 0 | L88: 0 | M88: =SUM(F88:L88) -> 3 | N88: 0 | O88: 0 | P88: 0 | Q88: =SUM(M88:P88) -> 3 | R88: 0 | S88: 0 | T88: 0 | U88: 0 | V88: 0 | W88: 0 | X88: 0 | Y88: 0 | Z88: 0 | AA88: 0 | AB88: 0
D89: 女 | E89: 0 | F89: 0 | G89: 0 | H89: 0 | I89: 0 | J89: 0 | K89: 0 | L89: 0 | M89: =SUM(F89:L89) -> 0 | N89: 0 | O89: 0 | P89: 0 | Q89: =SUM(M89:P89) -> 0 | R89: 0 | S89: 0 | T89: 0 | U89: 0 | V89: 0 | W89: 0 | X89: 0 | Y89: 0 | Z89: 0 | AA89: 0 | AB89: 0
A90: Ba28 | C90: 周産期に発生した肺出血 | D90: 総数 | E90: 0 | F90: =SUM(F91:F92) -> 0 | G90: =SUM(G91:G92) -> 0 | H90: 0 | I90: 0 | J90: 0 | K90: 0 | L90: 0 | M90: 0 | N90: 0 | O90: 0 | P90: 0 | Q90: 0 | R90: 0 | S90: =SUM(S91:S92) -> 0 | T90: 0 | U90: 0 | V90: 0 | W90: 0 | X90: 0 | Y90: 0 | Z90: 0 | AA90: 0 | AB90: 0
D91: 男 | E91: 0 | F91: 0 | G91: 0 | H91: 0 | I91: 0 | J91: 0 | K91: 0 | L91: 0 | M91: =SUM(F91:L91) -> 0 | N91: 0 | O91: 0 | P91: 0 | Q91: =SUM(M91:P91) -> 0 | R91: 0 | S91: 0 | T91: 0 | U91: 0 | V91: 0 | W91: 0 | X91: 0 | Y91: 0 | Z91: 0 | AA91: 0 | AB91: 0
D92: 女 | E92: 0 | F92: 0 | G92: 0 | H92: 0 | I92: 0 | J92: 0 | K92: 0 | L92: 0 | M92: =SUM(F92:L92) -> 0 | N92: 0 | O92: 0 | P92: 0 | Q92: =SUM(M92:P92) -> 0 | R92: 0 | S92: 0 | T92: 0 | U92: 0 | V92: 0 | W92: 0 | X92: 0 | Y92: 0 | Z92: 0 | AA92: 0 | AB92: 0
A93: Ba29 | C93: 周産期に発生した心血管障害 | D93: 総数 | E93: 1 | F93: =SUM(F94:F95) -> 0 | G93: =SUM(G94:G95) -> 0 | H93: 0 | I93: 0 | J93: 0 | K93: 0 | L93: 0 | M93: 0 | N93: 0 | O93: 1 | P93: 0 | Q93: 1 | R93: 0 | S93: =SUM(S94:S95) -> 0 | T93: 0 | U93: 0 | V93: 0 | W93: 0 | X93: 0 | Y93: 0 | Z93: 0 | AA93: 0 | AB93: 0
D94: 男 | E94: 1 | F94: 0 | G94: 0 | H94: 0 | I94: 0 | J94: 0 | K94: 0 | L94: 0 | M94: =SUM(F94:L94) -> 0 | N94: 0 | O94: 1 | P94: 0 | Q94: =SUM(M94:P94) -> 1 | R94: 0 | S94: 0 | T94: 0 | U94: 0 | V94: 0 | W94: 0 | X94: 0 | Y94: 0 | Z94: 0 | AA94: 0 | AB94: 0
D95: 女 | E95: 0 | F95: 0 | G95: 0 | H95: 0 | I95: 0 | J95: 0 | K95: 0 | L95: 0 | M95: =SUM(F95:L95) -> 0 | N95: 0 | O95: 0 | P95: 0 | Q95: =SUM(M95:P95) -> 0 | R95: 0 | S95: 0 | T95: 0 | U95: 0 | V95: 0 | W95: 0 | X95: 0 | Y95: 0 | Z95: 0 | AA95: 0 | AB95: 0
A96: Ba30 | C96: その他の周産期に特異的な呼吸障害及び心血管障害 | D96: 総数 | E96: 2 | F96: =SUM(F97:F98) -> 2 | G96: =SUM(G97:G98) -> 0 | H96: 0 | I96: 0 | J96: 0 | K96: 0 | L96: 0 | M96: 2 | N96: 0 | O96: 0 | P96: 0 | Q96: 2 | R96: 0 | S96: =SUM(S97:S98) -> 0 | T96: 0 | U96: 0 | V96: 0 | W96: 0 | X96: 0 | Y96: 0 | Z96: 0 | AA96: 0 | AB96: 0
D97: 男 | E97: 1 | F97: 1 | G97: 0 | H97: 0 | I97: 0 | J97: 0 | K97: 0 | L97: 0 | M97: =SUM(F97:L97) -> 1 | N97: 0 | O97: 0 | P97: 0 | Q97: =SUM(M97:P97) -> 1 | R97: 0 | S97: 0 | T97: 0 | U97: 0 | V97: 0 | W97: 0 | X97: 0 | Y97: 0 | Z97: 0 | AA97: 0 | AB97: 0
D98: 女 | E98: 1 | F98: 1 | G98: 0 | H98: 0 | I98: 0 | J98: 0 | K98: 0 | L98: 0 | M98: =SUM(F98:L98) -> 1 | N98: 0 | O98: 0 | P98: 0 | Q98: =SUM(M98:P98) -> 1 | R98: 0 | S98: 0 | T98: 0 | U98: 0 | V98: 0 | W98: 0 | X98: 0 | Y98: 0 | Z98: 0 | AA98: 0 | AB98: 0
A99: Ba31 | C99: 新生児の細菌性敗血症 | D99: 総数 | E99: 1 | F99: =SUM(F100:F101) -> 1 | G99: =SUM(G100:G101) -> 0 | H99: 0 | I99: 0 | J99: 0 | K99: 0 | L99: 0 | M99: 1 | N99: 0 | O99: 0 | P99: 0 | Q99: 1 | R99: 0 | S99: =SUM(S100:S101) -> 0 | T99: 0 | U99: 0 | V99: 0 | W99: 0 | X99: 0 | Y99: 0 | Z99: 0 | AA99: 0 | AB99: 0
D100: 男 | E100: 0 | F100: 0 | G100: 0 | H100: 0 | I100: 0 | J100: 0 | K100: 0 | L100: 0 | M100: =SUM(F100:L100) -> 0 | N100: 0 | O100: 0 | P100: 0 | Q100: =SUM(M100:P100) -> 0 | R100: 0 | S100: 0 | T100: 0 | U100: 0 | V100: 0 | W100: 0 | X100: 0 | Y100: 0 | Z100: 0 | AA100: 0 | AB100: 0
D101: 女 | E101: 1 | F101: 1 | G101: 0 | H101: 0 | I101: 0 | J101: 0 | K101: 0 | L101: 0 | M101: =SUM(F101:L101) -> 1 | N101: 0 | O101: 0 | P101: 0 | Q101: =SUM(M101:P101) -> 1 | R101: 0 | S101: 0 | T101: 0 | U101: 0 | V101: 0 | W101: 0 | X101: 0 | Y101: 0 | Z101: 0 | AA101: 0 | AB101: 0
A102: Ba32 | C102: その他の周産期に特異的な感染症 | D102: 総数 | E102: 0 | F102: =SUM(F103:F104) -> 0 | G102: =SUM(G103:G104) -> 0 | H102: 0 | I102: 0 | J102: 0 | K102: 0 | L102: 0 | M102: 0 | N102: 0 | O102: 0 | P102: 0 | Q102: 0 | R102: 0 | S102: =SUM(S103:S104) -> 0 | T102: 0 | U102: 0 | V102: 0 | W102: 0 | X102: 0 | Y102: 0 | Z102: 0 | AA102: 0 | AB102: 0
D103: 男 | E103: 0 | F103: 0 | G103: 0 | H103: 0 | I103: 0 | J103: 0 | K103: 0 | L103: 0 | M103: =SUM(F103:L103) -> 0 | N103: 0 | O103: 0 | P103: 0 | Q103: =SUM(M103:P103) -> 0 | R103: 0 | S103: 0 | T103: 0 | U103: 0 | V103: 0 | W103: 0 | X103: 0 | Y103: 0 | Z103: 0 | AA103: 0 | AB103: 0
D104: 女 | E104: 0 | F104: 0 | G104: 0 | H104: 0 | I104: 0 | J104: 0 | K104: 0 | L104: 0 | M104: =SUM(F104:L104) -> 0 | N104: 0 | O104: 0 | P104: 0 | Q104: =SUM(M104:P104) -> 0 | R104: 0 | S104: 0 | T104: 0 | U104: 0 | V104: 0 | W104: 0 | X104: 0 | Y104: 0 | Z104: 0 | AA104: 0 | AB104: 0
A105: Ba33 | C105: 胎児及び新生児の出血性障害及び血液障害 | D105: 総数 | E105: 1 | F105: =SUM(F106:F107) -> 0 | G105: =SUM(G106:G107) -> 0 | H105: 0 | I105: 1 | J105: 0 | K105: 0 | L105: 0 | M105: 1 | N105: 0 | O105: 0 | P105: 0 | Q105: 1 | R105: 0 | S105: =SUM(S106:S107) -> 0 | T105: 0 | U105: 0 | V105: 0 | W105: 0 | X105: 0 | Y105: 0 | Z105: 0 | AA105: 0 | AB105: 0
D106: 男 | E106: 1 | F106: 0 | G106: 0 | H106: 0 | I106: 1 | J106: 0 | K106: 0 | L106: 0 | M106: =SUM(F106:L106) -> 1 | N106: 0 | O106: 0 | P106: 0 | Q106: =SUM(M106:P106) -> 1 | R106: 0 | S106: 0 | T106: 0 | U106: 0 | V106: 0 | W106: 0 | X106: 0 | Y106: 0 | Z106: 0 | AA106: 0 | AB106: 0
D107: 女 | E107: 0 | F107: 0 | G107: 0 | H107: 0 | I107: 0 | J107: 0 | K107: 0 | L107: 0 | M107: =SUM(F107:L107) -> 0 | N107: 0 | O107: 0 | P107: 0 | Q107: =SUM(M107:P107) -> 0 | R107: 0 | S107: 0 | T107: 0 | U107: 0 | V107: 0 | W107: 0 | X107: 0 | Y107: 0 | Z107: 0 | AA107: 0 | AB107: 0
A108: Ba34 | C108: その他の周産期に発生した病態 | D108: 総数 | E108: 2 | F108: =SUM(F109:F110) -> 0 | G108: =SUM(G109:G110) -> 0 | H108: 0 | I108: 1 | J108: 0 | K108: 0 | L108: 0 | M108: 1 | N108: 0 | O108: 1 | P108: 0 | Q108: 2 | R108: 0 | S108: =SUM(S109:S110) -> 0 | T108: 0 | U108: 0 | V108: 0 | W108: 0 | X108: 0 | Y108: 0 | Z108: 0 | AA108: 0 | AB108: 0
D109: 男 | E109: 1 | F109: 0 | G109: 0 | H109: 0 | I109: 0 | J109: 0 | K109: 0 | L109: 0 | M109: =SUM(F109:L109) -> 0 | N109: 0 | O109: 1 | P109: 0 | Q109: =SUM(M109:P109) -> 1 | R109: 0 | S109: 0 | T109: 0 | U109: 0 | V109: 0 | W109: 0 | X109: 0 | Y109: 0 | Z109: 0 | AA109: 0 | AB109: 0
D110: 女 | E110: 1 | F110: 0 | G110: 0 | H110: 0 | I110: 1 | J110: 0 | K110: 0 | L110: 0 | M110: =SUM(F110:L110) -> 1 | N110: 0 | O110: 0 | P110: 0 | Q110: =SUM(M110:P110) -> 1 | R110: 0 | S110: 0 | T110: 0 | U110: 0 | V110: 0 | W110: 0 | X110: 0 | Y110: 0 | Z110: 0 | AA110: 0 | AB110: 0
A111: Ba35 | B111: 先天奇形、変形及び染色体異常 | D111: 総数 | E111: =SUM(Q111:AB111) -> 13 | F111: =SUM(F114,F117,F120,F123,F126,F129,F132,F135) -> 3 | G111: =SUM(G114,G117,G120,G123,G126,G129,G132,G135) -> 0 | H111: 0 | I111: 1 | J111: 0 | K111: 1 | L111: 0 | M111: 5 | N111: 0 | O111: 0 | P111: 0 | Q111: 5 | R111: 2 | S111: =SUM(S114,S117,S120,S123,S126,S129,S132,S135) -> 2 | T111: 1 | U111: 1 | V111: 1 | W111: 1 | X111: 0 | Y111: 0 | Z111: 0 | AA111: 0 | AB111: 0
D112: 男 | E112: 5 | F112: =SUM(F115,F118,F121,F124,F127,F130,F133,F136) -> 2 | G112: =SUM(G115,G118,G121,G124,G127,G130,G133,G136) -> 0 | H112: 0 | I112: 0 | J112: 0 | K112: 0 | L112: 0 | M112: 2 | N112: 0 | O112: 0 | P112: 0 | Q112: 2 | R112: 1 | S112: =SUM(S115,S118,S121,S124,S127,S130,S133,S136) -> 1 | T112: 0 | U112: 1 | V112: 0 | W112: 0 | X112: 0 | Y112: 0 | Z112: 0 | AA112: 0 | AB112: 0
D113: 女 | E113: 8 | F113: =SUM(F116,F119,F122,F125,F128,F131,F134,F137) -> 1 | G113: =SUM(G116,G119,G122,G125,G128,G131,G134,G137) -> 0 | H113: 0 | I113: 1 | J113: 0 | K113: 1 | L113: 0 | M113: 3 | N113: 0 | O113: 0 | P113: 0 | Q113: 3 | R113: 1 | S113: =SUM(S116,S119,S122,S125,S128,S131,S134,S137) -> 1 | T113: 1 | U113: 0 | V113: 1 | W113: 1 | X113: 0 | Y113: 0 | Z113: 0 | AA113: 0 | AB113: 0
A114: Ba36 | C114: 神経系の先天奇形 | D114: 総数 | E114: 0 | F114: =SUM(F115:F116) -> 0 | G114: =SUM(G115:G116) -> 0 | H114: 0 | I114: 0 | J114: 0 | K114: 0 | L114: 0 | M114: 0 | N114: 0 | O114: 0 | P114: 0 | Q114: 0 | R114: 0 | S114: =SUM(S115:S116) -> 0 | T114: 0 | U114: 0 | V114: 0 | W114: 0 | X114: 0 | Y114: 0 | Z114: 0 | AA114: 0 | AB114: 0
D115: 男 | E115: 0 | F115: 0 | G115: 0 | H115: 0 | I115: 0 | J115: 0 | K115: 0 | L115: 0 | M115: =SUM(F115:L115) -> 0 | N115: 0 | O115: 0 | P115: 0 | Q115: =SUM(M115:P115) -> 0 | R115: 0 | S115: 0 | T115: 0 | U115: 0 | V115: 0 | W115: 0 | X115: 0 | Y115: 0 | Z115: 0 | AA115: 0 | AB115: 0
D116: 女 | E116: 0 | F116: 0 | G116: 0 | H116: 0 | I116: 0 | J116: 0 | K116: 0 | L116: 0 | M116: =SUM(F116:L116) -> 0 | N116: 0 | O116: 0 | P116: 0 | Q116: =SUM(M116:P116) -> 0 | R116: 0 | S116: 0 | T116: 0 | U116: 0 | V116: 0 | W116: 0 | X116: 0 | Y116: 0 | Z116: 0 | AA116: 0 | AB116: 0
A117: Ba37 | C117: 心臓の先天奇形 | D117: 総数 | E117: 6 | F117: =SUM(F118:F119) -> 0 | G117: =SUM(G118:G119) -> 0 | H117: 0 | I117: 0 | J117: 0 | K117: 1 | L117: 0 | M117: 1 | N117: 0 | O117: 0 | P117: 0 | Q117: 1 | R117: 1 | S117: =SUM(S118:S119) -> 1 | T117: 1 | U117: 1 | V117: 1 | W117: 0 | X117: 0 | Y117: 0 | Z117: 0 | AA117: 0 | AB117: 0
D118: 男 | E118: 2 | F118: 0 | G118: 0 | H118: 0 | I118: 0 | J118: 0 | K118: 0 | L118: 0 | M118: =SUM(F118:L118) -> 0 | N118: 0 | O118: 0 | P118: 0 | Q118: =SUM(M118:P118) -> 0 | R118: 0 | S118: 1 | T118: 0 | U118: 1 | V118: 0 | W118: 0 | X118: 0 | Y118: 0 | Z118: 0 | AA118: 0 | AB118: 0
D119: 女 | E119: 4 | F119: 0 | G119: 0 | H119: 0 | I119: 0 | J119: 0 | K119: 1 | L119: 0 | M119: =SUM(F119:L119) -> 1 | N119: 0 | O119: 0 | P119: 0 | Q119: =SUM(M119:P119) -> 1 | R119: 1 | S119: 0 | T119: 1 | U119: 0 | V119: 1 | W119: 0 | X119: 0 | Y119: 0 | Z119: 0 | AA119: 0 | AB119: 0
A120: Ba38 | C120: その他の循環器系の先天奇形 | D120: 総数 | E120: 0 | F120: =SUM(F121:F122) -> 0 | G120: =SUM(G121:G122) -> 0 | H120: 0 | I120: 0 | J120: 0 | K120: 0 | L120: 0 | M120: 0 | N120: 0 | O120: 0 | P120: 0 | Q120: 0 | R120: 0 | S120: =SUM(S121:S122) -> 0 | T120: 0 | U120: 0 | V120: 0 | W120: 0 | X120: 0 | Y120: 0 | Z120: 0 | AA120: 0 | AB120: 0
D121: 男 | E121: 0 | F121: 0 | G121: 0 | H121: 0 | I121: 0 | J121: 0 | K121: 0 | L121: 0 | M121: =SUM(F121:L121) -> 0 | N121: 0 | O121: 0 | P121: 0 | Q121: =SUM(M121:P121) -> 0 | R121: 0 | S121: 0 | T121: 0 | U121: 0 | V121: 0 | W121: 0 | X121: 0 | Y121: 0 | Z121: 0 | AA121: 0 | AB121: 0
D122: 女 | E122: 0 | F122: 0 | G122: 0 | H122: 0 | I122: 0 | J122: 0 | K122: 0 | L122: 0 | M122: =SUM(F122:L122) -> 0 | N122: 0 | O122: 0 | P122: 0 | Q122: =SUM(M122:P122) -> 0 | R122: 0 | S122: 0 | T122: 0 | U122: 0 | V122: 0 | W122: 0 | X122: 0 | Y122: 0 | Z122: 0 | AA122: 0 | AB122: 0
A123: Ba39 | C123: 呼吸器系の先天奇形 | D123: 総数 | E123: 1 | F123: =SUM(F124:F125) -> 1 | G123: =SUM(G124:G125) -> 0 | H123: 0 | I123: 0 | J123: 0 | K123: 0 | L123: 0 | M123: 1 | N123: 0 | O123: 0 | P123: 0 | Q123: 1 | R123: 0 | S123: =SUM(S124:S125) -> 0 | T123: 0 | U123: 0 | V123: 0 | W123: 0 | X123: 0 | Y123: 0 | Z123: 0 | AA123: 0 | AB123: 0
D124: 男 | E124: 0 | F124: 0 | G124: 0 | H124: 0 | I124: 0 | J124: 0 | K124: 0 | L124: 0 | M124: =SUM(F124:L124) -> 0 | N124: 0 | O124: 0 | P124: 0 | Q124: =SUM(M124:P124) -> 0 | R124: 0 | S124: 0 | T124: 0 | U124: 0 | V124: 0 | W124: 0 | X124: 0 | Y124: 0 | Z124: 0 | AA124: 0 | AB124: 0
D125: 女 | E125: 1 | F125: 1 | G125: 0 | H125: 0 | I125: 0 | J125: 0 | K125: 0 | L125: 0 | M125: =SUM(F125:L125) -> 1 | N125: 0 | O125: 0 | P125: 0 | Q125: =SUM(M125:P125) -> 1 | R125: 0 | S125: 0 | T125: 0 | U125: 0 | V125: 0 | W125: 0 | X125: 0 | Y125: 0 | Z125: 0 | AA125: 0 | AB125: 0
A126: Ba40 | C126: 消化器系の先天奇形 | D126: 総数 | E126: 1 | F126: =SUM(F127:F128) -> 0 | G126: =SUM(G127:G128) -> 0 | H126: 0 | I126: 0 | J126: 0 | K126: 0 | L126: 0 | M126: 0 | N126: 0 | O126: 0 | P126: 0 | Q126: 0 | R126: 0 | S126: =SUM(S127:S128) -> 0 | T126: 0 | U126: 0 | V126: 0 | W126: 1 | X126: 0 | Y126: 0 | Z126: 0 | AA126: 0 | AB126: 0
D127: 男 | E127: 0 | F127: 0 | G127: 0 | H127: 0 | I127: 0 | J127: 0 | K127: 0 | L127: 0 | M127: =SUM(F127:L127) -> 0 | N127: 0 | O127: 0 | P127: 0 | Q127: =SUM(M127:P127) -> 0 | R127: 0 | S127: 0 | T127: 0 | U127: 0 | V127: 0 | W127: 0 | X127: 0 | Y127: 0 | Z127: 0 | AA127: 0 | AB127: 0
D128: 女 | E128: 1 | F128: 0 | G128: 0 | H128: 0 | I128: 0 | J128: 0 | K128: 0 | L128: 0 | M128: =SUM(F128:L128) -> 0 | N128: 0 | O128: 0 | P128: 0 | Q128: =SUM(M128:P128) -> 0 | R128: 0 | S128: 0 | T128: 0 | U128: 0 | V128: 0 | W128: 1 | X128: 0 | Y128: 0 | Z128: 0 | AA128: 0 | AB128: 0
A129: Ba41 | C129: 筋骨格系の先天奇形及び変形 | D129: 総数 | E129: 0 | F129: =SUM(F130:F131) -> 0 | G129: =SUM(G130:G131) -> 0 | H129: 0 | I129: 0 | J129: 0 | K129: 0 | L129: 0 | M129: 0 | N129: 0 | O129: 0 | P129: 0 | Q129: 0 | R129: 0 | S129: =SUM(S130:S131) -> 0 | T129: 0 | U129: 0 | V129: 0 | W129: 0 | X129: 0 | Y129: 0 | Z129: 0 | AA129: 0 | AB129: 0
D130: 男 | E130: 0 | F130: 0 | G130: 0 | H130: 0 | I130: 0 | J130: 0 | K130: 0 | L130: 0 | M130: =SUM(F130:L130) -> 0 | N130: 0 | O130: 0 | P130: 0 | Q130: =SUM(M130:P130) -> 0 | R130: 0 | S130: 0 | T130: 0 | U130: 0 | V130: 0 | W130: 0 | X130: 0 | Y130: 0 | Z130: 0 | AA130: 0 | AB130: 0
D131: 女 | E131: 0 | F131: 0 | G131: 0 | H131: 0 | I131: 0 | J131: 0 | K131: 0 | L131: 0 | M131: =SUM(F131:L131) -> 0 | N131: 0 | O131: 0 | P131: 0 | Q131: =SUM(M131:P131) -> 0 | R131: 0 | S131: 0 | T131: 0 | U131: 0 | V131: 0 | W131: 0 | X131: 0 | Y131: 0 | Z131: 0 | AA131: 0 | AB131: 0
A132: Ba42 | C132: その他の先天奇形及び変形 | D132: 総数 | E132: 1 | F132: =SUM(F133:F134) -> 1 | G132: =SUM(G133:G134) -> 0 | H132: 0 | I132: 0 | J132: 0 | K132: 0 | L132: 0 | M132: 1 | N132: 0 | O132: 0 | P132: 0 | Q132: 1 | R132: 0 | S132: =SUM(S133:S134) -> 0 | T132: 0 | U132: 0 | V132: 0 | W132: 0 | X132: 0 | Y132: 0 | Z132: 0 | AA132: 0 | AB132: 0
D133: 男 | E133: 1 | F133: 1 | G133: 0 | H133: 0 | I133: 0 | J133: 0 | K133: 0 | L133: 0 | M133: =SUM(F133:L133) -> 1 | N133: 0 | O133: 0 | P133: 0 | Q133: =SUM(M133:P133) -> 1 | R133: 0 | S133: 0 | T133: 0 | U133: 0 | V133: 0 | W133: 0 | X133: 0 | Y133: 0 | Z133: 0 | AA133: 0 | AB133: 0
D134: 女 | E134: 0 | F134: 0 | G134: 0 | H134: 0 | I134: 0 | J134: 0 | K134: 0 | L134: 0 | M134: =SUM(F134:L134) -> 0 | N134: 0 | O134: 0 | P134: 0 | Q134: =SUM(M134:P134) -> 0 | R134: 0 | S134: 0 | T134: 0 | U134: 0 | V134: 0 | W134: 0 | X134: 0 | Y134: 0 | Z134: 0 | AA134: 0 | AB134: 0
A135: Ba43 | C135: 染色体異常、他に分類されないもの | D135: 総数 | E135: 4 | F135: =SUM(F136:F137) -> 1 | G135: =SUM(G136:G137) -> 0 | H135: 0 | I135: 1 | J135: 0 | K135: 0 | L135: 0 | M135: 2 | N135: 0 | O135: 0 | P135: 0 | Q135: 2 | R135: 1 | S135: =SUM(S136:S137) -> 1 | T135: 0 | U135: 0 | V135: 0 | W135: 0 | X135: 0 | Y135: 0 | Z135: 0 | AA135: 0 | AB135: 0
D136: 男 | E136: 2 | F136: 1 | G136: 0 | H136: 0 | I136: 0 | J136: 0 | K136: 0 | L136: 0 | M136: =SUM(F136:L136) -> 1 | N136: 0 | O136: 0 | P136: 0 | Q136: =SUM(M136:P136) -> 1 | R136: 1 | S136: 0 | T136: 0 | U136: 0 | V136: 0 | W136: 0 | X136: 0 | Y136: 0 | Z136: 0 | AA136: 0 | AB136: 0
D137: 女 | E137: 2 | F137: 0 | G137: 0 | H137: 0 | I137: 1 | J137: 0 | K137: 0 | L137: 0 | M137: =SUM(F137:L137) -> 1 | N137: 0 | O137: 0 | P137: 0 | Q137: =SUM(M137:P137) -> 1 | R137: 0 | S137: 1 | T137: 0 | U137: 0 | V137: 0 | W137: 0 | X137: 0 | Y137: 0 | Z137: 0 | AA137: 0 | AB137: 0
A138: Ba44 | B138: 乳幼児突然死症候群 | D138: 総数 | E138: =SUM(Q138:AB138) -> 1 | F138: =SUM(F139:F140) -> 0 | G138: =SUM(G139:G140) -> 0 | H138: 0 | I138: 0 | J138: 0 | K138: 0 | L138: 0 | M138: 0 | N138: 0 | O138: 0 | P138: 0 | Q138: 0 | R138: 0 | S138: =SUM(S139:S140) -> 0 | T138: 1 | U138: 0 | V138: 0 | W138: 0 | X138: 0 | Y138: 0 | Z138: 0 | AA138: 0 | AB138: 0
D139: 男 | E139: =SUM(Q139:AB139) -> 0 | F139: 0 | G139: 0 | H139: 0 | I139: 0 | J139: 0 | K139: 0 | L139: 0 | M139: =SUM(F139:L139) -> 0 | N139: 0 | O139: 0 | P139: 0 | Q139: =SUM(M139:P139) -> 0 | R139: 0 | S139: 0 | T139: 0 | U139: 0 | V139: 0 | W139: 0 | X139: 0 | Y139: 0 | Z139: 0 | AA139: 0 | AB139: 0
D140: 女 | E140: 1 | F140: 0 | G140: 0 | H140: 0 | I140: 0 | J140: 0 | K140: 0 | L140: 0 | M140: =SUM(F140:L140) -> 0 | N140: 0 | O140: 0 | P140: 0 | Q140: =SUM(M140:P140) -> 0 | R140: 0 | S140: 0 | T140: 1 | U140: 0 | V140: 0 | W140: 0 | X140: 0 | Y140: 0 | Z140: 0 | AA140: 0 | AB140: 0
A141: Ba45 | B141: その他のすべての疾患 | D141: 総数 | E141: 2 | F141: =SUM(F142:F143) -> 0 | G141: =SUM(G142:G143) -> 0 | H141: 0 | I141: 0 | J141: 0 | K141: 0 | L141: 0 | M141: 0 | N141: 0 | O141: 1 | P141: 0 | Q141: 1 | R141: 0 | S141: =SUM(S142:S143) -> 0 | T141: 0 | U141: 1 | V141: 0 | W141: 0 | X141: 0 | Y141: 0 | Z141: 0 | AA141: 0 | AB141: 0
D142: 男 | E142: 1 | F142: 0 | G142: 0 | H142: 0 | I142: 0 | J142: 0 | K142: 0 | L142: 0 | M142: =SUM(F142:L142) -> 0 | N142: 0 | O142: 0 | P142: 0 | Q142: =SUM(M142:P142) -> 0 | R142: 0 | S142: 0 | T142: 0 | U142: 1 | V142: 0 | W142: 0 | X142: 0 | Y142: 0 | Z142: 0 | AA142: 0 | AB142: 0
D143: 女 | E143: 1 | F143: 0 | G143: 0 | H143: 0 | I143: 0 | J143: 0 | K143: 0 | L143: 0 | M143: =SUM(F143:L143) -> 0 | N143: 0 | O143: 1 | P143: 0 | Q143: =SUM(M143:P143) -> 1 | R143: 0 | S143: 0 | T143: 0 | U143: 0 | V143: 0 | W143: 0 | X143: 0 | Y143: 0 | Z143: 0 | AA143: 0 | AB143: 0
A144: Ba46 | B144: 不慮の事故 | D144: 総数 | E144: 0 | F144: =SUM(F147,F150,F153,F156,F159,F162,F165,F168) -> 0 | G144: =SUM(G147,G150,G153,G156,G159,G162,G165,G168) -> 0 | H144: 0 | I144: 0 | J144: 0 | K144: 0 | L144: 0 | M144: 0 | N144: 0 | O144: 0 | P144: 0 | Q144: 0 | R144: 0 | S144: =SUM(S147,S150,S153,S156,S159,S162,S165,S168) -> 0 | T144: 0 | U144: 0 | V144: 0 | W144: 0 | X144: 0 | Y144: 0 | Z144: 0 | AA144: 0 | AB144: 0
D145: 男 | E145: 0 | F145: =SUM(F148,F151,F154,F157,F160,F163,F166,F169) -> 0 | G145: =SUM(G148,G151,G154,G157,G160,G163,G166,G169) -> 0 | H145: 0 | I145: 0 | J145: 0 | K145: 0 | L145: 0 | M145: 0 | N145: 0 | O145: 0 | P145: 0 | Q145: 0 | R145: 0 | S145: =SUM(S148,S151,S154,S157,S160,S163,S166,S169) -> 0 | T145: 0 | U145: 0 | V145: 0 | W145: 0 | X145: 0 | Y145: 0 | Z145: 0 | AA145: 0 | AB145: 0
D146: 女 | E146: 0 | F146: =SUM(F149,F152,F155,F158,F161,F164,F167,F170) -> 0 | G146: =SUM(G149,G152,G155,G158,G161,G164,G167,G170) -> 0 | H146: 0 | I146: 0 | J146: 0 | K146: 0 | L146: 0 | M146: 0 | N146: 0 | O146: 0 | P146: 0 | Q146: 0 | R146: 0 | S146: =SUM(S149,S152,S155,S158,S161,S164,S167,S170) -> 0 | T146: 0 | U146: 0 | V146: 0 | W146: 0 | X146: 0 | Y146: 0 | Z146: 0 | AA146: 0 | AB146: 0
A147: Ba47 | C147: 交 通 事 故 | D147: 総数 | E147: 0 | F147: =SUM(F148:F149) -> 0 | G147: =SUM(G148:G149) -> 0 | H147: 0 | I147: 0 | J147: 0 | K147: 0 | L147: 0 | M147: 0 | N147: 0 | O147: 0 | P147: 0 | Q147: 0 | R147: 0 | S147: =SUM(S148:S149) -> 0 | T147: 0 | U147: 0 | V147: 0 | W147: 0 | X147: 0 | Y147: 0 | Z147: 0 | AA147: 0 | AB147: 0
D148: 男 | E148: 0 | F148: 0 | G148: 0 | H148: 0 | I148: 0 | J148: 0 | K148: 0 | L148: 0 | M148: =SUM(F148:L148) -> 0 | N148: 0 | O148: 0 | P148: 0 | Q148: =SUM(M148:P148) -> 0 | R148: 0 | S148: 0 | T148: 0 | U148: 0 | V148: 0 | W148: 0 | X148: 0 | Y148: 0 | Z148: 0 | AA148: 0 | AB148: 0
D149: 女 | E149: 0 | F149: 0 | G149: 0 | H149: 0 | I149: 0 | J149: 0 | K149: 0 | L149: 0 | M149: =SUM(F149:L149) -> 0 | N149: 0 | O149: 0 | P149: 0 | Q149: =SUM(M149:P149) -> 0 | R149: 0 | S149: 0 | T149: 0 | U149: 0 | V149: 0 | W149: 0 | X149: 0 | Y149: 0 | Z149: 0 | AA149: 0 | AB149: 0
A150: Ba48 | C150: 転倒・転落 | D150: 総数 | E150: 0 | F150: =SUM(F151:F152) -> 0 | G150: =SUM(G151:G152) -> 0 | H150: 0 | I150: 0 | J150: 0 | K150: 0 | L150: 0 | M150: 0 | N150: 0 | O150: 0 | P150: 0 | Q150: 0 | R150: 0 | S150: =SUM(S151:S152) -> 0 | T150: 0 | U150: 0 | V150: 0 | W150: 0 | X150: 0 | Y150: 0 | Z150: 0 | AA150: 0 | AB150: 0
D151: 男 | E151: 0 | F151: 0 | G151: 0 | H151: 0 | I151: 0 | J151: 0 | K151: 0 | L151: 0 | M151: =SUM(F151:L151) -> 0 | N151: 0 | O151: 0 | P151: 0 | Q151: =SUM(M151:P151) -> 0 | R151: 0 | S151: 0 | T151: 0 | U151: 0 | V151: 0 | W151: 0 | X151: 0 | Y151: 0 | Z151: 0 | AA151: 0 | AB151: 0
D152: 女 | E152: 0 | F152: 0 | G152: 0 | H152: 0 | I152: 0 | J152: 0 | K152: 0 | L152: 0 | M152: =SUM(F152:L152) -> 0 | N152: 0 | O152: 0 | P152: 0 | Q152: =SUM(M152:P152) -> 0 | R152: 0 | S152: 0 | T152: 0 | U152: 0 | V152: 0 | W152: 0 | X152: 0 | Y152: 0 | Z152: 0 | AA152: 0 | AB152: 0
A153: Ba49 | C153: 不慮の溺死及び溺水 | D153: 総数 | E153: 0 | F153: =SUM(F154:F155) -> 0 | G153: =SUM(G154:G155) -> 0 | H153: 0 | I153: 0 | J153: 0 | K153: 0 | L153: 0 | M153: 0 | N153: 0 | O153: 0 | P153: 0 | Q153: 0 | R153: 0 | S153: =SUM(S154:S155) -> 0 | T153: 0 | U153: 0 | V153: 0 | W153: 0 | X153: 0 | Y153: 0 | Z153: 0 | AA153: 0 | AB153: 0
D154: 男 | E154: 0 | F154: 0 | G154: 0 | H154: 0 | I154: 0 | J154: 0 | K154: 0 | L154: 0 | M154: =SUM(F154:L154) -> 0 | N154: 0 | O154: 0 | P154: 0 | Q154: =SUM(M154:P154) -> 0 | R154: 0 | S154: 0 | T154: 0 | U154: 0 | V154: 0 | W154: 0 | X154: 0 | Y154: 0 | Z154: 0 | AA154: 0 | AB154: 0
D155: 女 | E155: 0 | F155: 0 | G155: 0 | H155: 0 | I155: 0 | J155: 0 | K155: 0 | L155: 0 | M155: =SUM(F155:L155) -> 0 | N155: 0 | O155: 0 | P155: 0 | Q155: =SUM(M155:P155) -> 0 | R155: 0 | S155: 0 | T155: 0 | U155: 0 | V155: 0 | W155: 0 | X155: 0 | Y155: 0 | Z155: 0 | AA155: 0 | AB155: 0
A156: Ba50 | C156: 胃内容物の誤えん及び気道閉塞を生じた食物等の誤えん | D156: 総数 | E156: 0 | F156: =SUM(F157:F158) -> 0 | G156: =SUM(G157:G158) -> 0 | H156: 0 | I156: 0 | J156: 0 | K156: 0 | L156: 0 | M156: 0 | N156: 0 | O156: 0 | P156: 0 | Q156: 0 | R156: 0 | S156: =SUM(S157:S158) -> 0 | T156: 0 | U156: 0 | V156: 0 | W156: 0 | X156: 0 | Y156: 0 | Z156: 0 | AA156: 0 | AB156: 0
D157: 男 | E157: 0 | F157: 0 | G157: 0 | H157: 0 | I157: 0 | J157: 0 | K157: 0 | L157: 0 | M157: =SUM(F157:L157) -> 0 | N157: 0 | O157: 0 | P157: 0 | Q157: =SUM(M157:P157) -> 0 | R157: 0 | S157: 0 | T157: 0 | U157: 0 | V157: 0 | W157: 0 | X157: 0 | Y157: 0 | Z157: 0 | AA157: 0 | AB157: 0
D158: 女 | E158: 0 | F158: 0 | G158: 0 | H158: 0 | I158: 0 | J158: 0 | K158: 0 | L158: 0 | M158: =SUM(F158:L158) -> 0 | N158: 0 | O158: 0 | P158: 0 | Q158: =SUM(M158:P158) -> 0 | R158: 0 | S158: 0 | T158: 0 | U158: 0 | V158: 0 | W158: 0 | X158: 0 | Y158: 0 | Z158: 0 | AA158: 0 | AB158: 0
A159: Ba51 | C159: その他の不慮の窒息 | D159: 総数 | E159: 0 | F159: =SUM(F160:F161) -> 0 | G159: =SUM(G160:G161) -> 0 | H159: 0 | I159: 0 | J159: 0 | K159: 0 | L159: 0 | M159: 0 | N159: 0 | O159: 0 | P159: 0 | Q159: 0 | R159: 0 | S159: =SUM(S160:S161) -> 0 | T159: 0 | U159: 0 | V159: 0 | W159: 0 | X159: 0 | Y159: 0 | Z159: 0 | AA159: 0 | AB159: 0
D160: 男 | E160: 0 | F160: 0 | G160: 0 | H160: 0 | I160: 0 | J160: 0 | K160: 0 | L160: 0 | M160: =SUM(F160:L160) -> 0 | N160: 0 | O160: 0 | P160: 0 | Q160: =SUM(M160:P160) -> 0 | R160: 0 | S160: 0 | T160: 0 | U160: 0 | V160: 0 | W160: 0 | X160: 0 | Y160: 0 | Z160: 0 | AA160: 0 | AB160: 0
D161: 女 | E161: 0 | F161: 0 | G161: 0 | H161: 0 | I161: 0 | J161: 0 | K161: 0 | L161: 0 | M161: =SUM(F161:L161) -> 0 | N161: 0 | O161: 0 | P161: 0 | Q161: =SUM(M161:P161) -> 0 | R161: 0 | S161: 0 | T161: 0 | U161: 0 | V161: 0 | W161: 0 | X161: 0 | Y161: 0 | Z161: 0 | AA161: 0 | AB161: 0
A162: Ba52 | C162: 煙、火及び火炎への曝露 | D162: 総数 | E162: 0 | F162: =SUM(F163:F164) -> 0 | G162: =SUM(G163:G164) -> 0 | H162: 0 | I162: 0 | J162: 0 | K162: 0 | L162: 0 | M162: 0 | N162: 0 | O162: 0 | P162: 0 | Q162: 0 | R162: 0 | S162: =SUM(S163:S164) -> 0 | T162: 0 | U162: 0 | V162: 0 | W162: 0 | X162: 0 | Y162: 0 | Z162: 0 | AA162: 0 | AB162: 0
D163: 男 | E163: 0 | F163: 0 | G163: 0 | H163: 0 | I163: 0 | J163: 0 | K163: 0 | L163: 0 | M163: =SUM(F163:L163) -> 0 | N163: 0 | O163: 0 | P163: 0 | Q163: =SUM(M163:P163) -> 0 | R163: 0 | S163: 0 | T163: 0 | U163: 0 | V163: 0 | W163: 0 | X163: 0 | Y163: 0 | Z163: 0 | AA163: 0 | AB163: 0
D164: 女 | E164: 0 | F164: 0 | G164: 0 | H164: 0 | I164: 0 | J164: 0 | K164: 0 | L164: 0 | M164: =SUM(F164:L164) -> 0 | N164: 0 | O164: 0 | P164: 0 | Q164: =SUM(M164:P164) -> 0 | R164: 0 | S164: 0 | T164: 0 | U164: 0 | V164: 0 | W164: 0 | X164: 0 | Y164: 0 | Z164: 0 | AA164: 0 | AB164: 0
A165: Ba53 | C165: 有害物質による不慮の中毒及び有害物質への曝露 | D165: 総数 | E165: 0 | F165: =SUM(F166:F167) -> 0 | G165: =SUM(G166:G167) -> 0 | H165: 0 | I165: 0 | J165: 0 | K165: 0 | L165: 0 | M165: 0 | N165: 0 | O165: 0 | P165: 0 | Q165: 0 | R165: 0 | S165: =SUM(S166:S167) -> 0 | T165: 0 | U165: 0 | V165: 0 | W165: 0 | X165: 0 | Y165: 0 | Z165: 0 | AA165: 0 | AB165: 0
D166: 男 | E166: 0 | F166: 0 | G166: 0 | H166: 0 | I166: 0 | J166: 0 | K166: 0 | L166: 0 | M166: =SUM(F166:L166) -> 0 | N166: 0 | O166: 0 | P166: 0 | Q166: =SUM(M166:P166) -> 0 | R166: 0 | S166: 0 | T166: 0 | U166: 0 | V166: 0 | W166: 0 | X166: 0 | Y166: 0 | Z166: 0 | AA166: 0 | AB166: 0
D167: 女 | E167: 0 | F167: 0 | G167: 0 | H167: 0 | I167: 0 | J167: 0 | K167: 0 | L167: 0 | M167: =SUM(F167:L167) -> 0 | N167: 0 | O167: 0 | P167: 0 | Q167: =SUM(M167:P167) -> 0 | R167: 0 | S167: 0 | T167: 0 | U167: 0 | V167: 0 | W167: 0 | X167: 0 | Y167: 0 | Z167: 0 | AA167: 0 | AB167: 0
A168: Ba54 | C168: その他の不慮の事故 | D168: 総数 | E168: 0 | F168: =SUM(F169:F170) -> 0 | G168: =SUM(G169:G170) -> 0 | H168: 0 | I168: 0 | J168: 0 | K168: 0 | L168: 0 | M168: 0 | N168: 0 | O168: 0 | P168: 0 | Q168: 0 | R168: 0 | S168: =SUM(S169:S170) -> 0 | T168: 0 | U168: 0 | V168: 0 | W168: 0 | X168: 0 | Y168: 0 | Z168: 0 | AA168: 0 | AB168: 0
D169: 男 | E169: 0 | F169: 0 | G169: 0 | H169: 0 | I169: 0 | J169: 0 | K169: 0 | L169: 0 | M169: =SUM(F169:L169) -> 0 | N169: 0 | O169: 0 | P169: 0 | Q169: =SUM(M169:P169) -> 0 | R169: 0 | S169: 0 | T169: 0 | U169: 0 | V169: 0 | W169: 0 | X169: 0 | Y169: 0 | Z169: 0 | AA169: 0 | AB169: 0
D170: 女 | E170: 0 | F170: 0 | G170: 0 | H170: 0 | I170: 0 | J170: 0 | K170: 0 | L170: 0 | M170: =SUM(F170:L170) -> 0 | N170: 0 | O170: 0 | P170: 0 | Q170: =SUM(M170:P170) -> 0 | R170: 0 | S170: 0 | T170: 0 | U170: 0 | V170: 0 | W170: 0 | X170: 0 | Y170: 0 | Z170: 0 | AA170: 0 | AB170: 0
A171: Ba55 | B171: 他 殺 | D171: 総数 | E171: 0 | F171: =SUM(F172:F173) -> 0 | G171: =SUM(G172:G173) -> 0 | H171: 0 | I171: 0 | J171: 0 | K171: 0 | L171: 0 | M171: 0 | N171: 0 | O171: 0 | P171: 0 | Q171: 0 | R171: 0 | S171: =SUM(S172:S173) -> 0 | T171: 0 | U171: 0 | V171: 0 | W171: 0 | X171: 0 | Y171: 0 | Z171: 0 | AA171: 0 | AB171: 0
D172: 男 | E172: 0 | F172: 0 | G172: 0 | H172: 0 | I172: 0 | J172: 0 | K172: 0 | L172: 0 | M172: =SUM(F172:L172) -> 0 | N172: 0 | O172: 0 | P172: 0 | Q172: =SUM(M172:P172) -> 0 | R172: 0 | S172: 0 | T172: 0 | U172: 0 | V172: 0 | W172: 0 | X172: 0 | Y172: 0 | Z172: 0 | AA172: 0 | AB172: 0
D173: 女 | E173: 0 | F173: 0 | G173: 0 | H173: 0 | I173: 0 | J173: 0 | K173: 0 | L173: 0 | M173: =SUM(F173:L173) -> 0 | N173: 0 | O173: 0 | P173: 0 | Q173: =SUM(M173:P173) -> 0 | R173: 0 | S173: 0 | T173: 0 | U173: 0 | V173: 0 | W173: 0 | X173: 0 | Y173: 0 | Z173: 0 | AA173: 0 | AB173: 0
A174: Ba56 | B174: その他の外因 | D174: 総数 | E174: 1 | F174: =SUM(F175:F176) -> 0 | G174: =SUM(G175:G176) -> 0 | H174: 0 | I174: 0 | J174: 0 | K174: 0 | L174: 0 | M174: 0 | N174: 0 | O174: 0 | P174: 1 | Q174: 1 | R174: 0 | S174: =SUM(S175:S176) -> 0 | T174: 0 | U174: 0 | V174: 0 | W174: 0 | X174: 0 | Y174: 0 | Z174: 0 | AA174: 0 | AB174: 0
D175: 男 | E175: 1 | F175: 0 | G175: 0 | H175: 0 | I175: 0 | J175: 0 | K175: 0 | L175: 0 | M175: =SUM(F175:L175) -> 0 | N175: 0 | O175: 0 | P175: 1 | Q175: =SUM(M175:P175) -> 1 | R175: 0 | S175: 0 | T175: 0 | U175: 0 | V175: 0 | W175: 0 | X175: 0 | Y175: 0 | Z175: 0 | AA175: 0 | AB175: 0
D176: 女 | E176: 0 | F176: 0 | G176: 0 | H176: 0 | I176: 0 | J176: 0 | K176: 0 | L176: 0 | M176: =SUM(F176:L176) -> 0 | N176: 0 | O176: 0 | P176: 0 | Q176: =SUM(M176:P176) -> 0 | R176: 0 | S176: 0 | T176: 0 | U176: 0 | V176: 0 | W176: 0 | X176: 0 | Y176: 0 | Z176: 0 | AA176: 0 | AB176: 0

Sheet 10 体重別，病死乳児死亡数
A1: 10 出生時の体重別にみた乳児死因簡単分類別病死による乳児死亡数及び率(出生10万対）
AC2: ='3 乳児死亡数，月・性・区別'!$O$2 -> 平成30年
A3: 乳児死因 簡単分類 コ ー ド | B3: 死 因 | D3: 病死による乳児死亡数 | Q3: 病 死 に よ る 乳 児 死 亡 率 (出生10万対)
D4: 総数 | E4: 0.5㎏未満 | F4: 0.5㎏以上 1.0㎏未満 | G4: 1.0～1.5㎏ | H4: 1.5～2.0㎏ | I4: 2.0～2.5㎏ | J4: 2.5～3.0㎏ | K4: 3.0～3.5㎏ | L4: 3.5～4.0㎏ | M4: 4.0～4.5㎏ | N4: 4.5～5.0㎏ | O4: 5.0㎏ 以上 | P4: 不詳 | Q4: 総数 | R4: 0.5㎏未満 | S4: 0.5㎏以上 1.0㎏未満 | T4: 1.0～1.5㎏ | U4: 1.5～2.0㎏ | V4: 2.0～2.5㎏ | W4: 2.5～3.0㎏ | X4: 3.0～3.5㎏ | Y4: 3.5～4.0㎏ | Z4: 4.0～4.5㎏ | AA4: 4.5～5.0㎏ | AB4: 5.0㎏ 以上 | AC4: 不詳
B5: 総 数 | D5: =SUM(D6:D11,D14:D28,D40,D49:D50) -> 33 | E5: =SUM(E6:E11,E14:E28,E40,E49:E50) -> 4 | F5: 7 | G5: 4 | H5: 3 | I5: 4 | J5: 6 | K5: 5 | L5: 0 | M5: 0 | N5: 0 | O5: 0 | P5: 0 | Q5: =D5/[1]出生数!$G$4*100000 -> 249.0942029 | R5: =E5/[1]出生数!$G$4*100000 -> 30.19323671 | S5: =F5/[1]出生数!$G$4*100000 -> 52.83816425 | T5: =G5/[1]出生数!$G$4*100000 -> 30.19323671 | U5: =H5/[1]出生数!$G$4*100000 -> 22.64492754 | V5: =I5/[1]出生数!$G$4*100000 -> 30.19323671 | W5: =J5/[1]出生数!$G$4*100000 -> 45.28985507 | X5: =K5/[1]出生数!$G$4*100000 -> 37.74154589 | Y5: =L5/[1]出生数!$G$4*100000 -> 0 | Z5: =M5/[1]出生数!$G$4*100000 -> 0 | AA5: =N5/[1]出生数!$G$4*100000 -> 0 | AB5: =O5/[1]出生数!$G$4*100000 -> 0 | AC5: =P5/[1]出生数!$G$4*100000 -> 0
A6: Ba01 | B6: 腸管感染症 | D6: =SUM(E6:P6) -> 0 | E6: 0 | F6: 0 | G6: 0 | H6: 0 | I6: 0 | J6: 0 | K6: 0 | L6: 0 | M6: 0 | N6: 0 | O6: 0 | P6: 0 | Q6: =D6/[1]出生数!$G$4*100000 -> 0 | R6: =E6/[1]出生数!$G$4*100000 -> 0 | S6: =F6/[1]出生数!$G$4*100000 -> 0 | T6: =G6/[1]出生数!$G$4*100000 -> 0 | U6: =H6/[1]出生数!$G$4*100000 -> 0 | V6: =I6/[1]出生数!$G$4*100000 -> 0 | W6: =J6/[1]出生数!$G$4*100000 -> 0 | X6: =K6/[1]出生数!$G$4*100000 -> 0 | Y6: =L6/[1]出生数!$G$4*100000 -> 0 | Z6: =M6/[1]出生数!$G$4*100000 -> 0 | AA6: =N6/[1]出生数!$G$4*100000 -> 0 | AB6: =O6/[1]出生数!$G$4*100000 -> 0 | AC6: =P6/[1]出生数!$G$4*100000 -> 0
A7: Ba02 | B7: 敗血症（新生児の細菌性敗血症を除く） | D7: =SUM(E7:P7) -> 1 | E7: 0 | F7: 0 | G7: 0 | H7: 0 | I7: 1 | J7: 0 | K7: 0 | L7: 0 | M7: 0 | N7: 0 | O7: 0 | P7: 0 | Q7: =D7/[1]出生数!$G$4*100000 -> 7.548309179 | R7: =E7/[1]出生数!$G$4*100000 -> 0 | S7: =F7/[1]出生数!$G$4*100000 -> 0 | T7: =G7/[1]出生数!$G$4*100000 -> 0 | U7: =H7/[1]出生数!$G$4*100000 -> 0 | V7: =I7/[1]出生数!$G$4*100000 -> 7.548309179 | W7: =J7/[1]出生数!$G$4*100000 -> 0 | X7: =K7/[1]出生数!$G$4*100000 -> 0 | Y7: =L7/[1]出生数!$G$4*100000 -> 0 | Z7: =M7/[1]出生数!$G$4*100000 -> 0 | AA7: =N7/[1]出生数!$G$4*100000 -> 0 | AB7: =O7/[1]出生数!$G$4*100000 -> 0 | AC7: =P7/[1]出生数!$G$4*100000 -> 0
A8: Ba03 | B8: 麻 疹 | D8: =SUM(E8:P8) -> 0 | E8: 0 | F8: 0 | G8: 0 | H8: 0 | I8: 0 | J8: 0 | K8: 0 | L8: 0 | M8: 0 | N8: 0 | O8: 0 | P8: 0 | Q8: =D8/[1]出生数!$G$4*100000 -> 0 | R8: =E8/[1]出生数!$G$4*100000 -> 0 | S8: =F8/[1]出生数!$G$4*100000 -> 0 | T8: =G8/[1]出生数!$G$4*100000 -> 0 | U8: =H8/[1]出生数!$G$4*100000 -> 0 | V8: =I8/[1]出生数!$G$4*100000 -> 0 | W8: =J8/[1]出生数!$G$4*100000 -> 0 | X8: =K8/[1]出生数!$G$4*100000 -> 0 | Y8: =L8/[1]出生数!$G$4*100000 -> 0 | Z8: =M8/[1]出生数!$G$4*100000 -> 0 | AA8: =N8/[1]出生数!$G$4*100000 -> 0 | AB8: =O8/[1]出生数!$G$4*100000 -> 0 | AC8: =P8/[1]出生数!$G$4*100000 -> 0
A9: Ba04 | B9: ウイルス肝炎 | D9: 0 | E9: 0 | F9: 0 | G9: 0 | H9: 0 | I9: 0 | J9: 0 | K9: 0 | L9: 0 | M9: 0 | N9: 0 | O9: 0 | P9: 0 | Q9: =D9/[1]出生数!$G$4*100000 -> 0 | R9: =E9/[1]出生数!$G$4*100000 -> 0 | S9: =F9/[1]出生数!$G$4*100000 -> 0 | T9: =G9/[1]出生数!$G$4*100000 -> 0 | U9: =H9/[1]出生数!$G$4*100000 -> 0 | V9: =I9/[1]出生数!$G$4*100000 -> 0 | W9: =J9/[1]出生数!$G$4*100000 -> 0 | X9: =K9/[1]出生数!$G$4*100000 -> 0 | Y9: =L9/[1]出生数!$G$4*100000 -> 0 | Z9: =M9/[1]出生数!$G$4*100000 -> 0 | AA9: =N9/[1]出生数!$G$4*100000 -> 0 | AB9: =O9/[1]出生数!$G$4*100000 -> 0 | AC9: =P9/[1]出生数!$G$4*100000 -> 0
A10: Ba05 | B10: その他の感染症及び寄生虫症 | D10: 0 | E10: 0 | F10: 0 | G10: 0 | H10: 0 | I10: 0 | J10: 0 | K10: 0 | L10: 0 | M10: 0 | N10: 0 | O10: 0 | P10: 0 | Q10: =D10/[1]出生数!$G$4*100000 -> 0 | R10: =E10/[1]出生数!$G$4*100000 -> 0 | S10: =F10/[1]出生数!$G$4*100000 -> 0 | T10: =G10/[1]出生数!$G$4*100000 -> 0 | U10: =H10/[1]出生数!$G$4*100000 -> 0 | V10: =I10/[1]出生数!$G$4*100000 -> 0 | W10: =J10/[1]出生数!$G$4*100000 -> 0 | X10: =K10/[1]出生数!$G$4*100000 -> 0 | Y10: =L10/[1]出生数!$G$4*100000 -> 0 | Z10: =M10/[1]出生数!$G$4*100000 -> 0 | AA10: =N10/[1]出生数!$G$4*100000 -> 0 | AB10: =O10/[1]出生数!$G$4*100000 -> 0 | AC10: =P10/[1]出生数!$G$4*100000 -> 0
A11: Ba06 | B11: 悪性新生物 | D11: 0 | E11: =SUM(E12:E13) -> 0 | F11: 0 | G11: 0 | H11: 0 | I11: 0 | J11: 0 | K11: 0 | L11: 0 | M11: 0 | N11: 0 | O11: 0 | P11: 0 | Q11: =D11/[1]出生数!$G$4*100000 -> 0 | R11: =E11/[1]出生数!$G$4*100000 -> 0 | S11: =F11/[1]出生数!$G$4*100000 -> 0 | T11: =G11/[1]出生数!$G$4*100000 -> 0 | U11: =H11/[1]出生数!$G$4*100000 -> 0 | V11: =I11/[1]出生数!$G$4*100000 -> 0 | W11: =J11/[1]出生数!$G$4*100000 -> 0 | X11: =K11/[1]出生数!$G$4*100000 -> 0 | Y11: =L11/[1]出生数!$G$4*100000 -> 0 | Z11: =M11/[1]出生数!$G$4*100000 -> 0 | AA11: =N11/[1]出生数!$G$4*100000 -> 0 | AB11: =O11/[1]出生数!$G$4*100000 -> 0 | AC11: =P11/[1]出生数!$G$4*100000 -> 0
A12: Ba07 | C12: 白 血 病 | D12: 0 | E12: 0 | F12: 0 | G12: 0 | H12: 0 | I12: 0 | J12: 0 | K12: 0 | L12: 0 | M12: 0 | N12: 0 | O12: 0 | P12: 0 | Q12: =D12/[1]出生数!$G$4*100000 -> 0 | R12: =E12/[1]出生数!$G$4*100000 -> 0 | S12: =F12/[1]出生数!$G$4*100000 -> 0 | T12: =G12/[1]出生数!$G$4*100000 -> 0 | U12: =H12/[1]出生数!$G$4*100000 -> 0 | V12: =I12/[1]出生数!$G$4*100000 -> 0 | W12: =J12/[1]出生数!$G$4*100000 -> 0 | X12: =K12/[1]出生数!$G$4*100000 -> 0 | Y12: =L12/[1]出生数!$G$4*100000 -> 0 | Z12: =M12/[1]出生数!$G$4*100000 -> 0 | AA12: =N12/[1]出生数!$G$4*100000 -> 0 | AB12: =O12/[1]出生数!$G$4*100000 -> 0 | AC12: =P12/[1]出生数!$G$4*100000 -> 0
A13: Ba08 | C13: その他の悪性新生物 | D13: 0 | E13: 0 | F13: 0 | G13: 0 | H13: 0 | I13: 0 | J13: 0 | K13: 0 | L13: 0 | M13: 0 | N13: 0 | O13: 0 | P13: 0 | Q13: =D13/[1]出生数!$G$4*100000 -> 0 | R13: =E13/[1]出生数!$G$4*100000 -> 0 | S13: =F13/[1]出生数!$G$4*100000 -> 0 | T13: =G13/[1]出生数!$G$4*100000 -> 0 | U13: =H13/[1]出生数!$G$4*100000 -> 0 | V13: =I13/[1]出生数!$G$4*100000 -> 0 | W13: =J13/[1]出生数!$G$4*100000 -> 0 | X13: =K13/[1]出生数!$G$4*100000 -> 0 | Y13: =L13/[1]出生数!$G$4*100000 -> 0 | Z13: =M13/[1]出生数!$G$4*100000 -> 0 | AA13: =N13/[1]出生数!$G$4*100000 -> 0 | AB13: =O13/[1]出生数!$G$4*100000 -> 0 | AC13: =P13/[1]出生数!$G$4*100000 -> 0
A14: Ba09 | B14: その他の新生物 | D14: 0 | E14: 0 | F14: 0 | G14: 0 | H14: 0 | I14: 0 | J14: 0 | K14: 0 | L14: 0 | M14: 0 | N14: 0 | O14: 0 | P14: 0 | Q14: =D14/[1]出生数!$G$4*100000 -> 0 | R14: =E14/[1]出生数!$G$4*100000 -> 0 | S14: =F14/[1]出生数!$G$4*100000 -> 0 | T14: =G14/[1]出生数!$G$4*100000 -> 0 | U14: =H14/[1]出生数!$G$4*100000 -> 0 | V14: =I14/[1]出生数!$G$4*100000 -> 0 | W14: =J14/[1]出生数!$G$4*100000 -> 0 | X14: =K14/[1]出生数!$G$4*100000 -> 0 | Y14: =L14/[1]出生数!$G$4*100000 -> 0 | Z14: =M14/[1]出生数!$G$4*100000 -> 0 | AA14: =N14/[1]出生数!$G$4*100000 -> 0 | AB14: =O14/[1]出生数!$G$4*100000 -> 0 | AC14: =P14/[1]出生数!$G$4*100000 -> 0
A15: Ba10 | B15: 栄養失調症及びその他の栄養欠乏症 | D15: 0 | E15: 0 | F15: 0 | G15: 0 | H15: 0 | I15: 0 | J15: 0 | K15: 0 | L15: 0 | M15: 0 | N15: 0 | O15: 0 | P15: 0 | Q15: =D15/[1]出生数!$G$4*100000 -> 0 | R15: =E15/[1]出生数!$G$4*100000 -> 0 | S15: =F15/[1]出生数!$G$4*100000 -> 0 | T15: =G15/[1]出生数!$G$4*100000 -> 0 | U15: =H15/[1]出生数!$G$4*100000 -> 0 | V15: =I15/[1]出生数!$G$4*100000 -> 0 | W15: =J15/[1]出生数!$G$4*100000 -> 0 | X15: =K15/[1]出生数!$G$4*100000 -> 0 | Y15: =L15/[1]出生数!$G$4*100000 -> 0 | Z15: =M15/[1]出生数!$G$4*100000 -> 0 | AA15: =N15/[1]出生数!$G$4*100000 -> 0 | AB15: =O15/[1]出生数!$G$4*100000 -> 0 | AC15: =P15/[1]出生数!$G$4*100000 -> 0
A16: Ba11 | B16: 代 謝 障 害 | D16: 0 | E16: 0 | F16: 0 | G16: 0 | H16: 0 | I16: 0 | J16: 0 | K16: 0 | L16: 0 | M16: 0 | N16: 0 | O16: 0 | P16: 0 | Q16: =D16/[1]出生数!$G$4*100000 -> 0 | R16: =E16/[1]出生数!$G$4*100000 -> 0 | S16: =F16/[1]出生数!$G$4*100000 -> 0 | T16: =G16/[1]出生数!$G$4*100000 -> 0 | U16: =H16/[1]出生数!$G$4*100000 -> 0 | V16: =I16/[1]出生数!$G$4*100000 -> 0 | W16: =J16/[1]出生数!$G$4*100000 -> 0 | X16: =K16/[1]出生数!$G$4*100000 -> 0 | Y16: =L16/[1]出生数!$G$4*100000 -> 0 | Z16: =M16/[1]出生数!$G$4*100000 -> 0 | AA16: =N16/[1]出生数!$G$4*100000 -> 0 | AB16: =O16/[1]出生数!$G$4*100000 -> 0 | AC16: =P16/[1]出生数!$G$4*100000 -> 0
A17: Ba12 | B17: 髄 膜 炎 | D17: 0 | E17: 0 | F17: 0 | G17: 0 | H17: 0 | I17: 0 | J17: 0 | K17: 0 | L17: 0 | M17: 0 | N17: 0 | O17: 0 | P17: 0 | Q17: =D17/[1]出生数!$G$4*100000 -> 0 | R17: =E17/[1]出生数!$G$4*100000 -> 0 | S17: =F17/[1]出生数!$G$4*100000 -> 0 | T17: =G17/[1]出生数!$G$4*100000 -> 0 | U17: =H17/[1]出生数!$G$4*100000 -> 0 | V17: =I17/[1]出生数!$G$4*100000 -> 0 | W17: =J17/[1]出生数!$G$4*100000 -> 0 | X17: =K17/[1]出生数!$G$4*100000 -> 0 | Y17: =L17/[1]出生数!$G$4*100000 -> 0 | Z17: =M17/[1]出生数!$G$4*100000 -> 0 | AA17: =N17/[1]出生数!$G$4*100000 -> 0 | AB17: =O17/[1]出生数!$G$4*100000 -> 0 | AC17: =P17/[1]出生数!$G$4*100000 -> 0
A18: Ba13 | B18: 脊髄性筋萎縮症及び関連症候群 | D18: 0 | E18: 0 | F18: 0 | G18: 0 | H18: 0 | I18: 0 | J18: 0 | K18: 0 | L18: 0 | M18: 0 | N18: 0 | O18: 0 | P18: 0 | Q18: =D18/[1]出生数!$G$4*100000 -> 0 | R18: =E18/[1]出生数!$G$4*100000 -> 0 | S18: =F18/[1]出生数!$G$4*100000 -> 0 | T18: =G18/[1]出生数!$G$4*100000 -> 0 | U18: =H18/[1]出生数!$G$4*100000 -> 0 | V18: =I18/[1]出生数!$G$4*100000 -> 0 | W18: =J18/[1]出生数!$G$4*100000 -> 0 | X18: =K18/[1]出生数!$G$4*100000 -> 0 | Y18: =L18/[1]出生数!$G$4*100000 -> 0 | Z18: =M18/[1]出生数!$G$4*100000 -> 0 | AA18: =N18/[1]出生数!$G$4*100000 -> 0 | AB18: =O18/[1]出生数!$G$4*100000 -> 0 | AC18: =P18/[1]出生数!$G$4*100000 -> 0
A19: Ba14 | B19: 脳 性 麻 痺 | D19: 0 | E19: 0 | F19: 0 | G19: 0 | H19: 0 | I19: 0 | J19: 0 | K19: 0 | L19: 0 | M19: 0 | N19: 0 | O19: 0 | P19: 0 | Q19: =D19/[1]出生数!$G$4*100000 -> 0 | R19: =E19/[1]出生数!$G$4*100000 -> 0 | S19: =F19/[1]出生数!$G$4*100000 -> 0 | T19: =G19/[1]出生数!$G$4*100000 -> 0 | U19: =H19/[1]出生数!$G$4*100000 -> 0 | V19: =I19/[1]出生数!$G$4*100000 -> 0 | W19: =J19/[1]出生数!$G$4*100000 -> 0 | X19: =K19/[1]出生数!$G$4*100000 -> 0 | Y19: =L19/[1]出生数!$G$4*100000 -> 0 | Z19: =M19/[1]出生数!$G$4*100000 -> 0 | AA19: =N19/[1]出生数!$G$4*100000 -> 0 | AB19: =O19/[1]出生数!$G$4*100000 -> 0 | AC19: =P19/[1]出生数!$G$4*100000 -> 0
A20: Ba15 | B20: 心疾患（高血圧性を除く） | D20: 2 | E20: 1 | F20: 0 | G20: 0 | H20: 0 | I20: 0 | J20: 1 | K20: 0 | L20: 0 | M20: 0 | N20: 0 | O20: 0 | P20: 0 | Q20: =D20/[1]出生数!$G$4*100000 -> 15.09661836 | R20: =E20/[1]出生数!$G$4*100000 -> 7.548309179 | S20: =F20/[1]出生数!$G$4*100000 -> 0 | T20: =G20/[1]出生数!$G$4*100000 -> 0 | U20: =H20/[1]出生数!$G$4*100000 -> 0 | V20: =I20/[1]出生数!$G$4*100000 -> 0 | W20: =J20/[1]出生数!$G$4*100000 -> 7.548309179 | X20: =K20/[1]出生数!$G$4*100000 -> 0 | Y20: =L20/[1]出生数!$G$4*100000 -> 0 | Z20: =M20/[1]出生数!$G$4*100000 -> 0 | AA20: =N20/[1]出生数!$G$4*100000 -> 0 | AB20: =O20/[1]出生数!$G$4*100000 -> 0 | AC20: =P20/[1]出生数!$G$4*100000 -> 0
A21: Ba16 | B21: 脳血管疾患 | D21: 0 | E21: 0 | F21: 0 | G21: 0 | H21: 0 | I21: 0 | J21: 0 | K21: 0 | L21: 0 | M21: 0 | N21: 0 | O21: 0 | P21: 0 | Q21: =D21/[1]出生数!$G$4*100000 -> 0 | R21: =E21/[1]出生数!$G$4*100000 -> 0 | S21: =F21/[1]出生数!$G$4*100000 -> 0 | T21: =G21/[1]出生数!$G$4*100000 -> 0 | U21: =H21/[1]出生数!$G$4*100000 -> 0 | V21: =I21/[1]出生数!$G$4*100000 -> 0 | W21: =J21/[1]出生数!$G$4*100000 -> 0 | X21: =K21/[1]出生数!$G$4*100000 -> 0 | Y21: =L21/[1]出生数!$G$4*100000 -> 0 | Z21: =M21/[1]出生数!$G$4*100000 -> 0 | AA21: =N21/[1]出生数!$G$4*100000 -> 0 | AB21: =O21/[1]出生数!$G$4*100000 -> 0 | AC21: =P21/[1]出生数!$G$4*100000 -> 0
A22: Ba17 | B22: インフルエンザ | D22: 0 | E22: 0 | F22: 0 | G22: 0 | H22: 0 | I22: 0 | J22: 0 | K22: 0 | L22: 0 | M22: 0 | N22: 0 | O22: 0 | P22: 0 | Q22: =D22/[1]出生数!$G$4*100000 -> 0 | R22: =E22/[1]出生数!$G$4*100000 -> 0 | S22: =F22/[1]出生数!$G$4*100000 -> 0 | T22: =G22/[1]出生数!$G$4*100000 -> 0 | U22: =H22/[1]出生数!$G$4*100000 -> 0 | V22: =I22/[1]出生数!$G$4*100000 -> 0 | W22: =J22/[1]出生数!$G$4*100000 -> 0 | X22: =K22/[1]出生数!$G$4*100000 -> 0 | Y22: =L22/[1]出生数!$G$4*100000 -> 0 | Z22: =M22/[1]出生数!$G$4*100000 -> 0 | AA22: =N22/[1]出生数!$G$4*100000 -> 0 | AB22: =O22/[1]出生数!$G$4*100000 -> 0 | AC22: =P22/[1]出生数!$G$4*100000 -> 0
A23: Ba18 | B23: 肺 炎 | D23: 1 | E23: 0 | F23: 1 | G23: 0 | H23: 0 | I23: 0 | J23: 0 | K23: 0 | L23: 0 | M23: 0 | N23: 0 | O23: 0 | P23: 0 | Q23: =D23/[1]出生数!$G$4*100000 -> 7.548309179 | R23: =E23/[1]出生数!$G$4*100000 -> 0 | S23: =F23/[1]出生数!$G$4*100000 -> 7.548309179 | T23: =G23/[1]出生数!$G$4*100000 -> 0 | U23: =H23/[1]出生数!$G$4*100000 -> 0 | V23: =I23/[1]出生数!$G$4*100000 -> 0 | W23: =J23/[1]出生数!$G$4*100000 -> 0 | X23: =K23/[1]出生数!$G$4*100000 -> 0 | Y23: =L23/[1]出生数!$G$4*100000 -> 0 | Z23: =M23/[1]出生数!$G$4*100000 -> 0 | AA23: =N23/[1]出生数!$G$4*100000 -> 0 | AB23: =O23/[1]出生数!$G$4*100000 -> 0 | AC23: =P23/[1]出生数!$G$4*100000 -> 0
A24: Ba19 | B24: 喘 息 | D24: 0 | E24: 0 | F24: 0 | G24: 0 | H24: 0 | I24: 0 | J24: 0 | K24: 0 | L24: 0 | M24: 0 | N24: 0 | O24: 0 | P24: 0 | Q24: =D24/[1]出生数!$G$4*100000 -> 0 | R24: =E24/[1]出生数!$G$4*100000 -> 0 | S24: =F24/[1]出生数!$G$4*100000 -> 0 | T24: =G24/[1]出生数!$G$4*100000 -> 0 | U24: =H24/[1]出生数!$G$4*100000 -> 0 | V24: =I24/[1]出生数!$G$4*100000 -> 0 | W24: =J24/[1]出生数!$G$4*100000 -> 0 | X24: =K24/[1]出生数!$G$4*100000 -> 0 | Y24: =L24/[1]出生数!$G$4*100000 -> 0 | Z24: =M24/[1]出生数!$G$4*100000 -> 0 | AA24: =N24/[1]出生数!$G$4*100000 -> 0 | AB24: =O24/[1]出生数!$G$4*100000 -> 0 | AC24: =P24/[1]出生数!$G$4*100000 -> 0
A25: Ba20 | B25: ヘルニア及び腸閉塞 | D25: 0 | E25: 0 | F25: 0 | G25: 0 | H25: 0 | I25: 0 | J25: 0 | K25: 0 | L25: 0 | M25: 0 | N25: 0 | O25: 0 | P25: 0 | Q25: =D25/[1]出生数!$G$4*100000 -> 0 | R25: =E25/[1]出生数!$G$4*100000 -> 0 | S25: =F25/[1]出生数!$G$4*100000 -> 0 | T25: =G25/[1]出生数!$G$4*100000 -> 0 | U25: =H25/[1]出生数!$G$4*100000 -> 0 | V25: =I25/[1]出生数!$G$4*100000 -> 0 | W25: =J25/[1]出生数!$G$4*100000 -> 0 | X25: =K25/[1]出生数!$G$4*100000 -> 0 | Y25: =L25/[1]出生数!$G$4*100000 -> 0 | Z25: =M25/[1]出生数!$G$4*100000 -> 0 | AA25: =N25/[1]出生数!$G$4*100000 -> 0 | AB25: =O25/[1]出生数!$G$4*100000 -> 0 | AC25: =P25/[1]出生数!$G$4*100000 -> 0
A26: Ba21 | B26: 肝 疾 患 | D26: 1 | E26: 0 | F26: 1 | G26: 0 | H26: 0 | I26: 0 | J26: 0 | K26: 0 | L26: 0 | M26: 0 | N26: 0 | O26: 0 | P26: 0 | Q26: =D26/[1]出生数!$G$4*100000 -> 7.548309179 | R26: =E26/[1]出生数!$G$4*100000 -> 0 | S26: =F26/[1]出生数!$G$4*100000 -> 7.548309179 | T26: =G26/[1]出生数!$G$4*100000 -> 0 | U26: =H26/[1]出生数!$G$4*100000 -> 0 | V26: =I26/[1]出生数!$G$4*100000 -> 0 | W26: =J26/[1]出生数!$G$4*100000 -> 0 | X26: =K26/[1]出生数!$G$4*100000 -> 0 | Y26: =L26/[1]出生数!$G$4*100000 -> 0 | Z26: =M26/[1]出生数!$G$4*100000 -> 0 | AA26: =N26/[1]出生数!$G$4*100000 -> 0 | AB26: =O26/[1]出生数!$G$4*100000 -> 0 | AC26: =P26/[1]出生数!$G$4*100000 -> 0
A27: Ba22 | B27: 腎 不 全 | D27: 0 | E27: 0 | F27: 0 | G27: 0 | H27: 0 | I27: 0 | J27: 0 | K27: 0 | L27: 0 | M27: 0 | N27: 0 | O27: 0 | P27: 0 | Q27: =D27/[1]出生数!$G$4*100000 -> 0 | R27: =E27/[1]出生数!$G$4*100000 -> 0 | S27: =F27/[1]出生数!$G$4*100000 -> 0 | T27: =G27/[1]出生数!$G$4*100000 -> 0 | U27: =H27/[1]出生数!$G$4*100000 -> 0 | V27: =I27/[1]出生数!$G$4*100000 -> 0 | W27: =J27/[1]出生数!$G$4*100000 -> 0 | X27: =K27/[1]出生数!$G$4*100000 -> 0 | Y27: =L27/[1]出生数!$G$4*100000 -> 0 | Z27: =M27/[1]出生数!$G$4*100000 -> 0 | AA27: =N27/[1]出生数!$G$4*100000 -> 0 | AB27: =O27/[1]出生数!$G$4*100000 -> 0 | AC27: =P27/[1]出生数!$G$4*100000 -> 0
A28: Ba23 | B28: 周産期に発生した病態 | D28: 12 | E28: =SUM(E29:E39) -> 3 | F28: =SUM(F29:F39) -> 5 | G28: 1 | H28: 0 | I28: 1 | J28: 0 | K28: 2 | L28: 0 | M28: 0 | N28: 0 | O28: 0 | P28: 0 | Q28: =D28/[1]出生数!$G$4*100000 -> 90.57971014 | R28: =E28/[1]出生数!$G$4*100000 -> 22.64492754 | S28: =F28/[1]出生数!$G$4*100000 -> 37.74154589 | T28: =G28/[1]出生数!$G$4*100000 -> 7.548309179 | U28: =H28/[1]出生数!$G$4*100000 -> 0 | V28: =I28/[1]出生数!$G$4*100000 -> 7.548309179 | W28: =J28/[1]出生数!$G$4*100000 -> 0 | X28: =K28/[1]出生数!$G$4*100000 -> 15.09661836 | Y28: =L28/[1]出生数!$G$4*100000 -> 0 | Z28: =M28/[1]出生数!$G$4*100000 -> 0 | AA28: =N28/[1]出生数!$G$4*100000 -> 0 | AB28: =O28/[1]出生数!$G$4*100000 -> 0 | AC28: =P28/[1]出生数!$G$4*100000 -> 0
A29: Ba24 | C29: 妊娠期間及び胎児発育に関連する障害 | D29: 0 | E29: 0 | F29: 0 | G29: 0 | H29: 0 | I29: 0 | J29: 0 | K29: 0 | L29: 0 | M29: 0 | N29: 0 | O29: 0 | P29: 0 | Q29: =D29/[1]出生数!$G$4*100000 -> 0 | R29: =E29/[1]出生数!$G$4*100000 -> 0 | S29: =F29/[1]出生数!$G$4*100000 -> 0 | T29: =G29/[1]出生数!$G$4*100000 -> 0 | U29: =H29/[1]出生数!$G$4*100000 -> 0 | V29: =I29/[1]出生数!$G$4*100000 -> 0 | W29: =J29/[1]出生数!$G$4*100000 -> 0 | X29: =K29/[1]出生数!$G$4*100000 -> 0 | Y29: =L29/[1]出生数!$G$4*100000 -> 0 | Z29: =M29/[1]出生数!$G$4*100000 -> 0 | AA29: =N29/[1]出生数!$G$4*100000 -> 0 | AB29: =O29/[1]出生数!$G$4*100000 -> 0 | AC29: =P29/[1]出生数!$G$4*100000 -> 0
A30: Ba25 | C30: 出 産 外 傷 | D30: 0 | E30: 0 | F30: 0 | G30: 0 | H30: 0 | I30: 0 | J30: 0 | K30: 0 | L30: 0 | M30: 0 | N30: 0 | O30: 0 | P30: 0 | Q30: =D30/[1]出生数!$G$4*100000 -> 0 | R30: =E30/[1]出生数!$G$4*100000 -> 0 | S30: =F30/[1]出生数!$G$4*100000 -> 0 | T30: =G30/[1]出生数!$G$4*100000 -> 0 | U30: =H30/[1]出生数!$G$4*100000 -> 0 | V30: =I30/[1]出生数!$G$4*100000 -> 0 | W30: =J30/[1]出生数!$G$4*100000 -> 0 | X30: =K30/[1]出生数!$G$4*100000 -> 0 | Y30: =L30/[1]出生数!$G$4*100000 -> 0 | Z30: =M30/[1]出生数!$G$4*100000 -> 0 | AA30: =N30/[1]出生数!$G$4*100000 -> 0 | AB30: =O30/[1]出生数!$G$4*100000 -> 0 | AC30: =P30/[1]出生数!$G$4*100000 -> 0
A31: Ba26 | C31: 出生時仮死 | D31: 2 | E31: 0 | F31: 0 | G31: 0 | H31: 0 | I31: 1 | J31: 0 | K31: 1 | L31: 0 | M31: 0 | N31: 0 | O31: 0 | P31: 0 | Q31: =D31/[1]出生数!$G$4*100000 -> 15.09661836 | R31: =E31/[1]出生数!$G$4*100000 -> 0 | S31: =F31/[1]出生数!$G$4*100000 -> 0 | T31: =G31/[1]出生数!$G$4*100000 -> 0 | U31: =H31/[1]出生数!$G$4*100000 -> 0 | V31: =I31/[1]出生数!$G$4*100000 -> 7.548309179 | W31: =J31/[1]出生数!$G$4*100000 -> 0 | X31: =K31/[1]出生数!$G$4*100000 -> 7.548309179 | Y31: =L31/[1]出生数!$G$4*100000 -> 0 | Z31: =M31/[1]出生数!$G$4*100000 -> 0 | AA31: =N31/[1]出生数!$G$4*100000 -> 0 | AB31: =O31/[1]出生数!$G$4*100000 -> 0 | AC31: =P31/[1]出生数!$G$4*100000 -> 0
A32: Ba27 | C32: 新生児の呼吸窮<促>迫 | D32: 3 | E32: 1 | F32: 2 | G32: 0 | H32: 0 | I32: 0 | J32: 0 | K32: 0 | L32: 0 | M32: 0 | N32: 0 | O32: 0 | P32: 0 | Q32: =D32/[1]出生数!$G$4*100000 -> 22.64492754 | R32: =E32/[1]出生数!$G$4*100000 -> 7.548309179 | S32: =F32/[1]出生数!$G$4*100000 -> 15.09661836 | T32: =G32/[1]出生数!$G$4*100000 -> 0 | U32: =H32/[1]出生数!$G$4*100000 -> 0 | V32: =I32/[1]出生数!$G$4*100000 -> 0 | W32: =J32/[1]出生数!$G$4*100000 -> 0 | X32: =K32/[1]出生数!$G$4*100000 -> 0 | Y32: =L32/[1]出生数!$G$4*100000 -> 0 | Z32: =M32/[1]出生数!$G$4*100000 -> 0 | AA32: =N32/[1]出生数!$G$4*100000 -> 0 | AB32: =O32/[1]出生数!$G$4*100000 -> 0 | AC32: =P32/[1]出生数!$G$4*100000 -> 0
A33: Ba28 | C33: 周産期に発生した肺出血 | D33: 0 | E33: 0 | F33: 0 | G33: 0 | H33: 0 | I33: 0 | J33: 0 | K33: 0 | L33: 0 | M33: 0 | N33: 0 | O33: 0 | P33: 0 | Q33: =D33/[1]出生数!$G$4*100000 -> 0 | R33: =E33/[1]出生数!$G$4*100000 -> 0 | S33: =F33/[1]出生数!$G$4*100000 -> 0 | T33: =G33/[1]出生数!$G$4*100000 -> 0 | U33: =H33/[1]出生数!$G$4*100000 -> 0 | V33: =I33/[1]出生数!$G$4*100000 -> 0 | W33: =J33/[1]出生数!$G$4*100000 -> 0 | X33: =K33/[1]出生数!$G$4*100000 -> 0 | Y33: =L33/[1]出生数!$G$4*100000 -> 0 | Z33: =M33/[1]出生数!$G$4*100000 -> 0 | AA33: =N33/[1]出生数!$G$4*100000 -> 0 | AB33: =O33/[1]出生数!$G$4*100000 -> 0 | AC33: =P33/[1]出生数!$G$4*100000 -> 0
A34: Ba29 | C34: 周産期に発生した心血管障害 | D34: 1 | E34: 0 | F34: 1 | G34: 0 | H34: 0 | I34: 0 | J34: 0 | K34: 0 | L34: 0 | M34: 0 | N34: 0 | O34: 0 | P34: 0 | Q34: =D34/[1]出生数!$G$4*100000 -> 7.548309179 | R34: =E34/[1]出生数!$G$4*100000 -> 0 | S34: =F34/[1]出生数!$G$4*100000 -> 7.548309179 | T34: =G34/[1]出生数!$G$4*100000 -> 0 | U34: =H34/[1]出生数!$G$4*100000 -> 0 | V34: =I34/[1]出生数!$G$4*100000 -> 0 | W34: =J34/[1]出生数!$G$4*100000 -> 0 | X34: =K34/[1]出生数!$G$4*100000 -> 0 | Y34: =L34/[1]出生数!$G$4*100000 -> 0 | Z34: =M34/[1]出生数!$G$4*100000 -> 0 | AA34: =N34/[1]出生数!$G$4*100000 -> 0 | AB34: =O34/[1]出生数!$G$4*100000 -> 0 | AC34: =P34/[1]出生数!$G$4*100000 -> 0
A35: Ba30 | C35: その他の周産期に特異的な呼吸障害及び心血管障害 | D35: 2 | E35: 1 | F35: 1 | G35: 0 | H35: 0 | I35: 0 | J35: 0 | K35: 0 | L35: 0 | M35: 0 | N35: 0 | O35: 0 | P35: 0 | Q35: =D35/[1]出生数!$G$4*100000 -> 15.09661836 | R35: =E35/[1]出生数!$G$4*100000 -> 7.548309179 | S35: =F35/[1]出生数!$G$4*100000 -> 7.548309179 | T35: =G35/[1]出生数!$G$4*100000 -> 0 | U35: =H35/[1]出生数!$G$4*100000 -> 0 | V35: =I35/[1]出生数!$G$4*100000 -> 0 | W35: =J35/[1]出生数!$G$4*100000 -> 0 | X35: =K35/[1]出生数!$G$4*100000 -> 0 | Y35: =L35/[1]出生数!$G$4*100000 -> 0 | Z35: =M35/[1]出生数!$G$4*100000 -> 0 | AA35: =N35/[1]出生数!$G$4*100000 -> 0 | AB35: =O35/[1]出生数!$G$4*100000 -> 0 | AC35: =P35/[1]出生数!$G$4*100000 -> 0
A36: Ba31 | C36: 新生児の細菌性敗血症 | D36: 1 | E36: 0 | F36: 1 | G36: 0 | H36: 0 | I36: 0 | J36: 0 | K36: 0 | L36: 0 | M36: 0 | N36: 0 | O36: 0 | P36: 0 | Q36: =D36/[1]出生数!$G$4*100000 -> 7.548309179 | R36: =E36/[1]出生数!$G$4*100000 -> 0 | S36: =F36/[1]出生数!$G$4*100000 -> 7.548309179 | T36: =G36/[1]出生数!$G$4*100000 -> 0 | U36: =H36/[1]出生数!$G$4*100000 -> 0 | V36: =I36/[1]出生数!$G$4*100000 -> 0 | W36: =J36/[1]出生数!$G$4*100000 -> 0 | X36: =K36/[1]出生数!$G$4*100000 -> 0 | Y36: =L36/[1]出生数!$G$4*100000 -> 0 | Z36: =M36/[1]出生数!$G$4*100000 -> 0 | AA36: =N36/[1]出生数!$G$4*100000 -> 0 | AB36: =O36/[1]出生数!$G$4*100000 -> 0 | AC36: =P36/[1]出生数!$G$4*100000 -> 0
A37: Ba32 | C37: その他の周産期に特異的な感染症 | D37: 0 | E37: 0 | F37: 0 | G37: 0 | H37: 0 | I37: 0 | J37: 0 | K37: 0 | L37: 0 | M37: 0 | N37: 0 | O37: 0 | P37: 0 | Q37: =D37/[1]出生数!$G$4*100000 -> 0 | R37: =E37/[1]出生数!$G$4*100000 -> 0 | S37: =F37/[1]出生数!$G$4*100000 -> 0 | T37: =G37/[1]出生数!$G$4*100000 -> 0 | U37: =H37/[1]出生数!$G$4*100000 -> 0 | V37: =I37/[1]出生数!$G$4*100000 -> 0 | W37: =J37/[1]出生数!$G$4*100000 -> 0 | X37: =K37/[1]出生数!$G$4*100000 -> 0 | Y37: =L37/[1]出生数!$G$4*100000 -> 0 | Z37: =M37/[1]出生数!$G$4*100000 -> 0 | AA37: =N37/[1]出生数!$G$4*100000 -> 0 | AB37: =O37/[1]出生数!$G$4*100000 -> 0 | AC37: =P37/[1]出生数!$G$4*100000 -> 0
A38: Ba33 | C38: 胎児及び新生児の出血性障害及び血液障害 | D38: 1 | E38: 0 | F38: 0 | G38: 1 | H38: 0 | I38: 0 | J38: 0 | K38: 0 | L38: 0 | M38: 0 | N38: 0 | O38: 0 | P38: 0 | Q38: =D38/[1]出生数!$G$4*100000 -> 7.548309179 | R38: =E38/[1]出生数!$G$4*100000 -> 0 | S38: =F38/[1]出生数!$G$4*100000 -> 0 | T38: =G38/[1]出生数!$G$4*100000 -> 7.548309179 | U38: =H38/[1]出生数!$G$4*100000 -> 0 | V38: =I38/[1]出生数!$G$4*100000 -> 0 | W38: =J38/[1]出生数!$G$4*100000 -> 0 | X38: =K38/[1]出生数!$G$4*100000 -> 0 | Y38: =L38/[1]出生数!$G$4*100000 -> 0 | Z38: =M38/[1]出生数!$G$4*100000 -> 0 | AA38: =N38/[1]出生数!$G$4*100000 -> 0 | AB38: =O38/[1]出生数!$G$4*100000 -> 0 | AC38: =P38/[1]出生数!$G$4*100000 -> 0
A39: Ba34 | C39: その他の周産期に発生した病態 | D39: 2 | E39: 1 | F39: 0 | G39: 0 | H39: 0 | I39: 0 | J39: 0 | K39: 1 | L39: 0 | M39: 0 | N39: 0 | O39: 0 | P39: 0 | Q39: =D39/[1]出生数!$G$4*100000 -> 15.09661836 | R39: =E39/[1]出生数!$G$4*100000 -> 7.548309179 | S39: =F39/[1]出生数!$G$4*100000 -> 0 | T39: =G39/[1]出生数!$G$4*100000 -> 0 | U39: =H39/[1]出生数!$G$4*100000 -> 0 | V39: =I39/[1]出生数!$G$4*100000 -> 0 | W39: =J39/[1]出生数!$G$4*100000 -> 0 | X39: =K39/[1]出生数!$G$4*100000 -> 7.548309179 | Y39: =L39/[1]出生数!$G$4*100000 -> 0 | Z39: =M39/[1]出生数!$G$4*100000 -> 0 | AA39: =N39/[1]出生数!$G$4*100000 -> 0 | AB39: =O39/[1]出生数!$G$4*100000 -> 0 | AC39: =P39/[1]出生数!$G$4*100000 -> 0
A40: Ba35 | B40: 先天奇形、変形及び染色体異常 | D40: 13 | E40: =SUM(E41:E48) -> 0 | F40: =SUM(F41:F48) -> 0 | G40: 2 | H40: 3 | I40: 2 | J40: 4 | K40: 2 | L40: 0 | M40: 0 | N40: 0 | O40: 0 | P40: 0 | Q40: =D40/[1]出生数!$G$4*100000 -> 98.12801932 | R40: =E40/[1]出生数!$G$4*100000 -> 0 | S40: =F40/[1]出生数!$G$4*100000 -> 0 | T40: =G40/[1]出生数!$G$4*100000 -> 15.09661836 | U40: =H40/[1]出生数!$G$4*100000 -> 22.64492754 | V40: =I40/[1]出生数!$G$4*100000 -> 15.09661836 | W40: =J40/[1]出生数!$G$4*100000 -> 30.19323671 | X40: =K40/[1]出生数!$G$4*100000 -> 15.09661836 | Y40: =L40/[1]出生数!$G$4*100000 -> 0 | Z40: =M40/[1]出生数!$G$4*100000 -> 0 | AA40: =N40/[1]出生数!$G$4*100000 -> 0 | AB40: =O40/[1]出生数!$G$4*100000 -> 0 | AC40: =P40/[1]出生数!$G$4*100000 -> 0
A41: Ba36 | C41: 神経系の先天奇形 | D41: 0 | E41: 0 | F41: 0 | G41: 0 | H41: 0 | I41: 0 | J41: 0 | K41: 0 | L41: 0 | M41: 0 | N41: 0 | O41: 0 | P41: 0 | Q41: =D41/[1]出生数!$G$4*100000 -> 0 | R41: =E41/[1]出生数!$G$4*100000 -> 0 | S41: =F41/[1]出生数!$G$4*100000 -> 0 | T41: =G41/[1]出生数!$G$4*100000 -> 0 | U41: =H41/[1]出生数!$G$4*100000 -> 0 | V41: =I41/[1]出生数!$G$4*100000 -> 0 | W41: =J41/[1]出生数!$G$4*100000 -> 0 | X41: =K41/[1]出生数!$G$4*100000 -> 0 | Y41: =L41/[1]出生数!$G$4*100000 -> 0 | Z41: =M41/[1]出生数!$G$4*100000 -> 0 | AA41: =N41/[1]出生数!$G$4*100000 -> 0 | AB41: =O41/[1]出生数!$G$4*100000 -> 0 | AC41: =P41/[1]出生数!$G$4*100000 -> 0
A42: Ba37 | C42: 心臓の先天奇形 | D42: 6 | E42: 0 | F42: 0 | G42: 0 | H42: 1 | I42: 0 | J42: 3 | K42: 2 | L42: 0 | M42: 0 | N42: 0 | O42: 0 | P42: 0 | Q42: =D42/[1]出生数!$G$4*100000 -> 45.28985507 | R42: =E42/[1]出生数!$G$4*100000 -> 0 | S42: =F42/[1]出生数!$G$4*100000 -> 0 | T42: =G42/[1]出生数!$G$4*100000 -> 0 | U42: =H42/[1]出生数!$G$4*100000 -> 7.548309179 | V42: =I42/[1]出生数!$G$4*100000 -> 0 | W42: =J42/[1]出生数!$G$4*100000 -> 22.64492754 | X42: =K42/[1]出生数!$G$4*100000 -> 15.09661836 | Y42: =L42/[1]出生数!$G$4*100000 -> 0 | Z42: =M42/[1]出生数!$G$4*100000 -> 0 | AA42: =N42/[1]出生数!$G$4*100000 -> 0 | AB42: =O42/[1]出生数!$G$4*100000 -> 0 | AC42: =P42/[1]出生数!$G$4*100000 -> 0
A43: Ba38 | C43: その他の循環器系の先天奇形 | D43: 0 | E43: 0 | F43: 0 | G43: 0 | H43: 0 | I43: 0 | J43: 0 | K43: 0 | L43: 0 | M43: 0 | N43: 0 | O43: 0 | P43: 0 | Q43: =D43/[1]出生数!$G$4*100000 -> 0 | R43: =E43/[1]出生数!$G$4*100000 -> 0 | S43: =F43/[1]出生数!$G$4*100000 -> 0 | T43: =G43/[1]出生数!$G$4*100000 -> 0 | U43: =H43/[1]出生数!$G$4*100000 -> 0 | V43: =I43/[1]出生数!$G$4*100000 -> 0 | W43: =J43/[1]出生数!$G$4*100000 -> 0 | X43: =K43/[1]出生数!$G$4*100000 -> 0 | Y43: =L43/[1]出生数!$G$4*100000 -> 0 | Z43: =M43/[1]出生数!$G$4*100000 -> 0 | AA43: =N43/[1]出生数!$G$4*100000 -> 0 | AB43: =O43/[1]出生数!$G$4*100000 -> 0 | AC43: =P43/[1]出生数!$G$4*100000 -> 0
A44: Ba39 | C44: 呼吸器系の先天奇形 | D44: 1 | E44: 0 | F44: 0 | G44: 1 | H44: 0 | I44: 0 | J44: 0 | K44: 0 | L44: 0 | M44: 0 | N44: 0 | O44: 0 | P44: 0 | Q44: =D44/[1]出生数!$G$4*100000 -> 7.548309179 | R44: =E44/[1]出生数!$G$4*100000 -> 0 | S44: =F44/[1]出生数!$G$4*100000 -> 0 | T44: =G44/[1]出生数!$G$4*100000 -> 7.548309179 | U44: =H44/[1]出生数!$G$4*100000 -> 0 | V44: =I44/[1]出生数!$G$4*100000 -> 0 | W44: =J44/[1]出生数!$G$4*100000 -> 0 | X44: =K44/[1]出生数!$G$4*100000 -> 0 | Y44: =L44/[1]出生数!$G$4*100000 -> 0 | Z44: =M44/[1]出生数!$G$4*100000 -> 0 | AA44: =N44/[1]出生数!$G$4*100000 -> 0 | AB44: =O44/[1]出生数!$G$4*100000 -> 0 | AC44: =P44/[1]出生数!$G$4*100000 -> 0
A45: Ba40 | C45: 消化器系の先天奇形 | D45: 1 | E45: 0 | F45: 0 | G45: 0 | H45: 0 | I45: 1 | J45: 0 | K45: 0 | L45: 0 | M45: 0 | N45: 0 | O45: 0 | P45: 0 | Q45: =D45/[1]出生数!$G$4*100000 -> 7.548309179 | R45: =E45/[1]出生数!$G$4*100000 -> 0 | S45: =F45/[1]出生数!$G$4*100000 -> 0 | T45: =G45/[1]出生数!$G$4*100000 -> 0 | U45: =H45/[1]出生数!$G$4*100000 -> 0 | V45: =I45/[1]出生数!$G$4*100000 -> 7.548309179 | W45: =J45/[1]出生数!$G$4*100000 -> 0 | X45: =K45/[1]出生数!$G$4*100000 -> 0 | Y45: =L45/[1]出生数!$G$4*100000 -> 0 | Z45: =M45/[1]出生数!$G$4*100000 -> 0 | AA45: =N45/[1]出生数!$G$4*100000 -> 0 | AB45: =O45/[1]出生数!$G$4*100000 -> 0 | AC45: =P45/[1]出生数!$G$4*100000 -> 0
A46: Ba41 | C46: 筋骨格系の先天奇形及び変形 | D46: 0 | E46: 0 | F46: 0 | G46: 0 | H46: 0 | I46: 0 | J46: 0 | K46: 0 | L46: 0 | M46: 0 | N46: 0 | O46: 0 | P46: 0 | Q46: =D46/[1]出生数!$G$4*100000 -> 0 | R46: =E46/[1]出生数!$G$4*100000 -> 0 | S46: =F46/[1]出生数!$G$4*100000 -> 0 | T46: =G46/[1]出生数!$G$4*100000 -> 0 | U46: =H46/[1]出生数!$G$4*100000 -> 0 | V46: =I46/[1]出生数!$G$4*100000 -> 0 | W46: =J46/[1]出生数!$G$4*100000 -> 0 | X46: =K46/[1]出生数!$G$4*100000 -> 0 | Y46: =L46/[1]出生数!$G$4*100000 -> 0 | Z46: =M46/[1]出生数!$G$4*100000 -> 0 | AA46: =N46/[1]出生数!$G$4*100000 -> 0 | AB46: =O46/[1]出生数!$G$4*100000 -> 0 | AC46: =P46/[1]出生数!$G$4*100000 -> 0
A47: Ba42 | C47: その他の先天奇形及び変形 | D47: 1 | E47: 0 | F47: 0 | G47: 0 | H47: 0 | I47: 1 | J47: 0 | K47: 0 | L47: 0 | M47: 0 | N47: 0 | O47: 0 | P47: 0 | Q47: =D47/[1]出生数!$G$4*100000 -> 7.548309179 | R47: =E47/[1]出生数!$G$4*100000 -> 0 | S47: =F47/[1]出生数!$G$4*100000 -> 0 | T47: =G47/[1]出生数!$G$4*100000 -> 0 | U47: =H47/[1]出生数!$G$4*100000 -> 0 | V47: =I47/[1]出生数!$G$4*100000 -> 7.548309179 | W47: =J47/[1]出生数!$G$4*100000 -> 0 | X47: =K47/[1]出生数!$G$4*100000 -> 0 | Y47: =L47/[1]出生数!$G$4*100000 -> 0 | Z47: =M47/[1]出生数!$G$4*100000 -> 0 | AA47: =N47/[1]出生数!$G$4*100000 -> 0 | AB47: =O47/[1]出生数!$G$4*100000 -> 0 | AC47: =P47/[1]出生数!$G$4*100000 -> 0
A48: Ba43 | C48: 染色体異常、他に分類されないもの | D48: 4 | E48: 0 | F48: 0 | G48: 1 | H48: 2 | I48: 0 | J48: 1 | K48: 0 | L48: 0 | M48: 0 | N48: 0 | O48: 0 | P48: 0 | Q48: =D48/[1]出生数!$G$4*100000 -> 30.19323671 | R48: =E48/[1]出生数!$G$4*100000 -> 0 | S48: =F48/[1]出生数!$G$4*100000 -> 0 | T48: =G48/[1]出生数!$G$4*100000 -> 7.548309179 | U48: =H48/[1]出生数!$G$4*100000 -> 15.09661836 | V48: =I48/[1]出生数!$G$4*100000 -> 0 | W48: =J48/[1]出生数!$G$4*100000 -> 7.548309179 | X48: =K48/[1]出生数!$G$4*100000 -> 0 | Y48: =L48/[1]出生数!$G$4*100000 -> 0 | Z48: =M48/[1]出生数!$G$4*100000 -> 0 | AA48: =N48/[1]出生数!$G$4*100000 -> 0 | AB48: =O48/[1]出生数!$G$4*100000 -> 0 | AC48: =P48/[1]出生数!$G$4*100000 -> 0
A49: Ba44 | B49: 乳幼児突然死症候群 | D49: 1 | E49: 0 | F49: 0 | G49: 0 | H49: 0 | I49: 0 | J49: 1 | K49: 0 | L49: 0 | M49: 0 | N49: 0 | O49: 0 | P49: 0 | Q49: =D49/[1]出生数!$G$4*100000 -> 7.548309179 | R49: =E49/[1]出生数!$G$4*100000 -> 0 | S49: =F49/[1]出生数!$G$4*100000 -> 0 | T49: =G49/[1]出生数!$G$4*100000 -> 0 | U49: =H49/[1]出生数!$G$4*100000 -> 0 | V49: =I49/[1]出生数!$G$4*100000 -> 0 | W49: =J49/[1]出生数!$G$4*100000 -> 7.548309179 | X49: =K49/[1]出生数!$G$4*100000 -> 0 | Y49: =L49/[1]出生数!$G$4*100000 -> 0 | Z49: =M49/[1]出生数!$G$4*100000 -> 0 | AA49: =N49/[1]出生数!$G$4*100000 -> 0 | AB49: =O49/[1]出生数!$G$4*100000 -> 0 | AC49: =P49/[1]出生数!$G$4*100000 -> 0
A50: Ba45 | B50: その他のすべての疾患 | D50: =SUM(E50:P50) -> 2 | E50: 0 | F50: 0 | G50: 1 | H50: 0 | I50: 0 | J50: 0 | K50: 1 | L50: 0 | M50: 0 | N50: 0 | O50: 0 | P50: 0 | Q50: =D50/[1]出生数!$G$4*100000 -> 15.09661836 | R50: =E50/[1]出生数!$G$4*100000 -> 0 | S50: =F50/[1]出生数!$G$4*100000 -> 0 | T50: =G50/[1]出生数!$G$4*100000 -> 7.548309179 | U50: =H50/[1]出生数!$G$4*100000 -> 0 | V50: =I50/[1]出生数!$G$4*100000 -> 0 | W50: =J50/[1]出生数!$G$4*100000 -> 0 | X50: =K50/[1]出生数!$G$4*100000 -> 7.548309179 | Y50: =L50/[1]出生数!$G$4*100000 -> 0 | Z50: =M50/[1]出生数!$G$4*100000 -> 0 | AA50: =N50/[1]出生数!$G$4*100000 -> 0 | AB50: =O50/[1]出生数!$G$4*100000 -> 0 | AC50: =P50/[1]出生数!$G$4*100000 -> 0

Sheet 体重別，単産-複産・母の年齢階級別乳児死亡数
A1: 出生時の体重・性別にみた単産-複産・母の年齢階級別病死による乳児死亡数
A3: 単産-複産 母の年齢 | B3: 病死による乳児死亡数 | O3: データの個数 : 客体区分 | Q3: 乳児死亡 | R3: 1歳未満の死亡 | S3: 全体重区分
B4: 総 数 | C4: 0.5㎏未満 | D4: 0.5㎏ 以上 1.0㎏ 未満 | E4: 1.0～1.5㎏ | F4: 1.5～2.0㎏ | G4: 2.0～2.5㎏ | H4: 2.5～3.0㎏ | I4: 3.0～3.5㎏ | J4: 3.5～4.0㎏ | K4: 4.0～4.5㎏ | L4: 4.5～5.0㎏ | M4: 5.0㎏ 以上 | Q4: 乳児 | Y4: 乳児 計 | Z4: 総計
A5: 総 数 | B5: =SUM(B16,B27) -> 0 | C5: =SUM(C16,C27) -> 0 | D5: 0 | E5: 0 | F5: 0 | G5: 0 | H5: 0 | I5: 0 | J5: 0 | K5: 0 | L5: 0 | M5: 0 | Q5: 1 | X5: 1 計
A6: ～14歳 | B6: =SUM(B17,B28) -> 0 | C6: 0 | D6: 0 | E6: 0 | F6: 0 | G6: 0 | H6: 0 | I6: 0 | J6: 0 | K6: 0 | L6: 0 | M6: 0 | O6: 胎数 | P6: 母の年齢区分 | Q6: 500g未満 | R6: 500g以上1000g未満 | S6: 1000g以上1500g未満 | T6: 1500g以上2000g未満 | U6: 2000g以上2500g未満 | V6: 2500g以上3000g未満 | W6: 3000g以上3500g未満
A7: 15～19 | B7: =SUM(B18,B29) -> 0 | C7: 0 | D7: 0 | E7: 0 | F7: 0 | G7: 0 | H7: 0 | I7: 0 | J7: 0 | K7: 0 | L7: 0 | M7: 0 | O7: 1 | P7: 20～24 | Q7: 0 | R7: 0 | S7: 0 | T7: 0 | U7: 0 | V7: 1 | W7: 2 | X7: 3 | Y7: 3 | Z7: 3
A8: 20～24 | B8: =SUM(B19,B30) -> 0 | C8: 0 | D8: 0 | E8: 0 | F8: 0 | G8: 0 | H8: 0 | I8: 0 | J8: 0 | K8: 0 | L8: 0 | M8: 0 | P8: 25～29 | Q8: 0 | R8: 2 | S8: 1 | T8: 1 | U8: 1 | V8: 2 | W8: 3 | X8: 10 | Y8: 10 | Z8: 10
A9: 25～29 | B9: =SUM(B20,B31) -> 0 | C9: 0 | D9: 0 | E9: 0 | F9: 0 | G9: 0 | H9: 0 | I9: 0 | J9: 0 | K9: 0 | L9: 0 | M9: 0 | P9: 30～34 | Q9: 1 | R9: 0 | S9: 0 | T9: 1 | U9: 0 | V9: 4 | W9: 1 | X9: 7 | Y9: 7 | Z9: 7
A10: 30～34 | B10: =SUM(B21,B32) -> 0 | C10: 0 | D10: 0 | E10: 0 | F10: 0 | G10: 0 | H10: 0 | I10: 0 | J10: 0 | K10: 0 | L10: 0 | M10: 0 | P10: 35～39 | Q10: 0 | R10: 0 | S10: 1 | T10: 0 | U10: 0 | V10: 1 | W10: 1 | X10: 3 | Y10: 3 | Z10: 3
A11: 35～39 | B11: =SUM(B22,B33) -> 0 | C11: 0 | D11: 0 | E11: 0 | F11: 0 | G11: 0 | H11: 0 | I11: 0 | J11: 0 | K11: 0 | L11: 0 | M11: 0 | O11: 1 計 | Q11: 1 | R11: 2 | S11: 2 | T11: 2 | U11: 1 | V11: 8 | W11: 7 | X11: 23 | Y11: 23 | Z11: 23
A12: 40～44 | B12: =SUM(B23,B34) -> 0 | C12: 0 | D12: 0 | E12: 0 | F12: 0 | G12: 0 | H12: 0 | I12: 0 | J12: 0 | K12: 0 | L12: 0 | M12: 0 | O12: 2 | P12: 25～29 | Q12: 0 | R12: 0 | S12: 0 | T12: 1 | U12: 0 | V12: 1 | W12: 0 | X12: 2 | Y12: 2 | Z12: 2
A13: 45～ | B13: =SUM(B24,B35) -> 0 | C13: 0 | D13: 0 | E13: 0 | F13: 0 | G13: 0 | H13: 0 | I13: 0 | J13: 0 | K13: 0 | L13: 0 | M13: 0 | P13: 30～34 | Q13: 0 | R13: 1 | S13: 0 | T13: 0 | U13: 0 | V13: 0 | W13: 0 | X13: 1 | Y13: 1 | Z13: 1
A14: 不詳 | B14: =SUM(B25,B36) -> 0 | C14: 0 | D14: 0 | E14: 0 | F14: 0 | G14: 0 | H14: 0 | I14: 0 | J14: 0 | K14: 0 | L14: 0 | M14: 0 | P14: 35～39 | Q14: 0 | R14: 0 | S14: 0 | T14: 1 | U14: 0 | V14: 0 | W14: 0 | X14: 1 | Y14: 1 | Z14: 1
O15: 2 計 | Q15: 0 | R15: 1 | S15: 0 | T15: 2 | U15: 0 | V15: 1 | W15: 0 | X15: 4 | Y15: 4 | Z15: 4
A16: 単 産 | B16: =SUM(C16:M16) -> 0 | C16: =SUM(C17:C25) -> 0 | D16: =SUM(D17:D25) -> 0 | E16: 0 | F16: 0 | G16: 0 | H16: 0 | I16: 0 | J16: 0 | K16: 0 | L16: 0 | M16: 0 | O16: 総計 | Q16: 1 | R16: 3 | S16: 2 | T16: 4 | U16: 1 | V16: 9 | W16: 7 | X16: 27 | Y16: 27 | Z16: 27
A17: ～14歳 | B17: =SUM(C17:M17) -> 0
A18: 15～19 | B18: 0
A19: 20～24 | B19: 0
A20: 25～29 | B20: 0
A21: 30～34 | B21: 0
A22: 35～39 | B22: 0
A23: 40～44 | B23: 0
A24: 45～ | B24: 0
A25: 不詳 | B25: 0
A27: 複 産 | B27: =SUM(C27:M27) -> 0 | C27: =SUM(C28:C36) -> 0 | D27: 0 | E27: 0 | F27: 0 | G27: 0 | H27: 0 | I27: 0 | J27: 0 | K27: 0 | L27: 0 | M27: 0
A28: ～14歳 | B28: =SUM(C28:M28) -> 0
A29: 15～19 | B29: 0
A30: 20～24 | B30: 0
A31: 25～29 | B31: 0
A32: 30～34 | B32: 0
A33: 35～39 | B33: 0
A34: 40～44 | B34: 0
A35: 45～ | B35: 0
A36: 不詳 | B36: 0

Sheet 月・性別，区別死亡率
A1: 月・性別にみた区別乳児死亡率（出生千対）
A3: 区 | B3: 総数 | C3: １月 | D3: ２月 | E3: ３月 | F3: ４月 | G3: ５月 | H3: ６月 | I3: ７月 | J3: ８月 | K3: ９月 | L3: １０月 | M3: １１月 | N3: １２月
A4: 総数 | B4: ='3 乳児死亡数，月・性・区別'!C4/[1]出生数!G4*1000 -> 2.566425121 | C4: ='3 乳児死亡数，月・性・区別'!D4/(SUM([1]出生数!K4:V4)*[1]出生数!V$15/SUM([1]出生数!K$15:V$15))*1000 -> 1.704058694 | D4: ='3 乳児死亡数，月・性・区別'!E4/(SUM([1]出生数!L4:W4)*[1]出生数!W$15/SUM([1]出生数!L$15:W$15))*1000 -> 0 | E4: ='3 乳児死亡数，月・性・区別'!F4/(SUM([1]出生数!M4:X4)*[1]出生数!X$15/SUM([1]出生数!M$15:X$15))*1000 -> 2.559050978 | F4: ='3 乳児死亡数，月・性・区別'!G4/(SUM([1]出生数!N4:Y4)*[1]出生数!Y$15/SUM([1]出生数!N$15:Y$15))*1000 -> 2.668909038 | G4: ='3 乳児死亡数，月・性・区別'!H4/(SUM([1]出生数!O4:Z4)*[1]出生数!Z$15/SUM([1]出生数!O$15:Z$15))*1000 -> 2.589632012 | H4: ='3 乳児死亡数，月・性・区別'!I4/(SUM([1]出生数!P4:AA4)*[1]出生数!AA$15/SUM([1]出生数!P$15:AA$15))*1000 -> 4.463521413 | I4: ='3 乳児死亡数，月・性・区別'!J4/(SUM([1]出生数!Q4:AB4)*[1]出生数!AB$15/SUM([1]出生数!Q$15:AB$15))*1000 -> 0.8739103057 | J4: ='3 乳児死亡数，月・性・区別'!K4/(SUM([1]出生数!R4:AC4)*[1]出生数!AC$15/SUM([1]出生数!R$15:AC$15))*1000 -> 5.228714476 | K4: ='3 乳児死亡数，月・性・区別'!L4/(SUM([1]出生数!S4:AD4)*[1]出生数!AD$15/SUM([1]出生数!S$15:AD$15))*1000 -> 3.625617721 | L4: ='3 乳児死亡数，月・性・区別'!M4/(SUM([1]出生数!T4:AE4)*[1]出生数!AE$15/SUM([1]出生数!T$15:AE$15))*1000 -> 0.8759908897 | M4: ='3 乳児死亡数，月・性・区別'!N4/(SUM([1]出生数!U4:AF4)*[1]出生数!AF$15/SUM([1]出生数!U$15:AF$15))*1000 -> 2.741887019 | N4: ='3 乳児死亡数，月・性・区別'!O4/(SUM([1]出生数!V4:AG4)*[1]出生数!AG$15/SUM([1]出生数!V$15:AG$15))*1000 -> 2.666257597
A5: 中央 | B5: ='3 乳児死亡数，月・性・区別'!C7/[1]出生数!G5*1000 -> 3.440366972 | C5: ='3 乳児死亡数，月・性・区別'!D7/(SUM([1]出生数!K5:V5)*[1]出生数!V$15/SUM([1]出生数!K$15:V$15))*1000 -> 0 | D5: ='3 乳児死亡数，月・性・区別'!E7/(SUM([1]出生数!L5:W5)*[1]出生数!W$15/SUM([1]出生数!L$15:W$15))*1000 -> 0 | E5: ='3 乳児死亡数，月・性・区別'!F7/(SUM([1]出生数!M5:X5)*[1]出生数!X$15/SUM([1]出生数!M$15:X$15))*1000 -> 0 | F5: ='3 乳児死亡数，月・性・区別'!G7/(SUM([1]出生数!N5:Y5)*[1]出生数!Y$15/SUM([1]出生数!N$15:Y$15))*1000 -> 6.766777901 | G5: ='3 乳児死亡数，月・性・区別'!H7/(SUM([1]出生数!O5:Z5)*[1]出生数!Z$15/SUM([1]出生数!O$15:Z$15))*1000 -> 13.02455039 | H5: ='3 乳児死亡数，月・性・区別'!I7/(SUM([1]出生数!P5:AA5)*[1]出生数!AA$15/SUM([1]出生数!P$15:AA$15))*1000 -> 6.778087279 | I5: ='3 乳児死亡数，月・性・区別'!J7/(SUM([1]出生数!Q5:AB5)*[1]出生数!AB$15/SUM([1]出生数!Q$15:AB$15))*1000 -> 0 | J5: ='3 乳児死亡数，月・性・区別'!K7/(SUM([1]出生数!R5:AC5)*[1]出生数!AC$15/SUM([1]出生数!R$15:AC$15))*1000 -> 0 | K5: ='3 乳児死亡数，月・性・区別'!L7/(SUM([1]出生数!S5:AD5)*[1]出生数!AD$15/SUM([1]出生数!S$15:AD$15))*1000 -> 6.916808793 | L5: ='3 乳児死亡数，月・性・区別'!M7/(SUM([1]出生数!T5:AE5)*[1]出生数!AE$15/SUM([1]出生数!T$15:AE$15))*1000 -> 0 | M5: ='3 乳児死亡数，月・性・区別'!N7/(SUM([1]出生数!U5:AF5)*[1]出生数!AF$15/SUM([1]出生数!U$15:AF$15))*1000 -> 7.012487992 | N5: ='3 乳児死亡数，月・性・区別'!O7/(SUM([1]出生数!V5:AG5)*[1]出生数!AG$15/SUM([1]出生数!V$15:AG$15))*1000 -> 0
A6: 北 | B6: ='3 乳児死亡数，月・性・区別'!C10/[1]出生数!G6*1000 -> 1.62425555 | C6: ='3 乳児死亡数，月・性・区別'!D10/(SUM([1]出生数!K6:V6)*[1]出生数!V$15/SUM([1]出生数!K$15:V$15))*1000 -> 0 | D6: ='3 乳児死亡数，月・性・区別'!E10/(SUM([1]出生数!L6:W6)*[1]出生数!W$15/SUM([1]出生数!L$15:W$15))*1000 -> 0 | E6: ='3 乳児死亡数，月・性・区別'!F10/(SUM([1]出生数!M6:X6)*[1]出生数!X$15/SUM([1]出生数!M$15:X$15))*1000 -> 0 | F6: ='3 乳児死亡数，月・性・区別'!G10/(SUM([1]出生数!N6:Y6)*[1]出生数!Y$15/SUM([1]出生数!N$15:Y$15))*1000 -> 0 | G6: ='3 乳児死亡数，月・性・区別'!H10/(SUM([1]出生数!O6:Z6)*[1]出生数!Z$15/SUM([1]出生数!O$15:Z$15))*1000 -> 0 | H6: ='3 乳児死亡数，月・性・区別'!I10/(SUM([1]出生数!P6:AA6)*[1]出生数!AA$15/SUM([1]出生数!P$15:AA$15))*1000 -> 0 | I6: ='3 乳児死亡数，月・性・区別'!J10/(SUM([1]出生数!Q6:AB6)*[1]出生数!AB$15/SUM([1]出生数!Q$15:AB$15))*1000 -> 0 | J6: ='3 乳児死亡数，月・性・区別'!K10/(SUM([1]出生数!R6:AC6)*[1]出生数!AC$15/SUM([1]出生数!R$15:AC$15))*1000 -> 6.41645425 | K6: ='3 乳児死亡数，月・性・区別'!L10/(SUM([1]出生数!S6:AD6)*[1]出生数!AD$15/SUM([1]出生数!S$15:AD$15))*1000 -> 13.4736065 | L6: ='3 乳児死亡数，月・性・区別'!M10/(SUM([1]出生数!T6:AE6)*[1]出生数!AE$15/SUM([1]出生数!T$15:AE$15))*1000 -> 0 | M6: ='3 乳児死亡数，月・性・区別'!N10/(SUM([1]出生数!U6:AF6)*[1]出生数!AF$15/SUM([1]出生数!U$15:AF$15))*1000 -> 0 | N6: ='3 乳児死亡数，月・性・区別'!O10/(SUM([1]出生数!V6:AG6)*[1]出生数!AG$15/SUM([1]出生数!V$15:AG$15))*1000 -> 0
A7: 東 | B7: ='3 乳児死亡数，月・性・区別'!C13/[1]出生数!G7*1000 -> 2.527805865 | C7: ='3 乳児死亡数，月・性・区別'!D13/(SUM([1]出生数!K7:V7)*[1]出生数!V$15/SUM([1]出生数!K$15:V$15))*1000 -> 0 | D7: ='3 乳児死亡数，月・性・区別'!E13/(SUM([1]出生数!L7:W7)*[1]出生数!W$15/SUM([1]出生数!L$15:W$15))*1000 -> 0 | E7: ='3 乳児死亡数，月・性・区別'!F13/(SUM([1]出生数!M7:X7)*[1]出生数!X$15/SUM([1]出生数!M$15:X$15))*1000 -> 0 | F7: ='3 乳児死亡数，月・性・区別'!G13/(SUM([1]出生数!N7:Y7)*[1]出生数!Y$15/SUM([1]出生数!N$15:Y$15))*1000 -> 0 | G7: ='3 乳児死亡数，月・性・区別'!H13/(SUM([1]出生数!O7:Z7)*[1]出生数!Z$15/SUM([1]出生数!O$15:Z$15))*1000 -> 0 | H7: ='3 乳児死亡数，月・性・区別'!I13/(SUM([1]出生数!P7:AA7)*[1]出生数!AA$15/SUM([1]出生数!P$15:AA$15))*1000 -> 0 | I7: ='3 乳児死亡数，月・性・区別'!J13/(SUM([1]出生数!Q7:AB7)*[1]出生数!AB$15/SUM([1]出生数!Q$15:AB$15))*1000 -> 5.846173559 | J7: ='3 乳児死亡数，月・性・区別'!K13/(SUM([1]出生数!R7:AC7)*[1]出生数!AC$15/SUM([1]出生数!R$15:AC$15))*1000 -> 0 | K7: ='3 乳児死亡数，月・性・区別'!L13/(SUM([1]出生数!S7:AD7)*[1]出生数!AD$15/SUM([1]出生数!S$15:AD$15))*1000 -> 0 | L7: ='3 乳児死亡数，月・性・区別'!M13/(SUM([1]出生数!T7:AE7)*[1]出生数!AE$15/SUM([1]出生数!T$15:AE$15))*1000 -> 0 | M7: ='3 乳児死亡数，月・性・区別'!N13/(SUM([1]出生数!U7:AF7)*[1]出生数!AF$15/SUM([1]出生数!U$15:AF$15))*1000 -> 12.12423186 | N7: ='3 乳児死亡数，月・性・区別'!O13/(SUM([1]出生数!V7:AG7)*[1]出生数!AG$15/SUM([1]出生数!V$15:AG$15))*1000 -> 11.9051502
A8: 白石 | B8: ='3 乳児死亡数，月・性・区別'!C16/[1]出生数!G8*1000 -> 2.337814144 | C8: ='3 乳児死亡数，月・性・区別'!D16/(SUM([1]出生数!K8:V8)*[1]出生数!V$15/SUM([1]出生数!K$15:V$15))*1000 -> 0 | D8: ='3 乳児死亡数，月・性・区別'!E16/(SUM([1]出生数!L8:W8)*[1]出生数!W$15/SUM([1]出生数!L$15:W$15))*1000 -> 0 | E8: ='3 乳児死亡数，月・性・区別'!F16/(SUM([1]出生数!M8:X8)*[1]出生数!X$15/SUM([1]出生数!M$15:X$15))*1000 -> 6.905685366 | F8: ='3 乳児死亡数，月・性・区別'!G16/(SUM([1]出生数!N8:Y8)*[1]出生数!Y$15/SUM([1]出生数!N$15:Y$15))*1000 -> 14.2801252 | G8: ='3 乳児死亡数，月・性・区別'!H16/(SUM([1]出生数!O8:Z8)*[1]出生数!Z$15/SUM([1]出生数!O$15:Z$15))*1000 -> 0 | H8: ='3 乳児死亡数，月・性・区別'!I16/(SUM([1]出生数!P8:AA8)*[1]出生数!AA$15/SUM([1]出生数!P$15:AA$15))*1000 -> 0 | I8: ='3 乳児死亡数，月・性・区別'!J16/(SUM([1]出生数!Q8:AB8)*[1]出生数!AB$15/SUM([1]出生数!Q$15:AB$15))*1000 -> 0 | J8: ='3 乳児死亡数，月・性・区別'!K16/(SUM([1]出生数!R8:AC8)*[1]出生数!AC$15/SUM([1]出生数!R$15:AC$15))*1000 -> 7.033568428 | K8: ='3 乳児死亡数，月・性・区別'!L16/(SUM([1]出生数!S8:AD8)*[1]出生数!AD$15/SUM([1]出生数!S$15:AD$15))*1000 -> 0 | L8: ='3 乳児死亡数，月・性・区別'!M16/(SUM([1]出生数!T8:AE8)*[1]出生数!AE$15/SUM([1]出生数!T$15:AE$15))*1000 -> 0 | M8: ='3 乳児死亡数，月・性・区別'!N16/(SUM([1]出生数!U8:AF8)*[1]出生数!AF$15/SUM([1]出生数!U$15:AF$15))*1000 -> 0 | N8: ='3 乳児死亡数，月・性・区別'!O16/(SUM([1]出生数!V8:AG8)*[1]出生数!AG$15/SUM([1]出生数!V$15:AG$15))*1000 -> 0
A9: 厚別 | B9: ='3 乳児死亡数，月・性・区別'!C19/[1]出生数!G9*1000 -> 4.538577912 | C9: ='3 乳児死亡数，月・性・区別'!D19/(SUM([1]出生数!K9:V9)*[1]出生数!V$15/SUM([1]出生数!K$15:V$15))*1000 -> 0 | D9: ='3 乳児死亡数，月・性・区別'!E19/(SUM([1]出生数!L9:W9)*[1]出生数!W$15/SUM([1]出生数!L$15:W$15))*1000 -> 0 | E9: ='3 乳児死亡数，月・性・区別'!F19/(SUM([1]出生数!M9:X9)*[1]出生数!X$15/SUM([1]出生数!M$15:X$15))*1000 -> 0 | F9: ='3 乳児死亡数，月・性・区別'!G19/(SUM([1]出生数!N9:Y9)*[1]出生数!Y$15/SUM([1]出生数!N$15:Y$15))*1000 -> 0 | G9: ='3 乳児死亡数，月・性・区別'!H19/(SUM([1]出生数!O9:Z9)*[1]出生数!Z$15/SUM([1]出生数!O$15:Z$15))*1000 -> 0 | H9: ='3 乳児死亡数，月・性・区別'!I19/(SUM([1]出生数!P9:AA9)*[1]出生数!AA$15/SUM([1]出生数!P$15:AA$15))*1000 -> 36.37269557 | I9: ='3 乳児死亡数，月・性・区別'!J19/(SUM([1]出生数!Q9:AB9)*[1]出生数!AB$15/SUM([1]出生数!Q$15:AB$15))*1000 -> 0 | J9: ='3 乳児死亡数，月・性・区別'!K19/(SUM([1]出生数!R9:AC9)*[1]出生数!AC$15/SUM([1]出生数!R$15:AC$15))*1000 -> 0 | K9: ='3 乳児死亡数，月・性・区別'!L19/(SUM([1]出生数!S9:AD9)*[1]出生数!AD$15/SUM([1]出生数!S$15:AD$15))*1000 -> 0 | L9: ='3 乳児死亡数，月・性・区別'!M19/(SUM([1]出生数!T9:AE9)*[1]出生数!AE$15/SUM([1]出生数!T$15:AE$15))*1000 -> 17.495087 | M9: ='3 乳児死亡数，月・性・区別'!N19/(SUM([1]出生数!U9:AF9)*[1]出生数!AF$15/SUM([1]出生数!U$15:AF$15))*1000 -> 0 | N9: ='3 乳児死亡数，月・性・区別'!O19/(SUM([1]出生数!V9:AG9)*[1]出生数!AG$15/SUM([1]出生数!V$15:AG$15))*1000 -> 0
A10: 豊平 | B10: ='3 乳児死亡数，月・性・区別'!C22/[1]出生数!G10*1000 -> 2.378121284 | C10: ='3 乳児死亡数，月・性・区別'!D22/(SUM([1]出生数!K10:V10)*[1]出生数!V$15/SUM([1]出生数!K$15:V$15))*1000 -> 0 | D10: ='3 乳児死亡数，月・性・区別'!E22/(SUM([1]出生数!L10:W10)*[1]出生数!W$15/SUM([1]出生数!L$15:W$15))*1000 -> 0 | E10: ='3 乳児死亡数，月・性・区別'!F22/(SUM([1]出生数!M10:X10)*[1]出生数!X$15/SUM([1]出生数!M$15:X$15))*1000 -> 13.03897403 | F10: ='3 乳児死亡数，月・性・区別'!G22/(SUM([1]出生数!N10:Y10)*[1]出生数!Y$15/SUM([1]出生数!N$15:Y$15))*1000 -> 0 | G10: ='3 乳児死亡数，月・性・区別'!H22/(SUM([1]出生数!O10:Z10)*[1]出生数!Z$15/SUM([1]出生数!O$15:Z$15))*1000 -> 0 | H10: ='3 乳児死亡数，月・性・区別'!I22/(SUM([1]出生数!P10:AA10)*[1]出生数!AA$15/SUM([1]出生数!P$15:AA$15))*1000 -> 6.766777901 | I10: ='3 乳児死亡数，月・性・区別'!J22/(SUM([1]出生数!Q10:AB10)*[1]出生数!AB$15/SUM([1]出生数!Q$15:AB$15))*1000 -> 0 | J10: ='3 乳児死亡数，月・性・区別'!K22/(SUM([1]出生数!R10:AC10)*[1]出生数!AC$15/SUM([1]出生数!R$15:AC$15))*1000 -> 6.663380616 | K10: ='3 乳児死亡数，月・性・区別'!L22/(SUM([1]出生数!S10:AD10)*[1]出生数!AD$15/SUM([1]出生数!S$15:AD$15))*1000 -> 0 | L10: ='3 乳児死亡数，月・性・区別'!M22/(SUM([1]出生数!T10:AE10)*[1]出生数!AE$15/SUM([1]出生数!T$15:AE$15))*1000 -> 0 | M10: ='3 乳児死亡数，月・性・区別'!N22/(SUM([1]出生数!U10:AF10)*[1]出生数!AF$15/SUM([1]出生数!U$15:AF$15))*1000 -> 0 | N10: ='3 乳児死亡数，月・性・区別'!O22/(SUM([1]出生数!V10:AG10)*[1]出生数!AG$15/SUM([1]出生数!V$15:AG$15))*1000 -> 0
A11: 清田 | B11: ='3 乳児死亡数，月・性・区別'!C25/[1]出生数!G11*1000 -> 3.105590062 | C11: ='3 乳児死亡数，月・性・区別'!D25/(SUM([1]出生数!K11:V11)*[1]出生数!V$15/SUM([1]出生数!K$15:V$15))*1000 -> 18.71890866 | D11: ='3 乳児死亡数，月・性・区別'!E25/(SUM([1]出生数!L11:W11)*[1]出生数!W$15/SUM([1]出生数!L$15:W$15))*1000 -> 0 | E11: ='3 乳児死亡数，月・性・区別'!F25/(SUM([1]出生数!M11:X11)*[1]出生数!X$15/SUM([1]出生数!M$15:X$15))*1000 -> 0 | F11: ='3 乳児死亡数，月・性・区別'!G25/(SUM([1]出生数!N11:Y11)*[1]出生数!Y$15/SUM([1]出生数!N$15:Y$15))*1000 -> 0 | G11: ='3 乳児死亡数，月・性・区別'!H25/(SUM([1]出生数!O11:Z11)*[1]出生数!Z$15/SUM([1]出生数!O$15:Z$15))*1000 -> 0 | H11: ='3 乳児死亡数，月・性・区別'!I25/(SUM([1]出生数!P11:AA11)*[1]出生数!AA$15/SUM([1]出生数!P$15:AA$15))*1000 -> 0 | I11: ='3 乳児死亡数，月・性・区別'!J25/(SUM([1]出生数!Q11:AB11)*[1]出生数!AB$15/SUM([1]出生数!Q$15:AB$15))*1000 -> 0 | J11: ='3 乳児死亡数，月・性・区別'!K25/(SUM([1]出生数!R11:AC11)*[1]出生数!AC$15/SUM([1]出生数!R$15:AC$15))*1000 -> 18.311343 | K11: ='3 乳児死亡数，月・性・区別'!L25/(SUM([1]出生数!S11:AD11)*[1]出生数!AD$15/SUM([1]出生数!S$15:AD$15))*1000 -> 0 | L11: ='3 乳児死亡数，月・性・区別'!M25/(SUM([1]出生数!T11:AE11)*[1]出生数!AE$15/SUM([1]出生数!T$15:AE$15))*1000 -> 0 | M11: ='3 乳児死亡数，月・性・区別'!N25/(SUM([1]出生数!U11:AF11)*[1]出生数!AF$15/SUM([1]出生数!U$15:AF$15))*1000 -> 0 | N11: ='3 乳児死亡数，月・性・区別'!O25/(SUM([1]出生数!V11:AG11)*[1]出生数!AG$15/SUM([1]出生数!V$15:AG$15))*1000 -> 0
A12: 南 | B12: ='3 乳児死亡数，月・性・区別'!C28/[1]出生数!G12*1000 -> 3.115264798 | C12: ='3 乳児死亡数，月・性・区別'!D28/(SUM([1]出生数!K12:V12)*[1]出生数!V$15/SUM([1]出生数!K$15:V$15))*1000 -> 0 | D12: ='3 乳児死亡数，月・性・区別'!E28/(SUM([1]出生数!L12:W12)*[1]出生数!W$15/SUM([1]出生数!L$15:W$15))*1000 -> 0 | E12: ='3 乳児死亡数，月・性・区別'!F28/(SUM([1]出生数!M12:X12)*[1]出生数!X$15/SUM([1]出生数!M$15:X$15))*1000 -> 0 | F12: ='3 乳児死亡数，月・性・区別'!G28/(SUM([1]出生数!N12:Y12)*[1]出生数!Y$15/SUM([1]出生数!N$15:Y$15))*1000 -> 0 | G12: ='3 乳児死亡数，月・性・区別'!H28/(SUM([1]出生数!O12:Z12)*[1]出生数!Z$15/SUM([1]出生数!O$15:Z$15))*1000 -> 0 | H12: ='3 乳児死亡数，月・性・区別'!I28/(SUM([1]出生数!P12:AA12)*[1]出生数!AA$15/SUM([1]出生数!P$15:AA$15))*1000 -> 17.38095238 | I12: ='3 乳児死亡数，月・性・区別'!J28/(SUM([1]出生数!Q12:AB12)*[1]出生数!AB$15/SUM([1]出生数!Q$15:AB$15))*1000 -> 0 | J12: ='3 乳児死亡数，月・性・区別'!K28/(SUM([1]出生数!R12:AC12)*[1]出生数!AC$15/SUM([1]出生数!R$15:AC$15))*1000 -> 0 | K12: ='3 乳児死亡数，月・性・区別'!L28/(SUM([1]出生数!S12:AD12)*[1]出生数!AD$15/SUM([1]出生数!S$15:AD$15))*1000 -> 18.32329317 | L12: ='3 乳児死亡数，月・性・区別'!M28/(SUM([1]出生数!T12:AE12)*[1]出生数!AE$15/SUM([1]出生数!T$15:AE$15))*1000 -> 0 | M12: ='3 乳児死亡数，月・性・区別'!N28/(SUM([1]出生数!U12:AF12)*[1]出生数!AF$15/SUM([1]出生数!U$15:AF$15))*1000 -> 0 | N12: ='3 乳児死亡数，月・性・区別'!O28/(SUM([1]出生数!V12:AG12)*[1]出生数!AG$15/SUM([1]出生数!V$15:AG$15))*1000 -> 0
A13: 西 | B13: ='3 乳児死亡数，月・性・区別'!C31/[1]出生数!G13*1000 -> 1.960784314 | C13: ='3 乳児死亡数，月・性・区別'!D31/(SUM([1]出生数!K13:V13)*[1]出生数!V$15/SUM([1]出生数!K$15:V$15))*1000 -> 7.14453492 | D13: ='3 乳児死亡数，月・性・区別'!E31/(SUM([1]出生数!L13:W13)*[1]出生数!W$15/SUM([1]出生数!L$15:W$15))*1000 -> 0 | E13: ='3 乳児死亡数，月・性・区別'!F31/(SUM([1]出生数!M13:X13)*[1]出生数!X$15/SUM([1]出生数!M$15:X$15))*1000 -> 0 | F13: ='3 乳児死亡数，月・性・区別'!G31/(SUM([1]出生数!N13:Y13)*[1]出生数!Y$15/SUM([1]出生数!N$15:Y$15))*1000 -> 0 | G13: ='3 乳児死亡数，月・性・区別'!H31/(SUM([1]出生数!O13:Z13)*[1]出生数!Z$15/SUM([1]出生数!O$15:Z$15))*1000 -> 7.277004665 | H13: ='3 乳児死亡数，月・性・区別'!I31/(SUM([1]出生数!P13:AA13)*[1]出生数!AA$15/SUM([1]出生数!P$15:AA$15))*1000 -> 0 | I13: ='3 乳児死亡数，月・性・区別'!J31/(SUM([1]出生数!Q13:AB13)*[1]出生数!AB$15/SUM([1]出生数!Q$15:AB$15))*1000 -> 0 | J13: ='3 乳児死亡数，月・性・区別'!K31/(SUM([1]出生数!R13:AC13)*[1]出生数!AC$15/SUM([1]出生数!R$15:AC$15))*1000 -> 0 | K13: ='3 乳児死亡数，月・性・区別'!L31/(SUM([1]出生数!S13:AD13)*[1]出生数!AD$15/SUM([1]出生数!S$15:AD$15))*1000 -> 0 | L13: ='3 乳児死亡数，月・性・区別'!M31/(SUM([1]出生数!T13:AE13)*[1]出生数!AE$15/SUM([1]出生数!T$15:AE$15))*1000 -> 0 | M13: ='3 乳児死亡数，月・性・区別'!N31/(SUM([1]出生数!U13:AF13)*[1]出生数!AF$15/SUM([1]出生数!U$15:AF$15))*1000 -> 0 | N13: ='3 乳児死亡数，月・性・区別'!O31/(SUM([1]出生数!V13:AG13)*[1]出生数!AG$15/SUM([1]出生数!V$15:AG$15))*1000 -> 7.695551339
A14: 手稲 | B14: ='3 乳児死亡数，月・性・区別'!C34/[1]出生数!G14*1000 -> 2.472187886 | C14: ='3 乳児死亡数，月・性・区別'!D34/(SUM([1]出生数!K14:V14)*[1]出生数!V$15/SUM([1]出生数!K$15:V$15))*1000 -> 0 | D14: ='3 乳児死亡数，月・性・区別'!E34/(SUM([1]出生数!L14:W14)*[1]出生数!W$15/SUM([1]出生数!L$15:W$15))*1000 -> 0 | E14: ='3 乳児死亡数，月・性・区別'!F34/(SUM([1]出生数!M14:X14)*[1]出生数!X$15/SUM([1]出生数!M$15:X$15))*1000 -> 0 | F14: ='3 乳児死亡数，月・性・区別'!G34/(SUM([1]出生数!N14:Y14)*[1]出生数!Y$15/SUM([1]出生数!N$15:Y$15))*1000 -> 0 | G14: ='3 乳児死亡数，月・性・区別'!H34/(SUM([1]出生数!O14:Z14)*[1]出生数!Z$15/SUM([1]出生数!O$15:Z$15))*1000 -> 0 | H14: ='3 乳児死亡数，月・性・区別'!I34/(SUM([1]出生数!P14:AA14)*[1]出生数!AA$15/SUM([1]出生数!P$15:AA$15))*1000 -> 0 | I14: ='3 乳児死亡数，月・性・区別'!J34/(SUM([1]出生数!Q14:AB14)*[1]出生数!AB$15/SUM([1]出生数!Q$15:AB$15))*1000 -> 0 | J14: ='3 乳児死亡数，月・性・区別'!K34/(SUM([1]出生数!R14:AC14)*[1]出生数!AC$15/SUM([1]出生数!R$15:AC$15))*1000 -> 27.83497293 | K14: ='3 乳児死亡数，月・性・区別'!L34/(SUM([1]出生数!S14:AD14)*[1]出生数!AD$15/SUM([1]出生数!S$15:AD$15))*1000 -> 0 | L14: ='3 乳児死亡数，月・性・区別'!M34/(SUM([1]出生数!T14:AE14)*[1]出生数!AE$15/SUM([1]出生数!T$15:AE$15))*1000 -> 0 | M14: ='3 乳児死亡数，月・性・区別'!N34/(SUM([1]出生数!U14:AF14)*[1]出生数!AF$15/SUM([1]出生数!U$15:AF$15))*1000 -> 0 | N14: ='3 乳児死亡数，月・性・区別'!O34/(SUM([1]出生数!V14:AG14)*[1]出生数!AG$15/SUM([1]出生数!V$15:AG$15))*1000 -> 0

Sheet 死亡の場所別，区別死亡数
A1: 死亡の場所別にみた区別乳児死亡数及び百分率
A3: 区 | B3: 総数 | C3: 施設内 | G3: 施設外 | K3: データの個数 : 客体区分 | L3: 乳児死亡 | M3: 死亡場所区分
C4: 総 数 | D4: 病院 | E4: 診療所 | F4: 助産所 | G4: 総 数 | H4: 自宅 | I4: その他 | L4: 乳児 | P4: 乳児 計 | Q4: 総計
A5: 総数 | B5: =SUM(C5,G5) -> 0 | C5: =SUM(D5:E5) -> 0 | D5: =SUM(D6:D15) -> 0 | E5: =SUM(E6:E15) -> 0 | F5: =SUM(F6:F15) -> 0 | G5: =SUM(H5:I5) -> 0 | H5: =SUM(H6:H15) -> 0 | I5: =SUM(I6:I15) -> 0 | K5: 区コード | L5: 1 病院 | M5: 2 診療所 | N5: 6 自宅 | O5: 7 その他
A6: 中央 | B6: 0 | C6: 0 | G6: 0 | K6: 10 中央区 | L6: 4 | N6: 1 | P6: 5 | Q6: 5
A7: 北 | B7: 0 | C7: 0 | G7: 0 | K7: 20 北区 | L7: 3 | N7: 2 | P7: 5 | Q7: 5
A8: 東 | B8: 0 | C8: 0 | G8: 0 | K8: 30 東区 | L8: 5 | M8: 1 | N8: 1 | P8: 7 | Q8: 7
A9: 白石 | B9: 0 | C9: 0 | G9: 0 | K9: 40 白石区 | L9: 2 | N9: 2 | P9: 4 | Q9: 4
A10: 厚別 | B10: 0 | C10: 0 | G10: 0 | K10: 50 豊平区 | L10: 5 | P10: 5 | Q10: 5
A11: 豊平 | B11: 0 | C11: 0 | G11: 0 | K11: 70 西区 | L11: 3 | N11: 2 | O11: 1 | P11: 6 | Q11: 6
A12: 清田 | B12: 0 | C12: 0 | G12: 0 | K12: 75 手稲区 | N12: 1 | P12: 1 | Q12: 1
A13: 南 | B13: 0 | C13: 0 | G13: 0 | K13: 総計 | L13: 22 | M13: 1 | N13: 9 | O13: 1 | P13: 33 | Q13: 33
A14: 西 | B14: 0 | C14: 0 | G14: 0
A15: 手稲 | B15: 0 | C15: 0 | G15: 0
